{"text_format":"1","workbook":"xlsx","n_sheets":9,"sheets":["RESUMO","Planilha2","SINTÉTICA","ANALÍTICO - COMPOSIÇÃO DE CUSTO","CRONOGRAMA","CURVA ABC","COMPOSIÇÃO BDI","ENCARGOS SOCIAIS","MAPA DE COTAÇÕES"],"not_rendered":{"charts":1,"images":5,"macros":1,"external_links":0,"defined_names":13,"comments":1,"pivot_tables":0},"unopened":[],"bounds":{"document_bytes":16777216,"sheet_cells":100000,"rows_first":2000,"rows_last":500,"rows_between":2000,"halvings":0,"cell_chars":16384,"cell_head_chars":4096},"cells_cut":0,"cells_raw":0,"read":"whole","date_system":"1900"}

{"sheet":"RESUMO","index":0,"n_rows":19,"n_cols":4,"rows_kept":19,"cut":false,"hidden":false,"merged":[[7,0,7,3],[18,0,18,1],[17,0,17,1],[16,0,16,1],[18,2,18,3],[17,2,17,3],[16,2,16,3],[4,1,4,3],[6,0,6,3],[0,1,0,3],[1,1,1,3],[2,1,2,3],[3,1,3,3]]}
["OBJETO - ","CRECHE - KIT DE GERAÇÃO DE ENERGIA SOLAR FOTOVOLTAICA - 123,75 kWp"]
["MUNICÍPIO -","SÃO PEDRO DA CIPA - MT"]
["REFERÊNCIA - ","SINAPI/MT - 06/2022"]
["BDI -",0.25]
["ENCARGOS -","NÃO DESONERADO (Horista:  114,45%  Mensalista:  72,21%)"]
[]
["PLANILHA ORÇAMENTÁRIA RESUMIDA"]
[{"$f":"CONCATENATE(C19, \"  (\",(UPPER(Extenso_Valor(C19))),\")\")","v":"R$ 467.287,06  (QUATROCENTOS E SESSENTA E SETE MIL E DUZENTOS E OITENTA E SETE REAIS E SEIS CENTAVOS)"}]
[]
["Item","Descrição","Total","Peso (%)"]
["0","ADMINISTRAÇÃO DE OBRA","Coluna1","6,16%"]
[1,"KIT DE GERAÇÃO DE ENERGIA SOLAR FOTOVOLTAICA - 123,75 kWp",389569.02,0.83368244778701983]
[2,"ATERRAMENTO",3870.82,8.2836019469488421E-3]
[3,"CABOS CA",26701.1,5.714067922188986E-2]
[4,"ACESSÓRIOS E   DISPOSITIVOS DE SOBREPOR E EMBUTIR",41684.07,8.9204417515862736E-2]
[5,"QUADRO DE DISTRIBUIÇÃO",5462.05,1.1688853528278741E-2]
["Total sem BDI",null,373838.49]
["Total do BDI",null,93448.57]
["Total Geral",null,"R$ 467.287,06"]

{"sheet":"Planilha2","index":1,"n_rows":28,"n_cols":4,"rows_kept":28,"cut":false,"hidden":true,"merged":[]}
["Código","Descrição do Item","Unidade","Preço Mediano"]
["COT.01","CAIXA DE INSPEÇÃO N3 180X140MM","unid.",9]
["COT.02","CABO DE COBRE, RIGIDO, ISOLACAO EM EPR OU XLPE, COBERTURA ANTICHAMA EM PVC, PEAD OU HFFR, 1 CONDUTOR, 20/35 KV, SECAO NOMINAL 25 MM2 -  (SUGERIDO - CABO ISOL.1KV 25.0 MM2 PRETO)","m",22.75]
["COT.03","ELETRODUTO FLEXIVEL, EM ACO GALVANIZADO, REVESTIDO EXTERNAMENTE\nCOM PVC PRETO, DIAMETRO EXTERNO DE 90 MM (3\"), TIPO SEALTUBO","m",65.73]
["COT.04","ORGANIZADOR DE FIOS E CABOS ESPIRAL 3\\4\"","m",9.1999999999999993]
["COT.05","TERMINAL PINO COMPRESSÃO 120 MM","unid.",31.35]
["COT.06","TERMINAL PINO COMPRESSÃO 25 MM","unid.",3.12]
["COT.07","TERMINAL PINO COMPRESSÃO 6 MM","unid.",0.75]
["COT.08","TERMINAL PINO COMPRESSÃO 95 MM","unid.",34.119999999999997]
["COT.09","PARAF PHILIPS Nº 10 + BUCHA FIXACAO Nº 10 C.ANEL","unid.",1.36]
["COT.10","CONECTOR FÊMEA GIRATORIO PARA\nSEALTUBO 3''","unid.",129.54]
["COT.11","CONECTOR MACHO GIRATORIO PARA\nSEALTUBO 3''","unid.",115.14]
["COT.12","BARRA DE AÇO ROSCADA Ø1/4\" 50 CM","unid.",18]
["COT.13","ARRUELA LISA Ø1/4\"","unid.",0.26]
["COT.14","PORCA SEXTAVADA BICROMATIZADO 3/16''","unid.",0.2]
["COT.15","PARAFUSO SEXTAVADA BICROMATIZADO 1/4 x 1/2''","unid.",1.05]
["COT.16","ARRUELA LISA 3/16''","unid.",0.32]
["COT.17","ISOLADOR EPOXI DIAMETRO 20MM COMPRIMENTO 20MM PARAFUSO 1/4","unid.",7.73]
["COT.18","DISJUNTOR CAIXA MOLDADA TRIPOLAR 70A","unid.",214.92]
["COT.19","DISJUNTOR CAIXA MOLDADA TRIPOLAR 225A","unid.",371.41]
["COT.20","ACRILICO PORTEÇÃO PARA QUARDO DISTRIBUIÇÃO 2000 X 1000 X3 MM","unid.",657.14]
["COT.21","QUADRO DE COMANDO 800 X800 X 250 MM - COMPLETO COM CHAPA DE MONTAGEM - (ENCONTRADO - 800 X 600 X 250 MM)","unid.",1381.32]
["COT.22","BARRAMENTO DE COBRE 20X300 MM - TERRA/NEUTRO","unid.",63.69]
["COT.23","PARAFUSO SEXT. BICROMATIZADO 3/16''","unid.",0.87]
["COT.24","DISJUNTOR CAIXA MOLDADA TRIPOLAR 150A","unid.",350]
["COT.25","DISJUNTOR CAIXA MOLDADA TRIPOLAR 200A","unid.",370.95]
["COTGLOBAL.01","KIT DE GERAÇÃO DE ENERGIA SOLAR FOTOVOLTAICA - 123,75 kWp - CRECHE","unid.",311655.21999999997]
["COTGLOBAL.02","KIT DE GERAÇÃO DE ENERGIA SOLAR FOTOVOLTAICA - 62,70 Kwp - ESCOLA MUNICIPAL","unid.",159363.87]

{"sheet":"SINTÉTICA","index":2,"n_rows":62,"n_cols":10,"rows_kept":62,"cut":false,"hidden":false,"merged":[[0,1,0,9],[6,0,6,9],[8,0,8,9],[1,1,1,9],[61,8,61,9],[60,8,60,9],[59,8,59,9],[61,0,61,7],[60,0,60,7],[59,0,59,7],[7,0,7,9],[4,1,4,9],[3,1,3,9],[2,1,2,9]]}
["OBJETO - ",{"$f":"RESUMO!B1","v":"CRECHE - KIT DE GERAÇÃO DE ENERGIA SOLAR FOTOVOLTAICA - 123,75 kWp"}]
["MUNICÍPIO -",{"$f":"RESUMO!B2","v":"SÃO PEDRO DA CIPA - MT"}]
["REFERÊNCIA - ",{"$f":"RESUMO!B3","v":"SINAPI/MT - 06/2022"}]
["BDI -",{"$f":"RESUMO!B4","v":0.25}]
["ENCARGOS -",{"$f":"RESUMO!B5","v":"NÃO DESONERADO (Horista:  114,45%  Mensalista:  72,21%)"}]
[]
["PLANILHA ORÇAMENTÁRIA SINTÉTICA"]
[{"$f":"CONCATENATE(I62, \"  (\",(UPPER(Extenso_Valor(I62))),\")\")","v":"R$ 467.287,06  (QUATROCENTOS E SESSENTA E SETE MIL E DUZENTOS E OITENTA E SETE REAIS E SEIS CENTAVOS)"}]
[]
["Item","Código","Banco","Descrição","Und","Quant.","Valor Unit","Valor Unit com BDI","Total","Peso (%)"]
[" 1 ",null,null,"KIT DE GERAÇÃO DE ENERGIA SOLAR FOTOVOLTAICA - 123,75 kWp",null,null,null,null,{"$f":"SUBTOTAL(9,I12)","v":389569.02},0.83368244778701983]
[" 1.1 "," CP-ES-01 ","Próprio","KIT DE GERAÇÃO DE ENERGIA SOLAR FOTOVOLTAICA - 123,75 kWp","UND",1,311655.21999999997,389569.02,389569.02,0.83368244778701983]
[" 2 ",null,null,"ATERRAMENTO",null,null,null,null,{"$f":"SUBTOTAL(9,I14:I17)","v":3870.82},8.2836019469488421E-3]
[" 2.1 "," 96978 ","SINAPI","CORDOALHA DE COBRE NU 70 MM², ENTERRADA, SEM ISOLADOR - FORNECIMENTO E INSTALAÇÃO. AF_12/2017","M",30,85.99,107.48,3224.4,6.9002552734929142E-3]
[" 2.2 "," CP-SPDA-01 ","Próprio","HASTE DE ATERRAMENTO 5/8  PARA SPDA COM CONECTOR - FORNECIMENTO E INSTALAÇÃO. AF_12/2017","UN",6,79.81,99.76,598.55999999999995,1.2809256905166602E-3]
[" 2.3 "," CP-SPDA-02 ","Próprio","CAIXA DE INSPEÇÃO PARA ATERRAMENTO, CIRCULAR, EM POLIETILENO, DIÂMETRO INTERNO ATÉ Ø0,20 M. FORNECIMENTO E INSTALAÇÃO","UN",2,15.38,19.22,38.44,8.2262068202787377E-5]
[" 2.4 "," CP-SPDA-03 ","Próprio","TERMINAL A COMPRESSAO  PARA CABO 70 MM2. FORNECIMENTO E INSTALAÇÃO","UND",1,7.54,9.42,9.42,2.0158914736479114E-5]
[" 3 ",null,null,"CABOS CA",null,null,null,null,{"$f":"SUBTOTAL(9,I19:I23)","v":26701.1},5.714067922188986E-2]
[" 3.1 "," CP-ELE-01 ","Próprio","CABO DE COBRE FLEXÍVEL ISOLADO, 25 MM², EPR OU XPLE, ANTI-CHAMA  20/35 KV, PARA REDE DE DISTRIBUIÇÃO DE ENERGIA ELÉTRICA - FORNECIMENTO E INSTALAÇÃO.","M",25,25.69,32.11,802.75,1.717894777569916E-3]
[" 3.2 "," CP-ELE-02 ","Próprio","CABO DE COBRE FLEXÍVEL ISOLADO, 50 MM², EPR OU XPLE, ANTI-CHAMA 20/35 KV, PARA REDE DE DISTRIBUIÇÃO DE ENERGIA ELÉTRICA - FORNECIMENTO E INSTALAÇÃO.","M",10,154.44999999999999,193.06,1930.6,4.1315075148881716E-3]
[" 3.3 "," CP-ELE-03 ","Próprio","CABO DE COBRE FLEXÍVEL ISOLADO, 95 MM², EPR OU XPLE, ANTI-CHAMA 20/35 KV, PARA REDE DE DISTRIBUIÇÃO DE ENERGIA ELÉTRICA - FORNECIMENTO E INSTALAÇÃO","M",15,218.89,273.61,4104.1499999999996,8.7829309889300173E-3]
[" 3.4 "," CP-ELE-04 ","Próprio","CABO DE COBRE FLEXÍVEL ISOLADO, 70 MM², EPR OU XPLE, ANTI-CHAMA 20/35 KV, PARA REDE DE DISTRIBUIÇÃO DE ENERGIA ELÉTRICA - FORNECIMENTO E INSTALAÇÃO","M",30,183.38,229.22,6876.6,1.4716007757629754E-2]
[" 3.5 "," CP-ELE-05 ","Próprio","CABO DE COBRE FLEXÍVEL ISOLADO, 120 MM², EPR OU XPLE, ANTI-CHAMA 20/35 KV, PARA REDE DE DISTRIBUIÇÃO DE ENERGIA ELÉTRICA - FORNECIMENTO E INSTALAÇÃO","M",45,230.88,288.60000000000002,12987,2.7792338182872002E-2]
[" 4 ",null,null,"ACESSÓRIOS E   DISPOSITIVOS DE SOBREPOR E EMBUTIR",null,null,null,null,{"$f":"SUBTOTAL(9,I25:I56)","v":41684.07},8.9204417515862736E-2]
[" 4.1 "," CP-ELE-06 ","Próprio","ELETRODUTO FLEXIVEL, EM ACO GALVANIZADO, REVESTIDO EXTERNAMENTE COM PVC PRETO, DIAMETRO EXTERNO DE 90 MM (3\"), TIPO SEALTUBO, PARA REDE DE DISTRIBUIÇÃO DE ENERGIA ELÉTRICA - FORNECIMENTO E INSTALAÇÃO.","M",6,78.709999999999994,98.38,590.28,1.2632063896654874E-3]
[" 4.2 "," CP-ELE-07 ","Próprio","ORGANIZADOR DE FIOS E CABOS ESPIRAL 3\\4\". FORNECIMENTO E INSTALAÇÃO","M",4,10.77,13.46,53.84,1.1521825577622458E-4]
[" 4.3 "," CP-ELE-08 ","Próprio","FITA ISOLANTE ADESIVA ANTICHAMA, EM ROLO DE 19 MM X 20 M. FORNECIMENTO E  INSTALAÇÃO","UND",0.1,16.88,21.1,2.11,4.5154256999969139E-6]
[" 4.4 "," 94226 ","SINAPI","SUBCOBERTURA COM MANTA PLÁSTICA REVESTIDA POR PELÍCULA DE ALUMÍNO, INCLUSO TRANSPORTE VERTICAL. AF_07/2019","m²",5,24.41,30.51,152.55000000000001,3.2645885807323661E-4]
[" 4.5 "," CP-SPDA-03 ","Próprio","TERMINAL A COMPRESSAO  PARA CABO 70 MM2. FORNECIMENTO E INSTALAÇÃO","UND",6,7.54,9.42,56.52,1.2095348841887469E-4]
[" 4.6 "," CP-SPDA-04 ","Próprio","TERMINAL A COMPRESSAO  PARA CABO 95 MM2. FORNECIMENTO E INSTALAÇÃO","UND",6,8.93,11.16,66.959999999999994,1.4329521557904899E-4]
[" 4.7 "," CP-SPDA-05 ","Próprio","TERMINAL A COMPRESSAO  PARA CABO 50 MM2. FORNECIMENTO E INSTALAÇÃO","UND",4,6.35,7.93,31.72,6.7881186352560251E-5]
[" 4.8 "," CP-SPDA-06 ","Próprio","TERMINAL A COMPRESSAO  PARA CABO 25 MM2. FORNECIMENTO E INSTALAÇÃO","UND",10,4.01,5.01,50.1,1.0721461022267554E-4]
[" 4.9 "," CP-ELE-09 ","Próprio","TERMINAL A COMPRESSAO PINO PARA CABO 120 MM2. FORNECIMENTO E INSTALAÇÃO","UND",6,32.9,41.12,246.72,5.2798380507262498E-4]
[" 4.10 "," CP-ELE-10 ","Próprio","TERMINAL A COMPRESSAO PINO PARA CABO 95 MM2. FORNECIMENTO E INSTALAÇÃO","UND",6,35.67,44.58,267.48,5.724104579313624E-4]
[" 4.11 "," CP-ELE-11 ","Próprio","TERMINAL A COMPRESSAO PINO PARA CABO 25 MM2. FORNECIMENTO E INSTALAÇÃO","UND",6,4.67,5.83,34.979999999999997,7.4857626059664483E-5]
[" 4.12 "," CP-ELE-12 ","Próprio","TERMINAL A COMPRESSAO PINO PARA CABO 6 MM2. FORNECIMENTO E INSTALAÇÃO","UND",26,2.2999999999999998,2.87,74.62,1.5968770887856386E-4]
[" 4.13 "," 95818 ","SINAPI","CONDULETE DE PVC, TIPO X, PARA ELETRODUTO DE PVC SOLDÁVEL DN 32 MM (1''), APARENTE - FORNECIMENTO E INSTALAÇÃO. AF_11/2016","UN",130,37.9,47.37,6158.1,1.31784090062327E-2]
[" 4.14 "," CP-ELE-13 ","Próprio","TAMPA CEGA PARA CONDULETE DE PVC 4x2\" - FORNECIMENTO E INSTALAÇÃO","UN",130,6.16,7.7,1001,2.1421521922734177E-3]
[" 4.15 "," CP-ELE-14 ","Próprio","CURVA 135 GRAUS PARA ELETRODUTO, PVC, ROSCÁVEL, DN 32 MM (1''), PARA CIRCUITOS TERMINAIS. FORNECIMENTO E INSTALAÇÃO.","UN",10,13.12,16.399999999999999,164,3.5096199753530518E-4]
[" 4.16 "," 91868 ","SINAPI","ELETRODUTO RÍGIDO ROSCÁVEL, PVC, DN 32 MM (1\"), PARA CIRCUITOS TERMINAIS, INSTALADO EM LAJE - FORNECIMENTO E INSTALAÇÃO. AF_12/2015","M",750,11.91,14.88,11160,2.3882535929841499E-2]
[" 4.17 "," 91905 ","SINAPI","CURVA 90 GRAUS PARA ELETRODUTO, PVC, ROSCÁVEL, DN 32 MM (1\"), PARA CIRCUITOS TERMINAIS, INSTALADA EM LAJE - FORNECIMENTO E INSTALAÇÃO. AF_12/2015","UN",20,14.46,18.07,361.4,7.7340040188572732E-4]
[" 4.18 "," 91880 ","SINAPI","LUVA PARA ELETRODUTO, PVC, ROSCÁVEL, DN 32 MM (1\"), PARA CIRCUITOS TERMINAIS, INSTALADA EM LAJE - FORNECIMENTO E INSTALAÇÃO. AF_12/2015","UN",126,8.65,10.81,1362.06,2.914824990017913E-3]
[" 4.19 "," CP-ELE-15 ","Próprio","UNIDUT CÔNICO Ø 1\" COM ARRUELA - FORNECIMENTO E INSTALAÇÃO","UN",260,6.06,7.57,1968.2,4.211971972859681E-3]
[" 4.20 "," CP-ELE-16 ","Próprio","PARAFUSO E BUCHA MU 10MM, FORNECIMENTO E INSTALAÇÃO.","UN",400,2.12,2.65,1060,2.2684129108989236E-3]
[" 4.21 "," CP-ELE-17 ","Próprio","ABRAÇADEIRA TIPO \"D\" COM CUNHA, DIÂMETRO 1\" - FORNECIMENTO E INSTALAÇÃO.","UN",375,7.25,9.06,3397.5,7.2706913818670693E-3]
[" 4.22 "," 95728 ","SINAPI","ELETRODUTO RÍGIDO SOLDÁVEL, PVC, DN 32 MM (1\"), APARENTE, INSTALADO EM TETO - FORNECIMENTO E INSTALAÇÃO. AF_11/2016","M",6,9.1300000000000008,11.41,68.459999999999994,1.4650523384918896E-4]
[" 4.23 "," 97670 ","SINAPI","ELETRODUTO FLEXÍVEL CORRUGADO, PEAD, DN 100 (4\"), PARA REDE ENTERRADA DE DISTRIBUIÇÃO DE ENERGIA ELÉTRICA - FORNECIMENTO E INSTALAÇÃO. AF_12/2021","M",15,18.73,23.41,351.15,7.5146527703977078E-4]
[" 4.24 "," CP-ELE-19 ","Próprio","CONECTOR FÊMEA  PARA SEALTUBO 3'' COM ARRUELA- FORNECIMENTO E INSTALAÇÃO","UN",1,139.18,173.97,173.97,3.7229791897083563E-4]
[" 4.25 "," CP-ELE-20 ","Próprio","ABRAÇADEIRA TIPO \"D\" COM CUNHA, DIÂMETRO 3\" - FORNECIMENTO E INSTALAÇÃO.","UN",6,12.42,15.52,93.12,1.9927793421029035E-4]
[" 4.26 "," CP-ELE-21 ","Próprio","CONECTOR MACHO PARA SEALTUBO 3'' . FORNECIMENTO E INSTALAÇÃO","UN",1,116.78,145.97,145.97,3.1237757792822255E-4]
[" 4.27 "," CP-ELE-22 ","Próprio","PARAFUSO AUTOBROCANTE. FORNECIMENTO E INSTALAÇÃO.","UND",200,0.94,1.17,234,5.0076285014183787E-4]
[" 4.28 "," CP-ELE-23 ","Próprio","PARAFUSO DE ACO TIPO CHUMBADOR PARABOLT, DIAMETRO 3/8\". FORNECIMENTO E INSTALAÇÃO","UN",10,4.7300000000000004,5.91,59.1,1.2647471984351545E-4]
[" 4.29 "," CP-ELE-24 ","Próprio","BARRA DE AÇO ROSCADA Ø1/4\" 50 CM, INCLUSO PORCAS E ARRUELAS. FORNECIMENTO E INSTALAÇÃO","UN",10,22.28,27.85,278.5,5.959933921559908E-4]
[" 4.30 "," 97887 ","SINAPI","CAIXA ENTERRADA ELÉTRICA RETANGULAR, EM ALVENARIA COM TIJOLOS CERÂMICOS MACIÇOS, FUNDO COM BRITA, DIMENSÕES INTERNAS: 0,4X0,4X0,4 M. AF_12/2020","UN",6,251.47,314.33,1885.98,4.0360201714124072E-3]
[" 4.31 "," CP-ALV-01 ","Próprio","ABRIGO PARA EQUIPAMENTOS ELÉTRICOS, DIMENSÕES 2,00 X 2,20 X 1,20 M (LXAXP)","UND",1,7824.32,9780.4,9780.4,2.0930175126184749E-2]
[" 4.32 "," 93026 ","SINAPI","CURVA 90 GRAUS PARA ELETRODUTO, PVC, ROSCÁVEL, DN 110 MM (4\"), PARA REDE ENTERRADA DE DISTRIBUIÇÃO DE ENERGIA ELÉTRICA - FORNECIMENTO E INSTALAÇÃO. AF_12/2021","UN",4,70.66,88.32,353.28,7.5602350298336956E-4]
[" 5 ",null,null,"QUADRO DE DISTRIBUIÇÃO",null,null,null,null,{"$f":"SUBTOTAL(9,I58)","v":5462.05},1.1688853528278741E-2]
[" 5.1 "," CP-ELE-25 ","Próprio","QUADRO DE COMANDO- CRECHE. FORNECIMENTO E INSTALAÇÃO","UN",1,4369.6400000000003,5462.05,5462.05,1.1688853528278741E-2]
[]
["Total sem BDI",null,null,null,null,null,null,null,{"$f":"RESUMO!C17","v":373838.49}]
["Total do BDI",null,null,null,null,null,null,null,{"$f":"RESUMO!C18","v":93448.57}]
["Total Geral",null,null,null,null,null,null,null,"R$ 467.287,06"]

{"sheet":"ANALÍTICO - COMPOSIÇÃO DE CUSTO","index":3,"n_rows":1413,"n_cols":12,"rows_kept":1413,"cut":false,"hidden":false,"merged":[[20,7,20,8],[22,4,22,5],[23,4,23,5],[24,4,24,5],[25,4,25,5],[6,0,6,9],[0,1,0,9],[1,1,1,9],[2,1,2,9],[3,1,3,9],[4,1,4,9],[8,4,8,5],[9,4,9,5],[10,4,10,5],[12,7,12,8],[14,4,14,5],[15,4,15,5],[16,4,16,5],[17,4,17,5],[18,4,18,5],[45,4,45,5],[46,4,46,5],[47,4,47,5],[49,7,49,8],[51,4,51,5],[39,7,39,8],[40,0,40,9],[41,0,41,9],[43,4,43,5],[44,4,44,5],[33,4,33,5],[34,4,34,5],[35,4,35,5],[36,4,36,5],[37,4,37,5],[26,4,26,5],[28,7,28,8],[29,0,29,9],[30,0,30,9],[32,4,32,5],[70,0,70,9],[71,0,71,9],[73,4,73,5],[74,4,74,5],[75,4,75,5],[64,4,64,5],[65,4,65,5],[66,4,66,5],[67,4,67,5],[69,7,69,8],[58,7,58,8],[59,0,59,9],[60,0,60,9],[62,4,62,5],[63,4,63,5],[52,4,52,5],[53,4,53,5],[54,4,54,5],[55,4,55,5],[56,4,56,5],[95,4,95,5],[96,4,96,5],[97,4,97,5],[98,4,98,5],[99,4,99,5],[88,4,88,5],[89,4,89,5],[91,7,91,8],[92,0,92,9],[93,0,93,9],[82,0,82,9],[84,4,84,5],[85,4,85,5],[86,4,86,5],[87,4,87,5],[76,4,76,5],[77,4,77,5],[78,4,78,5],[80,7,80,8],[81,0,81,9],[119,4,119,5],[120,4,120,5],[122,7,122,8],[124,4,124,5],[125,4,125,5],[113,0,113,9],[114,0,114,9],[116,4,116,5],[117,4,117,5],[118,4,118,5],[107,4,107,5],[108,4,108,5],[109,4,109,5],[110,4,110,5],[112,7,112,8],[100,4,100,5],[102,7,102,8],[103,0,103,9],[104,0,104,9],[106,4,106,5],[145,4,145,5],[146,4,146,5],[147,4,147,5],[148,4,148,5],[150,7,150,8],[138,4,138,5],[139,4,139,5],[140,4,140,5],[142,7,142,8],[144,4,144,5],[133,4,133,5],[134,4,134,5],[135,4,135,5],[136,4,136,5],[137,4,137,5],[126,4,126,5],[127,4,127,5],[129,7,129,8],[130,0,130,9],[131,0,131,9],[171,4,171,5],[172,4,172,5],[174,7,174,8],[176,4,176,5],[177,4,177,5],[164,4,164,5],[166,7,166,8],[168,4,168,5],[169,4,169,5],[170,4,170,5],[158,7,158,8],[160,4,160,5],[161,4,161,5],[162,4,162,5],[163,4,163,5],[152,4,152,5],[153,4,153,5],[154,4,154,5],[155,4,155,5],[156,4,156,5],[198,7,198,8],[200,4,200,5],[201,4,201,5],[202,4,202,5],[203,4,203,5],[192,4,192,5],[193,4,193,5],[194,4,194,5],[195,4,195,5],[196,4,196,5],[185,4,185,5],[186,4,186,5],[187,4,187,5],[188,4,188,5],[190,7,190,8],[178,4,178,5],[179,4,179,5],[180,4,180,5],[182,7,182,8],[184,4,184,5],[224,0,224,9],[225,0,225,9],[227,4,227,5],[228,4,228,5],[229,4,229,5],[218,4,218,5],[219,4,219,5],[220,4,220,5],[221,4,221,5],[223,7,223,8],[211,4,211,5],[212,4,212,5],[213,4,213,5],[215,7,215,8],[217,4,217,5],[204,4,204,5],[205,4,205,5],[207,7,207,8],[209,4,209,5],[210,4,210,5],[250,7,250,8],[252,4,252,5],[253,4,253,5],[254,4,254,5],[255,4,255,5],[244,4,244,5],[245,4,245,5],[246,4,246,5],[247,4,247,5],[248,4,248,5],[237,4,237,5],[238,4,238,5],[239,4,239,5],[240,4,240,5],[242,7,242,8],[230,4,230,5],[231,4,231,5],[232,4,232,5],[234,7,234,8],[236,4,236,5],[276,7,276,8],[278,4,278,5],[279,4,279,5],[280,4,280,5],[281,4,281,5],[269,0,269,9],[271,4,271,5],[272,4,272,5],[273,4,273,5],[274,4,274,5],[263,4,263,5],[264,4,264,5],[265,4,265,5],[267,7,267,8],[268,0,268,9],[256,4,256,5],[257,4,257,5],[259,7,259,8],[261,4,261,5],[262,4,262,5],[302,7,302,8],[304,4,304,5],[305,4,305,5],[306,4,306,5],[307,4,307,5],[296,4,296,5],[297,4,297,5],[298,4,298,5],[299,4,299,5],[300,4,300,5],[289,4,289,5],[290,4,290,5],[291,4,291,5],[293,7,293,8],[295,4,295,5],[282,4,282,5],[283,4,283,5],[285,7,285,8],[287,4,287,5],[288,4,288,5],[329,4,329,5],[330,4,330,5],[331,4,331,5],[333,7,333,8],[335,4,335,5],[322,4,322,5],[323,4,323,5],[325,7,325,8],[327,4,327,5],[328,4,328,5],[315,4,315,5],[317,7,317,8],[319,4,319,5],[320,4,320,5],[321,4,321,5],[309,7,309,8],[311,4,311,5],[312,4,312,5],[313,4,313,5],[314,4,314,5],[353,4,353,5],[355,7,355,8],[357,4,357,5],[358,4,358,5],[359,4,359,5],[348,4,348,5],[349,4,349,5],[350,4,350,5],[351,4,351,5],[352,4,352,5],[341,4,341,5],[343,7,343,8],[345,4,345,5],[346,4,346,5],[347,4,347,5],[336,4,336,5],[337,4,337,5],[338,4,338,5],[339,4,339,5],[340,4,340,5],[381,7,381,8],[383,4,383,5],[371,7,371,8],[372,0,372,9],[373,0,373,9],[375,4,375,5],[376,4,376,5],[365,4,365,5],[366,4,366,5],[367,4,367,5],[368,4,368,5],[369,4,369,5],[360,4,360,5],[361,4,361,5],[362,4,362,5],[363,4,363,5],[364,4,364,5],[394,4,394,5],[395,4,395,5],[396,4,396,5],[397,4,397,5],[398,4,398,5],[389,4,389,5],[390,4,390,5],[391,4,391,5],[392,4,392,5],[393,4,393,5],[384,4,384,5],[385,4,385,5],[386,4,386,5],[387,4,387,5],[388,4,388,5],[377,4,377,5],[378,4,378,5],[379,4,379,5],[418,4,418,5],[419,4,419,5],[420,4,420,5],[421,4,421,5],[422,4,422,5],[411,4,411,5],[412,4,412,5],[414,7,414,8],[416,4,416,5],[417,4,417,5],[406,4,406,5],[407,4,407,5],[408,4,408,5],[409,4,409,5],[410,4,410,5],[400,7,400,8],[402,0,402,9],[403,4,403,5],[404,4,404,5],[405,4,405,5],[442,4,442,5],[443,4,443,5],[444,4,444,5],[445,4,445,5],[446,4,446,5],[435,4,435,5],[436,4,436,5],[437,4,437,5],[438,4,438,5],[440,7,440,8],[430,4,430,5],[431,4,431,5],[432,4,432,5],[433,4,433,5],[434,4,434,5],[423,4,423,5],[424,4,424,5],[425,4,425,5],[427,7,427,8],[429,4,429,5],[466,4,466,5],[467,4,467,5],[469,7,469,8],[471,4,471,5],[472,4,472,5],[460,7,460,8],[462,4,462,5],[463,4,463,5],[464,4,464,5],[465,4,465,5],[454,4,454,5],[455,4,455,5],[456,4,456,5],[457,4,457,5],[458,4,458,5],[447,4,447,5],[448,4,448,5],[449,4,449,5],[450,4,450,5],[452,7,452,8],[492,4,492,5],[493,4,493,5],[494,4,494,5],[495,4,495,5],[496,4,496,5],[485,4,485,5],[486,4,486,5],[488,7,488,8],[490,4,490,5],[491,4,491,5],[480,4,480,5],[481,4,481,5],[482,4,482,5],[483,4,483,5],[484,4,484,5],[473,4,473,5],[474,4,474,5],[475,4,475,5],[477,7,477,8],[479,4,479,5],[516,4,516,5],[517,4,517,5],[518,4,518,5],[520,7,520,8],[522,4,522,5],[511,4,511,5],[512,4,512,5],[513,4,513,5],[514,4,514,5],[515,4,515,5],[504,4,504,5],[505,4,505,5],[506,4,506,5],[507,4,507,5],[509,7,509,8],[497,4,497,5],[499,7,499,8],[501,4,501,5],[502,4,502,5],[503,4,503,5],[540,4,540,5],[541,4,541,5],[543,7,543,8],[545,4,545,5],[546,4,546,5],[535,4,535,5],[536,4,536,5],[537,4,537,5],[538,4,538,5],[539,4,539,5],[528,4,528,5],[530,7,530,8],[532,4,532,5],[533,4,533,5],[534,4,534,5],[523,4,523,5],[524,4,524,5],[525,4,525,5],[526,4,526,5],[527,4,527,5],[566,4,566,5],[567,4,567,5],[568,4,568,5],[569,4,569,5],[570,4,570,5],[559,4,559,5],[560,4,560,5],[561,4,561,5],[563,7,563,8],[565,4,565,5],[553,7,553,8],[555,4,555,5],[556,4,556,5],[557,4,557,5],[558,4,558,5],[547,4,547,5],[548,4,548,5],[549,4,549,5],[550,4,550,5],[551,4,551,5],[589,7,589,8],[591,4,591,5],[592,4,592,5],[593,4,593,5],[594,4,594,5],[583,4,583,5],[584,4,584,5],[585,4,585,5],[586,4,586,5],[587,4,587,5],[578,4,578,5],[579,4,579,5],[580,4,580,5],[581,4,581,5],[582,4,582,5],[571,4,571,5],[572,4,572,5],[573,4,573,5],[574,4,574,5],[576,7,576,8],[614,4,614,5],[615,4,615,5],[616,4,616,5],[618,7,618,8],[620,4,620,5],[607,4,607,5],[609,7,609,8],[611,4,611,5],[612,4,612,5],[613,4,613,5],[600,4,600,5],[602,7,602,8],[604,4,604,5],[605,4,605,5],[606,4,606,5],[595,4,595,5],[596,4,596,5],[597,4,597,5],[598,4,598,5],[599,4,599,5],[644,4,644,5],[645,4,645,5],[646,4,646,5],[647,4,647,5],[649,7,649,8],[636,7,636,8],[638,4,638,5],[639,4,639,5],[640,4,640,5],[642,7,642,8],[628,4,628,5],[630,7,630,8],[632,4,632,5],[633,4,633,5],[634,4,634,5],[621,4,621,5],[622,4,622,5],[624,7,624,8],[626,4,626,5],[627,4,627,5],[672,4,672,5],[673,4,673,5],[674,4,674,5],[676,7,676,8],[678,4,678,5],[664,7,664,8],[666,4,666,5],[667,4,667,5],[668,4,668,5],[670,7,670,8],[656,4,656,5],[658,7,658,8],[660,4,660,5],[661,4,661,5],[662,4,662,5],[651,4,651,5],[652,4,652,5],[653,4,653,5],[654,4,654,5],[655,4,655,5],[698,4,698,5],[699,4,699,5],[700,4,700,5],[701,4,701,5],[703,7,703,8],[693,4,693,5],[694,4,694,5],[695,4,695,5],[696,4,696,5],[697,4,697,5],[686,4,686,5],[687,4,687,5],[688,4,688,5],[690,7,690,8],[692,4,692,5],[679,4,679,5],[680,4,680,5],[682,7,682,8],[684,4,684,5],[685,4,685,5],[722,4,722,5],[724,7,724,8],[726,4,726,5],[727,4,727,5],[728,4,728,5],[716,7,716,8],[718,4,718,5],[719,4,719,5],[720,4,720,5],[721,4,721,5],[710,4,710,5],[711,4,711,5],[712,4,712,5],[713,4,713,5],[714,4,714,5],[705,4,705,5],[706,4,706,5],[707,4,707,5],[708,4,708,5],[709,4,709,5],[750,4,750,5],[751,4,751,5],[752,4,752,5],[754,7,754,8],[756,4,756,5],[742,7,742,8],[744,4,744,5],[745,4,745,5],[746,4,746,5],[748,7,748,8],[736,4,736,5],[737,4,737,5],[738,4,738,5],[739,4,739,5],[740,4,740,5],[729,4,729,5],[730,4,730,5],[732,7,732,8],[734,4,734,5],[735,4,735,5],[778,4,778,5],[779,4,779,5],[780,4,780,5],[782,7,782,8],[784,4,784,5],[771,4,771,5],[773,7,773,8],[775,4,775,5],[776,4,776,5],[777,4,777,5],[764,4,764,5],[766,7,766,8],[768,4,768,5],[769,4,769,5],[770,4,770,5],[757,4,757,5],[758,4,758,5],[760,7,760,8],[762,4,762,5],[763,4,763,5],[808,4,808,5],[809,4,809,5],[810,4,810,5],[811,4,811,5],[812,4,812,5],[800,7,800,8],[802,4,802,5],[803,4,803,5],[804,4,804,5],[806,7,806,8],[792,4,792,5],[794,7,794,8],[796,4,796,5],[797,4,797,5],[798,4,798,5],[785,4,785,5],[786,4,786,5],[788,7,788,8],[790,4,790,5],[791,4,791,5],[833,7,833,8],[835,4,835,5],[836,4,836,5],[837,4,837,5],[838,4,838,5],[827,4,827,5],[828,4,828,5],[829,4,829,5],[830,4,830,5],[831,4,831,5],[820,4,820,5],[821,4,821,5],[823,7,823,8],[825,4,825,5],[826,4,826,5],[813,4,813,5],[815,7,815,8],[817,4,817,5],[818,4,818,5],[819,4,819,5],[859,7,859,8],[861,4,861,5],[862,4,862,5],[863,4,863,5],[865,7,865,8],[851,4,851,5],[853,7,853,8],[855,4,855,5],[856,4,856,5],[857,4,857,5],[845,7,845,8],[847,4,847,5],[848,4,848,5],[849,4,849,5],[850,4,850,5],[839,4,839,5],[840,4,840,5],[841,4,841,5],[842,4,842,5],[843,4,843,5],[889,7,889,8],[891,4,891,5],[892,4,892,5],[893,4,893,5],[895,7,895,8],[881,4,881,5],[883,7,883,8],[885,4,885,5],[886,4,886,5],[887,4,887,5],[874,4,874,5],[875,4,875,5],[877,7,877,8],[879,4,879,5],[880,4,880,5],[867,4,867,5],[868,4,868,5],[869,4,869,5],[871,7,871,8],[873,4,873,5],[919,7,919,8],[921,4,921,5],[922,4,922,5],[923,4,923,5],[925,7,925,8],[911,4,911,5],[913,7,913,8],[915,4,915,5],[916,4,916,5],[917,4,917,5],[904,4,904,5],[905,4,905,5],[907,7,907,8],[909,4,909,5],[910,4,910,5],[897,4,897,5],[898,4,898,5],[899,4,899,5],[901,7,901,8],[903,4,903,5],[949,7,949,8],[951,4,951,5],[952,4,952,5],[953,4,953,5],[955,7,955,8],[941,4,941,5],[943,7,943,8],[945,4,945,5],[946,4,946,5],[947,4,947,5],[934,4,934,5],[935,4,935,5],[937,7,937,8],[939,4,939,5],[940,4,940,5],[927,4,927,5],[928,4,928,5],[929,4,929,5],[931,7,931,8],[933,4,933,5],[978,4,978,5],[979,4,979,5],[980,4,980,5],[981,4,981,5],[982,4,982,5],[971,4,971,5],[973,7,973,8],[975,4,975,5],[976,4,976,5],[977,4,977,5],[964,4,964,5],[965,4,965,5],[967,7,967,8],[969,4,969,5],[970,4,970,5],[957,4,957,5],[958,4,958,5],[959,4,959,5],[961,7,961,8],[963,4,963,5],[1002,4,1002,5],[1003,4,1003,5],[1004,4,1004,5],[1005,4,1005,5],[1006,4,1006,5],[997,4,997,5],[998,4,998,5],[999,4,999,5],[1000,4,1000,5],[1001,4,1001,5],[990,4,990,5],[991,4,991,5],[992,4,992,5],[993,4,993,5],[995,7,995,8],[983,4,983,5],[984,4,984,5],[986,7,986,8],[988,4,988,5],[989,4,989,5],[1028,4,1028,5],[1029,4,1029,5],[1030,4,1030,5],[1031,4,1031,5],[1032,4,1032,5],[1021,4,1021,5],[1022,4,1022,5],[1023,4,1023,5],[1024,4,1024,5],[1026,7,1026,8],[1016,4,1016,5],[1017,4,1017,5],[1018,4,1018,5],[1019,4,1019,5],[1020,4,1020,5],[1008,7,1008,8],[1010,4,1010,5],[1011,4,1011,5],[1012,4,1012,5],[1014,7,1014,8],[1051,7,1051,8],[1053,4,1053,5],[1054,4,1054,5],[1055,4,1055,5],[1056,4,1056,5],[1045,4,1045,5],[1046,4,1046,5],[1047,4,1047,5],[1048,4,1048,5],[1049,4,1049,5],[1039,7,1039,8],[1041,4,1041,5],[1042,4,1042,5],[1043,4,1043,5],[1044,4,1044,5],[1033,4,1033,5],[1034,4,1034,5],[1035,4,1035,5],[1036,4,1036,5],[1037,4,1037,5],[1077,7,1077,8],[1079,4,1079,5],[1080,4,1080,5],[1081,4,1081,5],[1083,7,1083,8],[1071,4,1071,5],[1072,4,1072,5],[1073,4,1073,5],[1074,4,1074,5],[1075,4,1075,5],[1064,4,1064,5],[1065,4,1065,5],[1067,7,1067,8],[1069,4,1069,5],[1070,4,1070,5],[1057,4,1057,5],[1059,7,1059,8],[1061,4,1061,5],[1062,4,1062,5],[1063,4,1063,5],[1106,4,1106,5],[1107,4,1107,5],[1108,4,1108,5],[1109,4,1109,5],[1111,7,1111,8],[1099,4,1099,5],[1101,7,1101,8],[1103,4,1103,5],[1104,4,1104,5],[1105,4,1105,5],[1092,4,1092,5],[1093,4,1093,5],[1095,7,1095,8],[1097,4,1097,5],[1098,4,1098,5],[1085,4,1085,5],[1086,4,1086,5],[1087,4,1087,5],[1089,7,1089,8],[1091,4,1091,5],[1130,4,1130,5],[1131,4,1131,5],[1132,4,1132,5],[1133,4,1133,5],[1134,4,1134,5],[1124,7,1124,8],[1126,4,1126,5],[1127,4,1127,5],[1128,4,1128,5],[1129,4,1129,5],[1118,4,1118,5],[1119,4,1119,5],[1120,4,1120,5],[1121,4,1121,5],[1122,4,1122,5],[1113,4,1113,5],[1114,4,1114,5],[1115,4,1115,5],[1116,4,1116,5],[1117,4,1117,5],[1154,4,1154,5],[1155,4,1155,5],[1156,4,1156,5],[1157,4,1157,5],[1158,4,1158,5],[1147,4,1147,5],[1148,4,1148,5],[1150,7,1150,8],[1152,4,1152,5],[1153,4,1153,5],[1142,4,1142,5],[1143,4,1143,5],[1144,4,1144,5],[1145,4,1145,5],[1146,4,1146,5],[1135,4,1135,5],[1137,7,1137,8],[1139,4,1139,5],[1140,4,1140,5],[1141,4,1141,5],[1178,4,1178,5],[1179,4,1179,5],[1180,4,1180,5],[1181,4,1181,5],[1182,4,1182,5],[1171,4,1171,5],[1172,4,1172,5],[1173,4,1173,5],[1174,4,1174,5],[1176,7,1176,8],[1166,4,1166,5],[1167,4,1167,5],[1168,4,1168,5],[1169,4,1169,5],[1170,4,1170,5],[1159,4,1159,5],[1160,4,1160,5],[1161,4,1161,5],[1163,7,1163,8],[1165,4,1165,5],[1200,4,1200,5],[1201,4,1201,5],[1202,4,1202,5],[1203,4,1203,5],[1204,4,1204,5],[1193,4,1193,5],[1195,7,1195,8],[1197,4,1197,5],[1198,4,1198,5],[1199,4,1199,5],[1188,4,1188,5],[1189,4,1189,5],[1190,4,1190,5],[1191,4,1191,5],[1192,4,1192,5],[1183,4,1183,5],[1184,4,1184,5],[1185,4,1185,5],[1186,4,1186,5],[1187,4,1187,5],[1226,4,1226,5],[1227,4,1227,5],[1228,4,1228,5],[1230,7,1230,8],[1232,4,1232,5],[1219,4,1219,5],[1220,4,1220,5],[1221,4,1221,5],[1222,4,1222,5],[1224,7,1224,8],[1212,4,1212,5],[1213,4,1213,5],[1215,7,1215,8],[1217,4,1217,5],[1218,4,1218,5],[1205,4,1205,5],[1206,4,1206,5],[1208,7,1208,8],[1210,4,1210,5],[1211,4,1211,5],[1254,4,1254,5],[1255,4,1255,5],[1256,4,1256,5],[1257,4,1257,5],[1259,7,1259,8],[1248,7,1248,8],[1250,4,1250,5],[1251,4,1251,5],[1252,4,1252,5],[1253,4,1253,5],[1240,4,1240,5],[1242,7,1242,8],[1244,4,1244,5],[1245,4,1245,5],[1246,4,1246,5],[1233,4,1233,5],[1234,4,1234,5],[1236,7,1236,8],[1238,4,1238,5],[1239,4,1239,5],[1279,7,1279,8],[1281,4,1281,5],[1282,4,1282,5],[1283,4,1283,5],[1284,4,1284,5],[1273,4,1273,5],[1274,4,1274,5],[1275,4,1275,5],[1276,4,1276,5],[1277,4,1277,5],[1266,4,1266,5],[1267,4,1267,5],[1269,7,1269,8],[1271,4,1271,5],[1272,4,1272,5],[1261,4,1261,5],[1262,4,1262,5],[1263,4,1263,5],[1264,4,1264,5],[1265,4,1265,5],[1306,4,1306,5],[1307,4,1307,5],[1309,7,1309,8],[1311,4,1311,5],[1312,4,1312,5]],"merged_total":1092,"flags":["merged_cut"]}
["OBJETO - ",{"$f":"RESUMO!B1","v":"CRECHE - KIT DE GERAÇÃO DE ENERGIA SOLAR FOTOVOLTAICA - 123,75 kWp"}]
["MUNICÍPIO -",{"$f":"RESUMO!B2","v":"SÃO PEDRO DA CIPA - MT"}]
["REFERÊNCIA - ",{"$f":"RESUMO!B3","v":"SINAPI/MT - 06/2022"}]
["BDI -",{"$f":"RESUMO!B4","v":0.25}]
["ENCARGOS -",{"$f":"RESUMO!B5","v":"NÃO DESONERADO (Horista:  114,45%  Mensalista:  72,21%)"}]
[]
["PLANILHA ORÇAMENTÁRIA ANALÍTICA - COMPOSIÇÃO DE PREÇOS"]
[]
[" 1.1 ","Código","Banco","Descrição","Tipo",null,"Und","Quant.","Valor Unit","Total"]
["Composição"," CP-ES-01 ","Próprio","KIT DE GERAÇÃO DE ENERGIA SOLAR FOTOVOLTAICA - 123,75 kWp","INES - INSTALAÇÕES ESPECIAIS",null,"UND",1,311655.21999999997,311655.21999999997]
["Insumo","COTGLOBAL.01","Próprio","KIT DE GERAÇÃO DE ENERGIA SOLAR FOTOVOLTAICA - 123,75 kWp","Material",null,"UND",1,311655.21999999997,311655.21999999997,{"$f":"VLOOKUP(B11,COTS_,4,FALSE)","v":311655.21999999997},{"$f":"K11-I11","v":0}]
[null,null,null,null,"MO sem LS =>",0,"LS =>",0,"MO com LS =>",0]
[null,null,null,null,"Valor do BDI =>",77913.8,null,"Valor com BDI =>",null,389569.02]
[]
[" 2.1 ","Código","Banco","Descrição","Tipo",null,"Und","Quant.","Valor Unit","Total"]
["Composição"," 96978 ","SINAPI","CORDOALHA DE COBRE NU 70 MM², ENTERRADA, SEM ISOLADOR - FORNECIMENTO E INSTALAÇÃO. AF_12/2017","INEL - INSTALAÇÃO ELÉTRICA/ELETRIFICAÇÃO E ILUMINAÇÃO EXTERNA",null,"M",1,85.99,85.99]
["Composição Auxiliar"," 88264 ","SINAPI","ELETRICISTA COM ENCARGOS COMPLEMENTARES","SEDI - SERVIÇOS DIVERSOS",null,"H",4.07E-2,23.24,0.94]
["Composição Auxiliar"," 88247 ","SINAPI","AUXILIAR DE ELETRICISTA COM ENCARGOS COMPLEMENTARES","SEDI - SERVIÇOS DIVERSOS",null,"H",4.07E-2,19.2,0.78]
["Insumo"," 00000864 ","SINAPI","CABO DE COBRE NU 70 MM2 MEIO-DURO","Material",null,"M",1.1000000000000001,76.61,84.27]
[null,null,null,null,"MO sem LS =>",1.32,"LS =>",0,"MO com LS =>",1.32]
[null,null,null,null,"Valor do BDI =>",21.49,null,"Valor com BDI =>",null,107.48]
[]
[" 2.2 ","Código","Banco","Descrição","Tipo",null,"Und","Quant.","Valor Unit","Total"]
["Composição"," CP-SPDA-01 ","Próprio","HASTE DE ATERRAMENTO 5/8  PARA SPDA COM CONECTOR - FORNECIMENTO E INSTALAÇÃO. AF_12/2017","INEL - INSTALAÇÃO ELÉTRICA/ELETRIFICAÇÃO E ILUMINAÇÃO EXTERNA",null,"UN",1,79.81,79.81]
["Composição Auxiliar"," 88247 ","SINAPI","AUXILIAR DE ELETRICISTA COM ENCARGOS COMPLEMENTARES","SEDI - SERVIÇOS DIVERSOS",null,"H",0.35149999999999998,19.2,6.74]
["Composição Auxiliar"," 88264 ","SINAPI","ELETRICISTA COM ENCARGOS COMPLEMENTARES","SEDI - SERVIÇOS DIVERSOS",null,"H",0.35149999999999998,23.24,8.16]
["Insumo"," 00003380 ","SINAPI","HASTE DE ATERRAMENTO EM ACO COM 3,00 M DE COMPRIMENTO E DN = 5/8\", REVESTIDA COM BAIXA CAMADA DE COBRE, COM CONECTOR TIPO GRAMPO","Material",null,"UN",1,64.91,64.91]
[null,null,null,null,"MO sem LS =>",11.44,"LS =>",0,"MO com LS =>",11.44]
[null,null,null,null,"Valor do BDI =>",19.95,null,"Valor com BDI =>",null,99.76]
["Observação"]
["R.: Copia da SINAPI (96985) → COM CONECTOR"]
[]
[" 2.3 ","Código","Banco","Descrição","Tipo",null,"Und","Quant.","Valor Unit","Total"]
["Composição"," CP-SPDA-02 ","Próprio","CAIXA DE INSPEÇÃO PARA ATERRAMENTO, CIRCULAR, EM POLIETILENO, DIÂMETRO INTERNO ATÉ Ø0,20 M. FORNECIMENTO E INSTALAÇÃO","INEL - INSTALAÇÃO ELÉTRICA/ELETRIFICAÇÃO E ILUMINAÇÃO EXTERNA",null,"UN",1,15.38,15.38]
["Composição Auxiliar"," 88309 ","SINAPI","PEDREIRO COM ENCARGOS COMPLEMENTARES","SEDI - SERVIÇOS DIVERSOS",null,"H",0.12456,22.41,2.79]
["Composição Auxiliar"," 88316 ","SINAPI","SERVENTE COM ENCARGOS COMPLEMENTARES","SEDI - SERVIÇOS DIVERSOS",null,"H",9.7919999999999993E-2,17.82,1.74]
["Composição Auxiliar"," 101618 ","SINAPI","PREPARO DE FUNDO DE VALA COM LARGURA MENOR QUE 1,5 M, COM CAMADA DE AREIA, LANÇAMENTO MANUAL. AF_08/2020","MOVT - MOVIMENTO DE TERRA",null,"m³",8.1499999999999993E-3,227.81,1.85]
["Insumo","COT.01","Próprio","CAIXA DE INSPECAO PARA ATERRAMENTO OU OUTRO USO, EM PVC, DN = 200 X 150 MM","Material",null,"UND",1,9,9,{"$f":"VLOOKUP(B38,COTS_,4,FALSE)","v":9},{"$f":"K38-I38","v":0}]
[null,null,null,null,"MO sem LS =>",4.07,"LS =>",0,"MO com LS =>",4.07]
[null,null,null,null,"Valor do BDI =>",3.84,null,"Valor com BDI =>",null,19.22]
["Observação"]
["R.: Copia da SINAPI (98111) "]
[]
[" 2.4 ","Código","Banco","Descrição","Tipo",null,"Und","Quant.","Valor Unit","Total"]
["Composição"," CP-SPDA-03 ","Próprio","TERMINAL A COMPRESSAO  PARA CABO 70 MM2. FORNECIMENTO E INSTALAÇÃO","INEL - INSTALAÇÃO ELÉTRICA/ELETRIFICAÇÃO E ILUMINAÇÃO EXTERNA",null,"UND",1,7.54,7.54]
["Composição Auxiliar"," 88264 ","SINAPI","ELETRICISTA COM ENCARGOS COMPLEMENTARES","SEDI - SERVIÇOS DIVERSOS",null,"H",0.04,23.24,0.92]
["Composição Auxiliar"," 88247 ","SINAPI","AUXILIAR DE ELETRICISTA COM ENCARGOS COMPLEMENTARES","SEDI - SERVIÇOS DIVERSOS",null,"H",3.3000000000000002E-2,19.2,0.63]
["Insumo"," 00001579 ","SINAPI","TERMINAL A COMPRESSAO EM COBRE ESTANHADO PARA CABO 70 MM2, 1 FURO E 1 COMPRESSAO, PARA PARAFUSO DE FIXACAO M10","Material",null,"UN",1,5.99,5.99]
[null,null,null,null,"MO sem LS =>",1.2,"LS =>",0,"MO com LS =>",1.2]
[null,null,null,null,"Valor do BDI =>",1.88,null,"Valor com BDI =>",null,9.42]
[]
[" 3.1 ","Código","Banco","Descrição","Tipo",null,"Und","Quant.","Valor Unit","Total"]
["Composição"," CP-ELE-01 ","Próprio","CABO DE COBRE FLEXÍVEL ISOLADO, 25 MM², EPR OU XPLE, ANTI-CHAMA  20/35 KV, PARA REDE DE DISTRIBUIÇÃO DE ENERGIA ELÉTRICA - FORNECIMENTO E INSTALAÇÃO.","INEL - INSTALAÇÃO ELÉTRICA/ELETRIFICAÇÃO E ILUMINAÇÃO EXTERNA",null,"M",1,25.69,25.69]
["Composição Auxiliar"," 88247 ","SINAPI","AUXILIAR DE ELETRICISTA COM ENCARGOS COMPLEMENTARES","SEDI - SERVIÇOS DIVERSOS",null,"H",6.08E-2,19.2,1.1599999999999999]
["Composição Auxiliar"," 88264 ","SINAPI","ELETRICISTA COM ENCARGOS COMPLEMENTARES","SEDI - SERVIÇOS DIVERSOS",null,"H",6.08E-2,23.24,1.41]
["Insumo"," 00021127 ","SINAPI","FITA ISOLANTE ADESIVA ANTICHAMA, USO ATE 750 V, EM ROLO DE 19 MM X 5 M","Material",null,"UN",8.9999999999999993E-3,3.47,0.03]
["Insumo","COT.02","Próprio","CABO DE COBRE, RIGIDO, ISOLACAO EM EPR OU XLPE, COBERTURA ANTICHAMA EM PVC, PEAD OU HFFR, 1 CONDUTOR, 20/35 KV, SECAO NOMINAL 25 MM2","Material",null,"M",1.0149999999999999,22.75,23.09,{"$f":"VLOOKUP(B57,COTS_,4,FALSE)","v":22.75},{"$f":"K57-I57","v":0}]
[null,null,null,null,"MO sem LS =>",1.97,"LS =>",0,"MO com LS =>",1.97]
[null,null,null,null,"Valor do BDI =>",6.42,null,"Valor com BDI =>",null,32.11]
["Observação"]
["R.: Copia da SINAPI (92984) "]
[]
[" 3.2 ","Código","Banco","Descrição","Tipo",null,"Und","Quant.","Valor Unit","Total"]
["Composição"," CP-ELE-02 ","Próprio","CABO DE COBRE FLEXÍVEL ISOLADO, 50 MM², EPR OU XPLE, ANTI-CHAMA 20/35 KV, PARA REDE DE DISTRIBUIÇÃO DE ENERGIA ELÉTRICA - FORNECIMENTO E INSTALAÇÃO.","INEL - INSTALAÇÃO ELÉTRICA/ELETRIFICAÇÃO E ILUMINAÇÃO EXTERNA",null,"M",1,154.44999999999999,154.44999999999999]
["Composição Auxiliar"," 88247 ","SINAPI","AUXILIAR DE ELETRICISTA COM ENCARGOS COMPLEMENTARES","SEDI - SERVIÇOS DIVERSOS",null,"H",8.3000000000000004E-2,19.2,1.59]
["Composição Auxiliar"," 88264 ","SINAPI","ELETRICISTA COM ENCARGOS COMPLEMENTARES","SEDI - SERVIÇOS DIVERSOS",null,"H",8.3000000000000004E-2,23.24,1.92]
["Insumo"," 00021127 ","SINAPI","FITA ISOLANTE ADESIVA ANTICHAMA, USO ATE 750 V, EM ROLO DE 19 MM X 5 M","Material",null,"UN",8.9999999999999993E-3,3.47,0.03]
["Insumo"," 00000873 ","SINAPI","CABO DE COBRE, RIGIDO, CLASSE 2, COMPACTADO, BLINDADO, ISOLACAO EM EPR OU XLPE, COBERTURA ANTICHAMA EM PVC, PEAD OU HFFR, 1 CONDUTOR, 20/35 KV, SECAO NOMINAL 50 MM2","Material",null,"M",1.0149999999999999,148.68,150.91]
[null,null,null,null,"MO sem LS =>",2.7,"LS =>",0,"MO com LS =>",2.7]
[null,null,null,null,"Valor do BDI =>",38.61,null,"Valor com BDI =>",null,193.06]
["Observação"]
["R.: 92988 (SINAPI)"]
[]
[" 3.3 ","Código","Banco","Descrição","Tipo",null,"Und","Quant.","Valor Unit","Total"]
["Composição"," CP-ELE-03 ","Próprio","CABO DE COBRE FLEXÍVEL ISOLADO, 95 MM², EPR OU XPLE, ANTI-CHAMA 20/35 KV, PARA REDE DE DISTRIBUIÇÃO DE ENERGIA ELÉTRICA - FORNECIMENTO E INSTALAÇÃO","INEL - INSTALAÇÃO ELÉTRICA/ELETRIFICAÇÃO E ILUMINAÇÃO EXTERNA",null,"M",1,218.89,218.89]
["Composição Auxiliar"," 88247 ","SINAPI","AUXILIAR DE ELETRICISTA COM ENCARGOS COMPLEMENTARES","SEDI - SERVIÇOS DIVERSOS",null,"H",0.12280000000000001,19.2,2.35]
["Composição Auxiliar"," 88264 ","SINAPI","ELETRICISTA COM ENCARGOS COMPLEMENTARES","SEDI - SERVIÇOS DIVERSOS",null,"H",0.12280000000000001,23.24,2.85]
["Insumo"," 00021127 ","SINAPI","FITA ISOLANTE ADESIVA ANTICHAMA, USO ATE 750 V, EM ROLO DE 19 MM X 5 M","Material",null,"UN",8.9999999999999993E-3,3.47,0.03]
["Insumo"," 00000875 ","SINAPI","CABO DE COBRE, RIGIDO, CLASSE 2, COMPACTADO, BLINDADO, ISOLACAO EM EPR OU XLPE, COBERTURA ANTICHAMA EM PVC, PEAD OU HFFR, 1 CONDUTOR, 20/35 KV, SECAO NOMINAL 95 MM2","Material",null,"M",1.0149999999999999,210.51,213.66]
[null,null,null,null,"MO sem LS =>",3.99,"LS =>",0,"MO com LS =>",3.99]
[null,null,null,null,"Valor do BDI =>",54.72,null,"Valor com BDI =>",null,273.61]
["Observação"]
["R.: 92992 (SINAPI)"]
[]
[" 3.4 ","Código","Banco","Descrição","Tipo",null,"Und","Quant.","Valor Unit","Total"]
["Composição"," CP-ELE-04 ","Próprio","CABO DE COBRE FLEXÍVEL ISOLADO, 70 MM², EPR OU XPLE, ANTI-CHAMA 20/35 KV, PARA REDE DE DISTRIBUIÇÃO DE ENERGIA ELÉTRICA - FORNECIMENTO E INSTALAÇÃO","INEL - INSTALAÇÃO ELÉTRICA/ELETRIFICAÇÃO E ILUMINAÇÃO EXTERNA",null,"M",1,183.38,183.38]
["Composição Auxiliar"," 88247 ","SINAPI","AUXILIAR DE ELETRICISTA COM ENCARGOS COMPLEMENTARES","SEDI - SERVIÇOS DIVERSOS",null,"H",0.1007,19.2,1.93]
["Composição Auxiliar"," 88264 ","SINAPI","ELETRICISTA COM ENCARGOS COMPLEMENTARES","SEDI - SERVIÇOS DIVERSOS",null,"H",0.1007,23.24,2.34]
["Insumo"," 00021127 ","SINAPI","FITA ISOLANTE ADESIVA ANTICHAMA, USO ATE 750 V, EM ROLO DE 19 MM X 5 M","Material",null,"UN",8.9999999999999993E-3,3.47,0.03]
["Insumo"," 00000874 ","SINAPI","CABO DE COBRE, RIGIDO, CLASSE 2, COMPACTADO, BLINDADO, ISOLACAO EM EPR OU XLPE, COBERTURA ANTICHAMA EM PVC, PEAD OU HFFR, 1 CONDUTOR, 20/35 KV, SECAO NOMINAL 70 MM2","Material",null,"M",1.0149999999999999,176.44,179.08]
[null,null,null,null,"MO sem LS =>",3.27,"LS =>",0,"MO com LS =>",3.27]
[null,null,null,null,"Valor do BDI =>",45.84,null,"Valor com BDI =>",null,229.22]
["Observação"]
["R.: 92990 (SINAPI)"]
[]
[" 3.5 ","Código","Banco","Descrição","Tipo",null,"Und","Quant.","Valor Unit","Total"]
["Composição"," CP-ELE-05 ","Próprio","CABO DE COBRE FLEXÍVEL ISOLADO, 120 MM², EPR OU XPLE, ANTI-CHAMA 20/35 KV, PARA REDE DE DISTRIBUIÇÃO DE ENERGIA ELÉTRICA - FORNECIMENTO E INSTALAÇÃO","INEL - INSTALAÇÃO ELÉTRICA/ELETRIFICAÇÃO E ILUMINAÇÃO EXTERNA",null,"M",1,230.88,230.88]
["Composição Auxiliar"," 88247 ","SINAPI","AUXILIAR DE ELETRICISTA COM ENCARGOS COMPLEMENTARES","SEDI - SERVIÇOS DIVERSOS",null,"H",0.14499999999999999,19.2,2.78]
["Composição Auxiliar"," 88264 ","SINAPI","ELETRICISTA COM ENCARGOS COMPLEMENTARES","SEDI - SERVIÇOS DIVERSOS",null,"H",0.14499999999999999,23.24,3.36]
["Insumo"," 00021127 ","SINAPI","FITA ISOLANTE ADESIVA ANTICHAMA, USO ATE 750 V, EM ROLO DE 19 MM X 5 M","Material",null,"UN",8.9999999999999993E-3,3.47,0.03]
["Insumo"," 00000876 ","SINAPI","CABO DE COBRE, RIGIDO, CLASSE 2, COMPACTADO, BLINDADO, ISOLACAO EM EPR OU XLPE, COBERTURA ANTICHAMA EM PVC, PEAD OU HFFR, 1 CONDUTOR, 20/35 KV, SECAO NOMINAL 120 MM2","Material",null,"M",1.0149999999999999,221.39,224.71]
[null,null,null,null,"MO sem LS =>",4.72,"LS =>",0,"MO com LS =>",4.72]
[null,null,null,null,"Valor do BDI =>",57.72,null,"Valor com BDI =>",null,288.60000000000002]
["Observação"]
["R.: 92994 (SINAPI)"]
[]
[" 4.1 ","Código","Banco","Descrição","Tipo",null,"Und","Quant.","Valor Unit","Total"]
["Composição"," CP-ELE-06 ","Próprio","ELETRODUTO FLEXIVEL, EM ACO GALVANIZADO, REVESTIDO EXTERNAMENTE COM PVC PRETO, DIAMETRO EXTERNO DE 90 MM (3\"), TIPO SEALTUBO, PARA REDE DE DISTRIBUIÇÃO DE ENERGIA ELÉTRICA - FORNECIMENTO E INSTALAÇÃO.","INEL - INSTALAÇÃO ELÉTRICA/ELETRIFICAÇÃO E ILUMINAÇÃO EXTERNA",null,"M",1,78.709999999999994,78.709999999999994]
["Composição Auxiliar"," 88247 ","SINAPI","AUXILIAR DE ELETRICISTA COM ENCARGOS COMPLEMENTARES","SEDI - SERVIÇOS DIVERSOS",null,"H",0.15110000000000001,19.2,2.9]
["Composição Auxiliar"," 88264 ","SINAPI","ELETRICISTA COM ENCARGOS COMPLEMENTARES","SEDI - SERVIÇOS DIVERSOS",null,"H",0.15110000000000001,23.24,3.51]
["Insumo","COT.03","Próprio","ELETRODUTO FLEXIVEL, EM ACO GALVANIZADO, REVESTIDO EXTERNAMENTE COM PVC PRETO, DIAMETRO EXTERNO DE 90 MM (3\"), TIPO SEALTUBO","Material",null,"M",1.1000000000000001,65.73,72.3,{"$f":"VLOOKUP(B111,COTS_,4,FALSE)","v":65.73},{"$f":"K111-I111","v":0}]
[null,null,null,null,"MO sem LS =>",4.91,"LS =>",0,"MO com LS =>",4.91]
[null,null,null,null,"Valor do BDI =>",19.670000000000002,null,"Valor com BDI =>",null,98.38]
["Observação"]
["R.:  SINAPI (97669) "]
[]
[" 4.2 ","Código","Banco","Descrição","Tipo",null,"Und","Quant.","Valor Unit","Total"]
["Composição"," CP-ELE-07 ","Próprio","ORGANIZADOR DE FIOS E CABOS ESPIRAL 3\\4\". FORNECIMENTO E INSTALAÇÃO","INEL - INSTALAÇÃO ELÉTRICA/ELETRIFICAÇÃO E ILUMINAÇÃO EXTERNA",null,"M",1,10.77,10.77]
["Composição Auxiliar"," 88247 ","SINAPI","AUXILIAR DE ELETRICISTA COM ENCARGOS COMPLEMENTARES","SEDI - SERVIÇOS DIVERSOS",null,"H",3.4000000000000002E-2,19.2,0.65]
["Composição Auxiliar"," 88264 ","SINAPI","ELETRICISTA COM ENCARGOS COMPLEMENTARES","SEDI - SERVIÇOS DIVERSOS",null,"H",3.4000000000000002E-2,23.24,0.79]
["Insumo","COT.04","Próprio","ORGANIZADOR DE FIOS E CABOS ESPIRAL 3\\4\"","Material",null,"M",1.0149999999999999,9.1999999999999993,9.33,{"$f":"VLOOKUP(B121,COTS_,4,FALSE)","v":9.1999999999999993},{"$f":"K121-I121","v":0}]
[null,null,null,null,"MO sem LS =>",1.1000000000000001,"LS =>",0,"MO com LS =>",1.1000000000000001]
[null,null,null,null,"Valor do BDI =>",2.69,null,"Valor com BDI =>",null,13.46]
[]
[" 4.3 ","Código","Banco","Descrição","Tipo",null,"Und","Quant.","Valor Unit","Total"]
["Composição"," CP-ELE-08 ","Próprio","FITA ISOLANTE ADESIVA ANTICHAMA, EM ROLO DE 19 MM X 20 M. FORNECIMENTO E  INSTALAÇÃO","INEL - INSTALAÇÃO ELÉTRICA/ELETRIFICAÇÃO E ILUMINAÇÃO EXTERNA",null,"UND",1,16.88,16.88]
["Composição Auxiliar"," 88247 ","SINAPI","AUXILIAR DE ELETRICISTA COM ENCARGOS COMPLEMENTARES","SEDI - SERVIÇOS DIVERSOS",null,"H",0.4,19.2,7.68]
["Insumo"," 00020111 ","SINAPI","FITA ISOLANTE ADESIVA ANTICHAMA, USO ATE 750 V, EM ROLO DE 19 MM X 20 M","Material",null,"UN",1,9.1999999999999993,9.1999999999999993]
[null,null,null,null,"MO sem LS =>",5.71,"LS =>",0,"MO com LS =>",5.71]
[null,null,null,null,"Valor do BDI =>",4.22,null,"Valor com BDI =>",null,21.1]
["Observação"]
["R.:  AGESUL (1201007005) "]
[]
[" 4.4 ","Código","Banco","Descrição","Tipo",null,"Und","Quant.","Valor Unit","Total"]
["Composição"," 94226 ","SINAPI","SUBCOBERTURA COM MANTA PLÁSTICA REVESTIDA POR PELÍCULA DE ALUMÍNO, INCLUSO TRANSPORTE VERTICAL. AF_07/2019","COBE - COBERTURA",null,"m²",1,24.41,24.41]
["Composição Auxiliar"," 93281 ","SINAPI","GUINCHO ELÉTRICO DE COLUNA, CAPACIDADE 400 KG, COM MOTO FREIO, MOTOR TRIFÁSICO DE 1,25 CV - CHP DIURNO. AF_03/2016","CHOR - CUSTOS HORÁRIOS DE MÁQUINAS E EQUIPAMENTOS",null,"CHP",1E-4,17.739999999999998,0]
["Composição Auxiliar"," 93282 ","SINAPI","GUINCHO ELÉTRICO DE COLUNA, CAPACIDADE 400 KG, COM MOTO FREIO, MOTOR TRIFÁSICO DE 1,25 CV - CHI DIURNO. AF_03/2016","CHOR - CUSTOS HORÁRIOS DE MÁQUINAS E EQUIPAMENTOS",null,"CHI",2.0000000000000001E-4,16.73,0]
["Composição Auxiliar"," 88316 ","SINAPI","SERVENTE COM ENCARGOS COMPLEMENTARES","SEDI - SERVIÇOS DIVERSOS",null,"H",0.184,17.82,3.27]
["Composição Auxiliar"," 88323 ","SINAPI","TELHADISTA COM ENCARGOS COMPLEMENTARES","SEDI - SERVIÇOS DIVERSOS",null,"H",0.183,21.93,4.01]
["Insumo"," 00042529 ","SINAPI","FITA ADESIVA ALUMINIZADA, PARA INSTALACAO DE MANTAS DE SUBCOBERTURA,  L = *5* CM","Material",null,"M",0.88,1.94,1.7]
["Insumo"," 00042528 ","SINAPI","MANTA ALUMINIZADA NAS DUAS FACES, PARA SUBCOBERTURA,  E = *2* MM","Material",null,"m²",1.18,13.08,15.43]
[null,null,null,null,"MO sem LS =>",5.52,"LS =>",0,"MO com LS =>",5.52]
[null,null,null,null,"Valor do BDI =>",6.1,null,"Valor com BDI =>",null,30.51]
[]
[" 4.6 ","Código","Banco","Descrição","Tipo",null,"Und","Quant.","Valor Unit","Total"]
["Composição"," CP-SPDA-04 ","Próprio","TERMINAL A COMPRESSAO  PARA CABO 95 MM2. FORNECIMENTO E INSTALAÇÃO","INEL - INSTALAÇÃO ELÉTRICA/ELETRIFICAÇÃO E ILUMINAÇÃO EXTERNA",null,"UND",1,8.93,8.93]
["Composição Auxiliar"," 88264 ","SINAPI","ELETRICISTA COM ENCARGOS COMPLEMENTARES","SEDI - SERVIÇOS DIVERSOS",null,"H",0.04,23.24,0.92]
["Composição Auxiliar"," 88247 ","SINAPI","AUXILIAR DE ELETRICISTA COM ENCARGOS COMPLEMENTARES","SEDI - SERVIÇOS DIVERSOS",null,"H",3.3000000000000002E-2,19.2,0.63]
["Insumo"," 00001580 ","SINAPI","TERMINAL A COMPRESSAO EM COBRE ESTANHADO PARA CABO 95 MM2, 1 FURO E 1 COMPRESSAO, PARA PARAFUSO DE FIXACAO M12","Material",null,"UN",1,7.38,7.38]
[null,null,null,null,"MO sem LS =>",1.2,"LS =>",0,"MO com LS =>",1.2]
[null,null,null,null,"Valor do BDI =>",2.23,null,"Valor com BDI =>",null,11.16]
[]
[" 4.7 ","Código","Banco","Descrição","Tipo",null,"Und","Quant.","Valor Unit","Total"]
["Composição"," CP-SPDA-05 ","Próprio","TERMINAL A COMPRESSAO  PARA CABO 50 MM2. FORNECIMENTO E INSTALAÇÃO","INEL - INSTALAÇÃO ELÉTRICA/ELETRIFICAÇÃO E ILUMINAÇÃO EXTERNA",null,"UND",1,6.35,6.35]
["Composição Auxiliar"," 88264 ","SINAPI","ELETRICISTA COM ENCARGOS COMPLEMENTARES","SEDI - SERVIÇOS DIVERSOS",null,"H",0.04,23.24,0.92]
["Composição Auxiliar"," 88247 ","SINAPI","AUXILIAR DE ELETRICISTA COM ENCARGOS COMPLEMENTARES","SEDI - SERVIÇOS DIVERSOS",null,"H",3.3000000000000002E-2,19.2,0.63]
["Insumo"," 00001578 ","SINAPI","TERMINAL A COMPRESSAO EM COBRE ESTANHADO PARA CABO 50 MM2, 1 FURO E 1 COMPRESSAO, PARA PARAFUSO DE FIXACAO M8","Material",null,"UN",1,4.8,4.8]
[null,null,null,null,"MO sem LS =>",1.2,"LS =>",0,"MO com LS =>",1.2]
[null,null,null,null,"Valor do BDI =>",1.58,null,"Valor com BDI =>",null,7.93]
[]
[" 4.8 ","Código","Banco","Descrição","Tipo",null,"Und","Quant.","Valor Unit","Total"]
["Composição"," CP-SPDA-06 ","Próprio","TERMINAL A COMPRESSAO  PARA CABO 25 MM2. FORNECIMENTO E INSTALAÇÃO","INEL - INSTALAÇÃO ELÉTRICA/ELETRIFICAÇÃO E ILUMINAÇÃO EXTERNA",null,"UND",1,4.01,4.01]
["Composição Auxiliar"," 88264 ","SINAPI","ELETRICISTA COM ENCARGOS COMPLEMENTARES","SEDI - SERVIÇOS DIVERSOS",null,"H",0.04,23.24,0.92]
["Composição Auxiliar"," 88247 ","SINAPI","AUXILIAR DE ELETRICISTA COM ENCARGOS COMPLEMENTARES","SEDI - SERVIÇOS DIVERSOS",null,"H",3.3000000000000002E-2,19.2,0.63]
["Insumo"," 00001576 ","SINAPI","TERMINAL A COMPRESSAO EM COBRE ESTANHADO PARA CABO 25 MM2, 1 FURO E 1 COMPRESSAO, PARA PARAFUSO DE FIXACAO M8","Material",null,"UN",1,2.46,2.46]
[null,null,null,null,"MO sem LS =>",1.2,"LS =>",0,"MO com LS =>",1.2]
[null,null,null,null,"Valor do BDI =>",1,null,"Valor com BDI =>",null,5.01]
[]
[" 4.9 ","Código","Banco","Descrição","Tipo",null,"Und","Quant.","Valor Unit","Total"]
["Composição"," CP-ELE-09 ","Próprio","TERMINAL A COMPRESSAO PINO PARA CABO 120 MM2. FORNECIMENTO E INSTALAÇÃO","INEL - INSTALAÇÃO ELÉTRICA/ELETRIFICAÇÃO E ILUMINAÇÃO EXTERNA",null,"UND",1,32.9,32.9]
["Composição Auxiliar"," 88264 ","SINAPI","ELETRICISTA COM ENCARGOS COMPLEMENTARES","SEDI - SERVIÇOS DIVERSOS",null,"H",0.04,23.24,0.92]
["Composição Auxiliar"," 88247 ","SINAPI","AUXILIAR DE ELETRICISTA COM ENCARGOS COMPLEMENTARES","SEDI - SERVIÇOS DIVERSOS",null,"H",3.3000000000000002E-2,19.2,0.63]
["Insumo","COT.05","Próprio","TERMINAL PINO COMPRESSÃO 120 MM ","Material",null,"UND",1,31.35,31.35,{"$f":"VLOOKUP(B173,COTS_,4,FALSE)","v":31.35},{"$f":"K173-I173","v":0}]
[null,null,null,null,"MO sem LS =>",1.2,"LS =>",0,"MO com LS =>",1.2]
[null,null,null,null,"Valor do BDI =>",8.2200000000000006,null,"Valor com BDI =>",null,41.12]
[]
[" 4.10 ","Código","Banco","Descrição","Tipo",null,"Und","Quant.","Valor Unit","Total"]
["Composição"," CP-ELE-10 ","Próprio","TERMINAL A COMPRESSAO PINO PARA CABO 95 MM2. FORNECIMENTO E INSTALAÇÃO","INEL - INSTALAÇÃO ELÉTRICA/ELETRIFICAÇÃO E ILUMINAÇÃO EXTERNA",null,"UND",1,35.67,35.67]
["Composição Auxiliar"," 88264 ","SINAPI","ELETRICISTA COM ENCARGOS COMPLEMENTARES","SEDI - SERVIÇOS DIVERSOS",null,"H",0.04,23.24,0.92]
["Composição Auxiliar"," 88247 ","SINAPI","AUXILIAR DE ELETRICISTA COM ENCARGOS COMPLEMENTARES","SEDI - SERVIÇOS DIVERSOS",null,"H",3.3000000000000002E-2,19.2,0.63]
["Insumo","COT.08","Próprio","TERMINAL PINO COMPRESSÃO 95 MM","Material",null,"UND",1,34.119999999999997,34.119999999999997,{"$f":"VLOOKUP(B181,COTS_,4,FALSE)","v":34.119999999999997},{"$f":"K181-I181","v":0}]
[null,null,null,null,"MO sem LS =>",1.2,"LS =>",0,"MO com LS =>",1.2]
[null,null,null,null,"Valor do BDI =>",8.91,null,"Valor com BDI =>",null,44.58]
[]
[" 4.11 ","Código","Banco","Descrição","Tipo",null,"Und","Quant.","Valor Unit","Total"]
["Composição"," CP-ELE-11 ","Próprio","TERMINAL A COMPRESSAO PINO PARA CABO 25 MM2. FORNECIMENTO E INSTALAÇÃO","INEL - INSTALAÇÃO ELÉTRICA/ELETRIFICAÇÃO E ILUMINAÇÃO EXTERNA",null,"UND",1,4.67,4.67]
["Composição Auxiliar"," 88264 ","SINAPI","ELETRICISTA COM ENCARGOS COMPLEMENTARES","SEDI - SERVIÇOS DIVERSOS",null,"H",0.04,23.24,0.92]
["Composição Auxiliar"," 88247 ","SINAPI","AUXILIAR DE ELETRICISTA COM ENCARGOS COMPLEMENTARES","SEDI - SERVIÇOS DIVERSOS",null,"H",3.3000000000000002E-2,19.2,0.63]
["Insumo","COT.06","Próprio","TERMINAL PINO COMPRESSÃO 25 MM","Material",null,"UND",1,3.12,3.12,{"$f":"VLOOKUP(B189,COTS_,4,FALSE)","v":3.12},{"$f":"K189-I189","v":0}]
[null,null,null,null,"MO sem LS =>",1.2,"LS =>",0,"MO com LS =>",1.2]
[null,null,null,null,"Valor do BDI =>",1.1599999999999999,null,"Valor com BDI =>",null,5.83]
[]
[" 4.12 ","Código","Banco","Descrição","Tipo",null,"Und","Quant.","Valor Unit","Total"]
["Composição"," CP-ELE-12 ","Próprio","TERMINAL A COMPRESSAO PINO PARA CABO 6 MM2. FORNECIMENTO E INSTALAÇÃO","INEL - INSTALAÇÃO ELÉTRICA/ELETRIFICAÇÃO E ILUMINAÇÃO EXTERNA",null,"UND",1,2.2999999999999998,2.2999999999999998]
["Composição Auxiliar"," 88264 ","SINAPI","ELETRICISTA COM ENCARGOS COMPLEMENTARES","SEDI - SERVIÇOS DIVERSOS",null,"H",0.04,23.24,0.92]
["Composição Auxiliar"," 88247 ","SINAPI","AUXILIAR DE ELETRICISTA COM ENCARGOS COMPLEMENTARES","SEDI - SERVIÇOS DIVERSOS",null,"H",3.3000000000000002E-2,19.2,0.63]
["Insumo","COT.07","Próprio","TERMINAL PINO COMPRESSÃO 6 MM ","Material",null,"UND",1,0.75,0.75,{"$f":"VLOOKUP(B197,COTS_,4,FALSE)","v":0.75},{"$f":"K197-I197","v":0}]
[null,null,null,null,"MO sem LS =>",1.2,"LS =>",0,"MO com LS =>",1.2]
[null,null,null,null,"Valor do BDI =>",0.56999999999999995,null,"Valor com BDI =>",null,2.87]
[]
[" 4.13 ","Código","Banco","Descrição","Tipo",null,"Und","Quant.","Valor Unit","Total"]
["Composição"," 95818 ","SINAPI","CONDULETE DE PVC, TIPO X, PARA ELETRODUTO DE PVC SOLDÁVEL DN 32 MM (1''), APARENTE - FORNECIMENTO E INSTALAÇÃO. AF_11/2016","INEL - INSTALAÇÃO ELÉTRICA/ELETRIFICAÇÃO E ILUMINAÇÃO EXTERNA",null,"UN",1,37.9,37.9]
["Composição Auxiliar"," 88264 ","SINAPI","ELETRICISTA COM ENCARGOS COMPLEMENTARES","SEDI - SERVIÇOS DIVERSOS",null,"H",0.48720000000000002,23.24,11.32]
["Composição Auxiliar"," 88247 ","SINAPI","AUXILIAR DE ELETRICISTA COM ENCARGOS COMPLEMENTARES","SEDI - SERVIÇOS DIVERSOS",null,"H",0.48720000000000002,19.2,9.35]
["Insumo"," 00011950 ","SINAPI","BUCHA DE NYLON SEM ABA S6, COM PARAFUSO DE 4,20 X 40 MM EM ACO ZINCADO COM ROSCA SOBERBA, CABECA CHATA E FENDA PHILLIPS","Material",null,"UN",2,0.24,0.48]
["Insumo"," 00039345 ","SINAPI","CONDULETE EM PVC, TIPO \"X\", SEM TAMPA, DE 1\"","Material",null,"UN",1,16.75,16.75]
[null,null,null,null,"MO sem LS =>",15.87,"LS =>",0,"MO com LS =>",15.87]
[null,null,null,null,"Valor do BDI =>",9.4700000000000006,null,"Valor com BDI =>",null,47.37]
[]
[" 4.14 ","Código","Banco","Descrição","Tipo",null,"Und","Quant.","Valor Unit","Total"]
["Composição"," CP-ELE-13 ","Próprio","TAMPA CEGA PARA CONDULETE DE PVC 4x2\" - FORNECIMENTO E INSTALAÇÃO","SEDI - SERVIÇOS DIVERSOS",null,"UN",1,6.16,6.16]
["Composição Auxiliar"," 88264 ","SINAPI","ELETRICISTA COM ENCARGOS COMPLEMENTARES","SEDI - SERVIÇOS DIVERSOS",null,"H",0.03,23.24,0.69]
["Composição Auxiliar"," 88247 ","SINAPI","AUXILIAR DE ELETRICISTA COM ENCARGOS COMPLEMENTARES","SEDI - SERVIÇOS DIVERSOS",null,"H",0.03,19.2,0.56999999999999995]
["Insumo"," 00007543 ","SINAPI","TAMPA CEGA EM PVC PARA CONDULETE 4 X 2\"","Material",null,"UN",1,4.9000000000000004,4.9000000000000004]
[null,null,null,null,"MO sem LS =>",0.96,"LS =>",0,"MO com LS =>",0.96]
[null,null,null,null,"Valor do BDI =>",1.54,null,"Valor com BDI =>",null,7.7]
[]
[" 4.15 ","Código","Banco","Descrição","Tipo",null,"Und","Quant.","Valor Unit","Total"]
["Composição"," CP-ELE-14 ","Próprio","CURVA 135 GRAUS PARA ELETRODUTO, PVC, ROSCÁVEL, DN 32 MM (1''), PARA CIRCUITOS TERMINAIS. FORNECIMENTO E INSTALAÇÃO.","INEL - INSTALAÇÃO ELÉTRICA/ELETRIFICAÇÃO E ILUMINAÇÃO EXTERNA",null,"UN",1,13.12,13.12]
["Composição Auxiliar"," 88247 ","SINAPI","AUXILIAR DE ELETRICISTA COM ENCARGOS COMPLEMENTARES","SEDI - SERVIÇOS DIVERSOS",null,"H",0.23899999999999999,19.2,4.58]
["Composição Auxiliar"," 88264 ","SINAPI","ELETRICISTA COM ENCARGOS COMPLEMENTARES","SEDI - SERVIÇOS DIVERSOS",null,"H",0.23899999999999999,23.24,5.55]
["Insumo"," 00001880 ","SINAPI","CURVA 135 GRAUS, DE PVC RIGIDO ROSCAVEL, DE 1\", PARA ELETRODUTO","Material",null,"UN",1,2.99,2.99]
[null,null,null,null,"MO sem LS =>",7.78,"LS =>",0,"MO com LS =>",7.78]
[null,null,null,null,"Valor do BDI =>",3.28,null,"Valor com BDI =>",null,16.399999999999999]
["Observação"]
["R.: SINAPI (97564)"]
[]
[" 4.16 ","Código","Banco","Descrição","Tipo",null,"Und","Quant.","Valor Unit","Total"]
["Composição"," 91868 ","SINAPI","ELETRODUTO RÍGIDO ROSCÁVEL, PVC, DN 32 MM (1\"), PARA CIRCUITOS TERMINAIS, INSTALADO EM LAJE - FORNECIMENTO E INSTALAÇÃO. AF_12/2015","INEL - INSTALAÇÃO ELÉTRICA/ELETRIFICAÇÃO E ILUMINAÇÃO EXTERNA",null,"M",1,11.91,11.91]
["Composição Auxiliar"," 88264 ","SINAPI","ELETRICISTA COM ENCARGOS COMPLEMENTARES","SEDI - SERVIÇOS DIVERSOS",null,"H",0.126,23.24,2.92]
["Composição Auxiliar"," 88247 ","SINAPI","AUXILIAR DE ELETRICISTA COM ENCARGOS COMPLEMENTARES","SEDI - SERVIÇOS DIVERSOS",null,"H",0.126,19.2,2.41]
["Insumo"," 00043132 ","SINAPI","ARAME RECOZIDO 16 BWG, D = 1,65 MM (0,016 KG/M) OU 18 BWG, D = 1,25 MM (0,01 KG/M)","Material",null,"KG",2E-3,22.45,0.04]
["Insumo"," 00002685 ","SINAPI","ELETRODUTO DE PVC RIGIDO ROSCAVEL DE 1 \", SEM LUVA","Material",null,"M",1.0169999999999999,6.44,6.54]
[null,null,null,null,"MO sem LS =>",4.09,"LS =>",0,"MO com LS =>",4.09]
[null,null,null,null,"Valor do BDI =>",2.97,null,"Valor com BDI =>",null,14.88]
[]
[" 4.17 ","Código","Banco","Descrição","Tipo",null,"Und","Quant.","Valor Unit","Total"]
["Composição"," 91905 ","SINAPI","CURVA 90 GRAUS PARA ELETRODUTO, PVC, ROSCÁVEL, DN 32 MM (1\"), PARA CIRCUITOS TERMINAIS, INSTALADA EM LAJE - FORNECIMENTO E INSTALAÇÃO. AF_12/2015","INEL - INSTALAÇÃO ELÉTRICA/ELETRIFICAÇÃO E ILUMINAÇÃO EXTERNA",null,"UN",1,14.46,14.46]
["Composição Auxiliar"," 88264 ","SINAPI","ELETRICISTA COM ENCARGOS COMPLEMENTARES","SEDI - SERVIÇOS DIVERSOS",null,"H",0.251,23.24,5.83]
["Composição Auxiliar"," 88247 ","SINAPI","AUXILIAR DE ELETRICISTA COM ENCARGOS COMPLEMENTARES","SEDI - SERVIÇOS DIVERSOS",null,"H",0.251,19.2,4.8099999999999996]
["Insumo"," 00001884 ","SINAPI","CURVA 90 GRAUS, LONGA, DE PVC RIGIDO ROSCAVEL, DE 1\", PARA ELETRODUTO","Material",null,"UN",1,3.82,3.82]
[null,null,null,null,"MO sem LS =>",8.17,"LS =>",0,"MO com LS =>",8.17]
[null,null,null,null,"Valor do BDI =>",3.61,null,"Valor com BDI =>",null,18.07]
[]
[" 4.18 ","Código","Banco","Descrição","Tipo",null,"Und","Quant.","Valor Unit","Total"]
["Composição"," 91880 ","SINAPI","LUVA PARA ELETRODUTO, PVC, ROSCÁVEL, DN 32 MM (1\"), PARA CIRCUITOS TERMINAIS, INSTALADA EM LAJE - FORNECIMENTO E INSTALAÇÃO. AF_12/2015","INEL - INSTALAÇÃO ELÉTRICA/ELETRIFICAÇÃO E ILUMINAÇÃO EXTERNA",null,"UN",1,8.65,8.65]
["Composição Auxiliar"," 88264 ","SINAPI","ELETRICISTA COM ENCARGOS COMPLEMENTARES","SEDI - SERVIÇOS DIVERSOS",null,"H",0.16800000000000001,23.24,3.9]
["Composição Auxiliar"," 88247 ","SINAPI","AUXILIAR DE ELETRICISTA COM ENCARGOS COMPLEMENTARES","SEDI - SERVIÇOS DIVERSOS",null,"H",0.16800000000000001,19.2,3.22]
["Insumo"," 00001892 ","SINAPI","LUVA EM PVC RIGIDO ROSCAVEL, DE 1\", PARA ELETRODUTO","Material",null,"UN",1,1.53,1.53]
[null,null,null,null,"MO sem LS =>",5.46,"LS =>",0,"MO com LS =>",5.46]
[null,null,null,null,"Valor do BDI =>",2.16,null,"Valor com BDI =>",null,10.81]
[]
[" 4.19 ","Código","Banco","Descrição","Tipo",null,"Und","Quant.","Valor Unit","Total"]
["Composição"," CP-ELE-15 ","Próprio","UNIDUT CÔNICO Ø 1\" COM ARRUELA - FORNECIMENTO E INSTALAÇÃO","SEDI - SERVIÇOS DIVERSOS",null,"UN",1,6.06,6.06]
["Composição Auxiliar"," 88264 ","SINAPI","ELETRICISTA COM ENCARGOS COMPLEMENTARES","SEDI - SERVIÇOS DIVERSOS",null,"H",0.05,23.24,1.1599999999999999]
["Composição Auxiliar"," 88247 ","SINAPI","AUXILIAR DE ELETRICISTA COM ENCARGOS COMPLEMENTARES","SEDI - SERVIÇOS DIVERSOS",null,"H",2.5000000000000001E-2,19.2,0.48]
["Insumo"," 00002483 ","SINAPI","CONECTOR RETO DE ALUMINIO PARA ELETRODUTO DE 1\", PARA ADAPTAR ENTRADA DE ELETRODUTO METALICO FLEXIVEL EM QUADROS","Material",null,"UN",1,3.57,3.57]
["Insumo"," 00039210 ","SINAPI","ARRUELA EM ALUMINIO, COM ROSCA, DE 1\", PARA ELETRODUTO","Material",null,"UN",1,0.85,0.85]
[null,null,null,null,"MO sem LS =>",1.26,"LS =>",0,"MO com LS =>",1.26]
[null,null,null,null,"Valor do BDI =>",1.51,null,"Valor com BDI =>",null,7.57]
[]
[" 4.20 ","Código","Banco","Descrição","Tipo",null,"Und","Quant.","Valor Unit","Total"]
["Composição"," CP-ELE-16 ","Próprio","PARAFUSO E BUCHA MU 10MM, FORNECIMENTO E INSTALAÇÃO.","INHI - INSTALAÇÕES HIDROS SANITÁRIAS",null,"UN",1,2.12,2.12]
["Composição Auxiliar"," 88278 ","SINAPI","MONTADOR DE ESTRUTURA METÁLICA COM ENCARGOS COMPLEMENTARES","SEDI - SERVIÇOS DIVERSOS",null,"H",2.2700000000000001E-2,16.13,0.36]
["Composição Auxiliar"," 88316 ","SINAPI","SERVENTE COM ENCARGOS COMPLEMENTARES","SEDI - SERVIÇOS DIVERSOS",null,"H",2.2700000000000001E-2,17.82,0.4]
["Insumo","COT.09","Próprio","PARAFUSO E BUCHA MU SFOR 10MM","Material",null,"UND",1,1.36,1.36,{"$f":"VLOOKUP(B266,COTS_,4,FALSE)","v":1.36},{"$f":"K266-I266","v":0}]
[null,null,null,null,"MO sem LS =>",0.56000000000000005,"LS =>",0,"MO com LS =>",0.56000000000000005]
[null,null,null,null,"Valor do BDI =>",0.53,null,"Valor com BDI =>",null,2.65]
["Observação"]
["R.: SINAPI (95541) "]
[]
[" 4.21 ","Código","Banco","Descrição","Tipo",null,"Und","Quant.","Valor Unit","Total"]
["Composição"," CP-ELE-17 ","Próprio","ABRAÇADEIRA TIPO \"D\" COM CUNHA, DIÂMETRO 1\" - FORNECIMENTO E INSTALAÇÃO.","SEDI - SERVIÇOS DIVERSOS",null,"UN",1,7.25,7.25]
["Composição Auxiliar"," 88247 ","SINAPI","AUXILIAR DE ELETRICISTA COM ENCARGOS COMPLEMENTARES","SEDI - SERVIÇOS DIVERSOS",null,"H",0.25,19.2,4.8]
["Insumo"," 00039129 ","SINAPI","ABRACADEIRA EM ACO PARA AMARRACAO DE ELETRODUTOS, TIPO D, COM 1\" E CUNHA DE FIXACAO","Material",null,"UN",1,2.4500000000000002,2.4500000000000002]
[null,null,null,null,"MO sem LS =>",3.57,"LS =>",0,"MO com LS =>",3.57]
[null,null,null,null,"Valor do BDI =>",1.81,null,"Valor com BDI =>",null,9.06]
[]
[" 4.22 ","Código","Banco","Descrição","Tipo",null,"Und","Quant.","Valor Unit","Total"]
["Composição"," 95728 ","SINAPI","ELETRODUTO RÍGIDO SOLDÁVEL, PVC, DN 32 MM (1\"), APARENTE, INSTALADO EM TETO - FORNECIMENTO E INSTALAÇÃO. AF_11/2016","INEL - INSTALAÇÃO ELÉTRICA/ELETRIFICAÇÃO E ILUMINAÇÃO EXTERNA",null,"M",1,9.1300000000000008,9.1300000000000008]
["Composição Auxiliar"," 91170 ","SINAPI","FIXAÇÃO DE TUBOS HORIZONTAIS DE PVC, CPVC OU COBRE DIÂMETROS MENORES OU IGUAIS A 40 MM OU ELETROCALHAS ATÉ 150MM DE LARGURA, COM ABRAÇADEIRA METÁLICA RÍGIDA TIPO D 1/2\u0094, FIXADA EM PERFILADO EM LAJE. AF_05/2015","INHI - INSTALAÇÕES HIDROS SANITÁRIAS",null,"M",1,3.11,3.11]
["Composição Auxiliar"," 88264 ","SINAPI","ELETRICISTA COM ENCARGOS COMPLEMENTARES","SEDI - SERVIÇOS DIVERSOS",null,"H",5.0599999999999999E-2,23.24,1.17]
["Composição Auxiliar"," 88247 ","SINAPI","AUXILIAR DE ELETRICISTA COM ENCARGOS COMPLEMENTARES","SEDI - SERVIÇOS DIVERSOS",null,"H",5.0599999999999999E-2,19.2,0.97]
["Insumo"," 00002679 ","SINAPI","ELETRODUTO DE PVC RIGIDO SOLDAVEL, CLASSE B, DE 32 MM","Material",null,"M",1.0481,3.71,3.88]
[null,null,null,null,"MO sem LS =>",3.02,"LS =>",0,"MO com LS =>",3.02]
[null,null,null,null,"Valor do BDI =>",2.2799999999999998,null,"Valor com BDI =>",null,11.41]
[]
[" 4.23 ","Código","Banco","Descrição","Tipo",null,"Und","Quant.","Valor Unit","Total"]
["Composição"," 97670 ","SINAPI","ELETRODUTO FLEXÍVEL CORRUGADO, PEAD, DN 100 (4\"), PARA REDE ENTERRADA DE DISTRIBUIÇÃO DE ENERGIA ELÉTRICA - FORNECIMENTO E INSTALAÇÃO. AF_12/2021","INEL - INSTALAÇÃO ELÉTRICA/ELETRIFICAÇÃO E ILUMINAÇÃO EXTERNA",null,"M",1,18.73,18.73]
["Composição Auxiliar"," 88264 ","SINAPI","ELETRICISTA COM ENCARGOS COMPLEMENTARES","SEDI - SERVIÇOS DIVERSOS",null,"H",0.1721,23.24,3.99]
["Composição Auxiliar"," 88247 ","SINAPI","AUXILIAR DE ELETRICISTA COM ENCARGOS COMPLEMENTARES","SEDI - SERVIÇOS DIVERSOS",null,"H",0.1721,19.2,3.3]
["Insumo"," 00039248 ","SINAPI","ELETRODUTO/DUTO PEAD FLEXIVEL PAREDE SIMPLES, CORRUGACAO HELICOIDAL, COR PRETA, SEM ROSCA, DE 4\", PARA CABEAMENTO SUBTERRANEO (NBR 15715)","Material",null,"M",1.1000000000000001,10.4,11.44]
[null,null,null,null,"MO sem LS =>",5.6,"LS =>",0,"MO com LS =>",5.6]
[null,null,null,null,"Valor do BDI =>",4.68,null,"Valor com BDI =>",null,23.41]
[]
[" 4.24 ","Código","Banco","Descrição","Tipo",null,"Und","Quant.","Valor Unit","Total"]
["Composição"," CP-ELE-19 ","Próprio","CONECTOR FÊMEA  PARA SEALTUBO 3'' COM ARRUELA- FORNECIMENTO E INSTALAÇÃO","SEDI - SERVIÇOS DIVERSOS",null,"UN",1,139.18,139.18]
["Composição Auxiliar"," 88264 ","SINAPI","ELETRICISTA COM ENCARGOS COMPLEMENTARES","SEDI - SERVIÇOS DIVERSOS",null,"H",0.05,23.24,1.1599999999999999]
["Composição Auxiliar"," 88247 ","SINAPI","AUXILIAR DE ELETRICISTA COM ENCARGOS COMPLEMENTARES","SEDI - SERVIÇOS DIVERSOS",null,"H",2.5000000000000001E-2,19.2,0.48]
["Insumo","COT.10","Próprio","CONECTOR FÊMEA GIRATORIO PARA SEALTUBO 3''","Material",null,"UND",1,129.54,129.54,{"$f":"VLOOKUP(B300,COTS_,4,FALSE)","v":129.54},{"$f":"K300-I300","v":0}]
["Insumo"," 00039216 ","SINAPI","ARRUELA EM ALUMINIO, COM ROSCA, DE 4\", PARA ELETRODUTO","Material",null,"UN",1,8,8]
[null,null,null,null,"MO sem LS =>",1.26,"LS =>",0,"MO com LS =>",1.26]
[null,null,null,null,"Valor do BDI =>",34.79,null,"Valor com BDI =>",null,173.97]
[]
[" 4.25 ","Código","Banco","Descrição","Tipo",null,"Und","Quant.","Valor Unit","Total"]
["Composição"," CP-ELE-20 ","Próprio","ABRAÇADEIRA TIPO \"D\" COM CUNHA, DIÂMETRO 3\" - FORNECIMENTO E INSTALAÇÃO.","SEDI - SERVIÇOS DIVERSOS",null,"UN",1,12.42,12.42]
["Composição Auxiliar"," 88247 ","SINAPI","AUXILIAR DE ELETRICISTA COM ENCARGOS COMPLEMENTARES","SEDI - SERVIÇOS DIVERSOS",null,"H",0.25,19.2,4.8]
["Insumo"," 00039134 ","SINAPI","ABRACADEIRA EM ACO PARA AMARRACAO DE ELETRODUTOS, TIPO D, COM 3\" E CUNHA DE FIXACAO","Material",null,"UN",1,7.62,7.62]
[null,null,null,null,"MO sem LS =>",3.57,"LS =>",0,"MO com LS =>",3.57]
[null,null,null,null,"Valor do BDI =>",3.1,null,"Valor com BDI =>",null,15.52]
[]
[" 4.26 ","Código","Banco","Descrição","Tipo",null,"Und","Quant.","Valor Unit","Total"]
["Composição"," CP-ELE-21 ","Próprio","CONECTOR MACHO PARA SEALTUBO 3'' . FORNECIMENTO E INSTALAÇÃO","SEDI - SERVIÇOS DIVERSOS",null,"UN",1,116.78,116.78]
["Composição Auxiliar"," 88264 ","SINAPI","ELETRICISTA COM ENCARGOS COMPLEMENTARES","SEDI - SERVIÇOS DIVERSOS",null,"H",0.05,23.24,1.1599999999999999]
["Composição Auxiliar"," 88247 ","SINAPI","AUXILIAR DE ELETRICISTA COM ENCARGOS COMPLEMENTARES","SEDI - SERVIÇOS DIVERSOS",null,"H",2.5000000000000001E-2,19.2,0.48]
["Insumo","COT.11","Próprio","CONECTOR MACHO GIRATORIO PARA SEALTUBO 3''","Material",null,"UND",1,115.14,115.14,{"$f":"VLOOKUP(B316,COTS_,4,FALSE)","v":115.14},{"$f":"K316-I316","v":0}]
[null,null,null,null,"MO sem LS =>",1.26,"LS =>",0,"MO com LS =>",1.26]
[null,null,null,null,"Valor do BDI =>",29.19,null,"Valor com BDI =>",null,145.97]
[]
[" 4.27 ","Código","Banco","Descrição","Tipo",null,"Und","Quant.","Valor Unit","Total"]
["Composição"," CP-ELE-22 ","Próprio","PARAFUSO AUTOBROCANTE. FORNECIMENTO E INSTALAÇÃO.","INEL - INSTALAÇÃO ELÉTRICA/ELETRIFICAÇÃO E ILUMINAÇÃO EXTERNA",null,"UND",1,0.94,0.94]
["Composição Auxiliar"," 88315 ","SINAPI","SERRALHEIRO COM ENCARGOS COMPLEMENTARES","SEDI - SERVIÇOS DIVERSOS",null,"H",1.67E-2,22.28,0.37]
["Composição Auxiliar"," 88251 ","SINAPI","AUXILIAR DE SERRALHEIRO COM ENCARGOS COMPLEMENTARES","SEDI - SERVIÇOS DIVERSOS",null,"H",1.67E-2,18.88,0.31]
["Insumo"," 00040547 ","SINAPI","PARAFUSO ZINCADO, AUTOBROCANTE, FLANGEADO, 4,2 MM X 19 MM","Material",null,"CENTO",0.01,26.51,0.26]
[null,null,null,null,"MO sem LS =>",0.52,"LS =>",0,"MO com LS =>",0.52]
[null,null,null,null,"Valor do BDI =>",0.23,null,"Valor com BDI =>",null,1.17]
[]
[" 4.28 ","Código","Banco","Descrição","Tipo",null,"Und","Quant.","Valor Unit","Total"]
["Composição"," CP-ELE-23 ","Próprio","PARAFUSO DE ACO TIPO CHUMBADOR PARABOLT, DIAMETRO 3/8\". FORNECIMENTO E INSTALAÇÃO","SEDI - SERVIÇOS DIVERSOS",null,"UN",1,4.7300000000000004,4.7300000000000004]
["Composição Auxiliar"," 88278 ","SINAPI","MONTADOR DE ESTRUTURA METÁLICA COM ENCARGOS COMPLEMENTARES","SEDI - SERVIÇOS DIVERSOS",null,"H",8.3099999999999993E-2,16.13,1.34]
["Composição Auxiliar"," 88240 ","SINAPI","AJUDANTE DE ESTRUTURA METÁLICA COM ENCARGOS COMPLEMENTARES","SEDI - SERVIÇOS DIVERSOS",null,"H",8.3099999999999993E-2,13.11,1.08]
["Insumo"," 00011964 ","SINAPI","PARAFUSO DE ACO TIPO CHUMBADOR PARABOLT, DIAMETRO 3/8\", COMPRIMENTO 75 MM","Material",null,"UN",1,2.31,2.31]
[null,null,null,null,"MO sem LS =>",1.79,"LS =>",0,"MO com LS =>",1.79]
[null,null,null,null,"Valor do BDI =>",1.18,null,"Valor com BDI =>",null,5.91]
[]
[" 4.29 ","Código","Banco","Descrição","Tipo",null,"Und","Quant.","Valor Unit","Total"]
["Composição"," CP-ELE-24 ","Próprio","BARRA DE AÇO ROSCADA Ø1/4\" 50 CM, INCLUSO PORCAS E ARRUELAS. FORNECIMENTO E INSTALAÇÃO","SEDI - SERVIÇOS DIVERSOS",null,"UN",1,22.28,22.28]
["Composição Auxiliar"," 88278 ","SINAPI","MONTADOR DE ESTRUTURA METÁLICA COM ENCARGOS COMPLEMENTARES","SEDI - SERVIÇOS DIVERSOS",null,"H",9.1499999999999998E-2,16.13,1.47]
["Composição Auxiliar"," 88240 ","SINAPI","AJUDANTE DE ESTRUTURA METÁLICA COM ENCARGOS COMPLEMENTARES","SEDI - SERVIÇOS DIVERSOS",null,"H",9.1499999999999998E-2,13.11,1.19]
["Insumo","COT.12","Próprio","BARRA DE AÇO ROSCADA Ø1/4\" 50 CM","Material",null,"UND",1,18,18,{"$f":"VLOOKUP(B340,COTS_,4,FALSE)","v":18},{"$f":"K340-I340","v":0}]
["Insumo"," 00039997 ","SINAPI","PORCA ZINCADA, SEXTAVADA, DIAMETRO 1/4\"","Material",null,"UN",2,0.28999999999999998,0.57999999999999996]
["Insumo","COT.13","Próprio","ARRUELA LISA Ø1/4\"","Material",null,"UND",4,0.26,1.04,{"$f":"VLOOKUP(B342,COTS_,4,FALSE)","v":0.26},{"$f":"K342-I342","v":0}]
[null,null,null,null,"MO sem LS =>",1.96,"LS =>",0,"MO com LS =>",1.96]
[null,null,null,null,"Valor do BDI =>",5.57,null,"Valor com BDI =>",null,27.85]
[]
[" 4.30 ","Código","Banco","Descrição","Tipo",null,"Und","Quant.","Valor Unit","Total"]
["Composição"," 97887 ","SINAPI","CAIXA ENTERRADA ELÉTRICA RETANGULAR, EM ALVENARIA COM TIJOLOS CERÂMICOS MACIÇOS, FUNDO COM BRITA, DIMENSÕES INTERNAS: 0,4X0,4X0,4 M. AF_12/2020","INEL - INSTALAÇÃO ELÉTRICA/ELETRIFICAÇÃO E ILUMINAÇÃO EXTERNA",null,"UN",1,251.47,251.47]
["Composição Auxiliar"," 97734 ","SINAPI","PEÇA RETANGULAR PRÉ-MOLDADA, VOLUME DE CONCRETO DE 10 A 30 LITROS, TAXA DE AÇO APROXIMADA DE 30KG/M³. AF_01/2018","FUES - FUNDAÇÕES E ESTRUTURAS",null,"m³",2.52E-2,2755.56,69.44]
["Composição Auxiliar"," 101619 ","SINAPI","PREPARO DE FUNDO DE VALA COM LARGURA MENOR QUE 1,5 M, COM CAMADA DE BRITA, LANÇAMENTO MANUAL. AF_08/2020","MOVT - MOVIMENTO DE TERRA",null,"m³",4.9000000000000002E-2,247.37,12.12]
["Composição Auxiliar"," 87316 ","SINAPI","ARGAMASSA TRAÇO 1:4 (EM VOLUME DE CIMENTO E AREIA GROSSA ÚMIDA) PARA CHAPISCO CONVENCIONAL, PREPARO MECÂNICO COM BETONEIRA 400 L. AF_08/2019","SEDI - SERVIÇOS DIVERSOS",null,"m³",6.4000000000000003E-3,485.04,3.1]
["Composição Auxiliar"," 100475 ","SINAPI","ARGAMASSA TRAÇO 1:3 (EM VOLUME DE CIMENTO E AREIA MÉDIA ÚMIDA) COM ADIÇÃO DE IMPERMEABILIZANTE, PREPARO MECÂNICO COM BETONEIRA 400 L. AF_08/2019","SEDI - SERVIÇOS DIVERSOS",null,"m³",4.6800000000000001E-2,749.11,35.049999999999997]
["Composição Auxiliar"," 88309 ","SINAPI","PEDREIRO COM ENCARGOS COMPLEMENTARES","SEDI - SERVIÇOS DIVERSOS",null,"H",2.1139999999999999,22.41,47.37]
["Composição Auxiliar"," 88316 ","SINAPI","SERVENTE COM ENCARGOS COMPLEMENTARES","SEDI - SERVIÇOS DIVERSOS",null,"H",1.661,17.82,29.59]
["Insumo"," 00007258 ","SINAPI","TIJOLO CERAMICO MACICO COMUM *5 X 10 X 20* CM (L X A X C)","Material",null,"UN",63.721400000000003,0.86,54.8]
[null,null,null,null,"MO sem LS =>",97.32,"LS =>",0,"MO com LS =>",97.32]
[null,null,null,null,"Valor do BDI =>",62.86,null,"Valor com BDI =>",null,314.33]
[]
[" 4.31 ","Código","Banco","Descrição","Tipo",null,"Und","Quant.","Valor Unit","Total"]
["Composição"," CP-ALV-01 ","Próprio","ABRIGO PARA EQUIPAMENTOS ELÉTRICOS, DIMENSÕES 2,00 X 2,20 X 1,20 M (LXAXP)","PARE - PAREDES/PAINEIS",null,"UND",1,7824.32,7824.32]
["Composição Auxiliar"," 97084 ","SINAPI","COMPACTAÇÃO MECÂNICA DE SOLO PARA EXECUÇÃO DE RADIER, PISO DE CONCRETO OU LAJE SOBRE SOLO, COM COMPACTADOR DE SOLOS TIPO PLACA VIBRATÓRIA. AF_09/2021","FUES - FUNDAÇÕES E ESTRUTURAS",null,"m²",6.6,0.57999999999999996,3.82]
["Composição Auxiliar"," 97102 ","SINAPI","EXECUÇÃO DE RADIER, ESPESSURA DE 15 CM, FCK = 30 MPA, COM USO DE FORMAS EM MADEIRA SERRADA. AF_09/2021","FUES - FUNDAÇÕES E ESTRUTURAS",null,"m²",6.6,265.64999999999998,1753.29]
["Composição Auxiliar"," 89488 ","SINAPI","ALVENARIA DE BLOCOS DE CONCRETO ESTRUTURAL 14X19X29 CM, (ESPESSURA 14 CM) FBK = 14,0 MPA, PARA PAREDES COM ÁREA LÍQUIDA MAIOR OU IGUAL A 6M², COM VÃOS, UTILIZANDO COLHER DE PEDREIRO. AF_12/2014","PARE - PAREDES/PAINEIS",null,"m²",12.65,131.66,1665.49]
["Composição Auxiliar"," 87905 ","SINAPI","CHAPISCO APLICADO EM ALVENARIA (COM PRESENÇA DE VÃOS) E ESTRUTURAS DE CONCRETO DE FACHADA, COM COLHER DE PEDREIRO.  ARGAMASSA TRAÇO 1:3 COM PREPARO EM BETONEIRA 400L. AF_06/2014","REVE - REVESTIMENTO E TRATAMENTO DE SUPERFÍCIES",null,"m²",25.3,7.99,202.14]
["Composição Auxiliar"," 87775 ","SINAPI","EMBOÇO OU MASSA ÚNICA EM ARGAMASSA TRAÇO 1:2:8, PREPARO MECÂNICO COM BETONEIRA 400 L, APLICADA MANUALMENTE EM PANOS DE FACHADA COM PRESENÇA DE VÃOS, ESPESSURA DE 25 MM. AF_06/2014","REVE - REVESTIMENTO E TRATAMENTO DE SUPERFÍCIES",null,"m²",25.3,52.04,1316.61]
["Composição Auxiliar"," 88485 ","SINAPI","APLICAÇÃO DE FUNDO SELADOR ACRÍLICO EM PAREDES, UMA DEMÃO. AF_06/2014","PINT - PINTURAS",null,"m²",23.5,1.99,46.76]
["Composição Auxiliar"," 96131 ","SINAPI","APLICAÇÃO MANUAL DE MASSA ACRÍLICA EM PANOS DE FACHADA COM PRESENÇA DE VÃOS, DE EDIFÍCIOS DE MÚLTIPLOS PAVIMENTOS, DUAS DEMÃOS. AF_05/2017","PINT - PINTURAS",null,"m²",23.5,26.19,615.46]
["Composição Auxiliar"," 88489 ","SINAPI","APLICAÇÃO MANUAL DE PINTURA COM TINTA LÁTEX ACRÍLICA EM PAREDES, DUAS DEMÃOS. AF_06/2014","PINT - PINTURAS",null,"m²",23.5,14.28,335.58]
["Composição Auxiliar"," 91338 ","SINAPI","PORTA DE ALUMÍNIO DE ABRIR COM LAMBRI, COM GUARNIÇÃO, FIXAÇÃO COM PARAFUSOS - FORNECIMENTO E INSTALAÇÃO. AF_12/2019","ESQV - ESQUADRIAS/FERRAGENS/VIDROS",null,"m²",1.68,791.39,1329.53]
["Composição Auxiliar"," 92565 ","SINAPI","FABRICAÇÃO E INSTALAÇÃO DE ESTRUTURA PONTALETADA DE MADEIRA NÃO APARELHADA PARA TELHADOS COM ATÉ 2 ÁGUAS E PARA TELHA CERÂMICA OU DE CONCRETO, INCLUSO TRANSPORTE VERTICAL. AF_12/2015","COBE - COBERTURA",null,"m²",6.6,35.43,233.83]
["Composição Auxiliar"," 94210 ","SINAPI","TELHAMENTO COM TELHA ONDULADA DE FIBROCIMENTO E = 6 MM, COM RECOBRIMENTO LATERAL DE 1 1/4 DE ONDA PARA TELHADO COM INCLINAÇÃO MÁXIMA DE 10°, COM ATÉ 2 ÁGUAS, INCLUSO IÇAMENTO. AF_07/2019","COBE - COBERTURA",null,"m²",6.6,48.76,321.81]
[null,null,null,null,"MO sem LS =>",1738.35,"LS =>",0,"MO com LS =>",1738.35]
[null,null,null,null,"Valor do BDI =>",1956.08,null,"Valor com BDI =>",null,9780.4]
["Observação"]
["Sala de equipamentos em alvenaria, com reboco, cobertura e porta de acesso."]
[]
[" 4.32 ","Código","Banco","Descrição","Tipo",null,"Und","Quant.","Valor Unit","Total"]
["Composição"," 93026 ","SINAPI","CURVA 90 GRAUS PARA ELETRODUTO, PVC, ROSCÁVEL, DN 110 MM (4\"), PARA REDE ENTERRADA DE DISTRIBUIÇÃO DE ENERGIA ELÉTRICA - FORNECIMENTO E INSTALAÇÃO. AF_12/2021","INEL - INSTALAÇÃO ELÉTRICA/ELETRIFICAÇÃO E ILUMINAÇÃO EXTERNA",null,"UN",1,70.66,70.66]
["Composição Auxiliar"," 88264 ","SINAPI","ELETRICISTA COM ENCARGOS COMPLEMENTARES","SEDI - SERVIÇOS DIVERSOS",null,"H",0.63900000000000001,23.24,14.85]
["Composição Auxiliar"," 88247 ","SINAPI","AUXILIAR DE ELETRICISTA COM ENCARGOS COMPLEMENTARES","SEDI - SERVIÇOS DIVERSOS",null,"H",0.63900000000000001,19.2,12.26]
["Insumo"," 00001878 ","SINAPI","CURVA 90 GRAUS, LONGA, DE PVC RIGIDO ROSCAVEL, DE 4\", PARA ELETRODUTO","Material",null,"UN",1,43.55,43.55]
[null,null,null,null,"MO sem LS =>",20.82,"LS =>",0,"MO com LS =>",20.82]
[null,null,null,null,"Valor do BDI =>",17.66,null,"Valor com BDI =>",null,88.32]
[]
[" 5.1 ","Código","Banco","Descrição","Tipo",null,"Und","Quant.","Valor Unit","Total"]
["Composição"," CP-ELE-25 ","Próprio","QUADRO DE COMANDO- CRECHE. FORNECIMENTO E INSTALAÇÃO","INEL - INSTALAÇÃO ELÉTRICA/ELETRIFICAÇÃO E ILUMINAÇÃO EXTERNA",null,"UN",1,4369.6400000000003,4369.6400000000003]
["Composição Auxiliar"," 88264 ","SINAPI","ELETRICISTA COM ENCARGOS COMPLEMENTARES","SEDI - SERVIÇOS DIVERSOS",null,"H",5.62,23.24,130.6]
["Composição Auxiliar"," 88247 ","SINAPI","AUXILIAR DE ELETRICISTA COM ENCARGOS COMPLEMENTARES","SEDI - SERVIÇOS DIVERSOS",null,"H",5.9009999999999998,19.2,113.29]
["Insumo"," 00039469 ","SINAPI","DISPOSITIVO DPS CLASSE II, 1 POLO, TENSAO MAXIMA DE 275 V, CORRENTE MAXIMA DE *20* KA (TIPO AC)","Material",null,"UN",4,78.19,312.76]
["Insumo","COT.20","Próprio","ACRILICO PORTEÇÃO PARA QUARDO DISTRIBUIÇÃO 2000 X 1000 X3 MM","Material",null,"UN",1,657.14,657.14,{"$f":"VLOOKUP(B389,COTS_,4,FALSE)","v":657.14},{"$f":"K389-I389","v":0}]
["Insumo","COT.21","Próprio","QUADRO DE COMANDO 800 X800 X 250 MM - COMPLETO COM CHAPA DE MONTAGEM","Material",null,"UN",1,1381.32,1381.32,1381.32,0]
["Insumo","COT.22","Próprio","BARRAMENTO DE COBRE 20X300 MM - TERRA/NEUTRO","Material",null,"UN",5,63.69,318.45,63.69,0]
["Insumo","COT.15","Próprio","PARAFUSO SEXTAVADA BICROMATIZADO 1/4 x 1/2''","Material",null,"UN",16,1.05,16.8,1.05,0]
["Insumo","COT.14","Próprio","PORCA SEXTAVADA BICROMATIZADO 3/16''","Material",null,"UND",16,0.2,3.2,0.2,0]
["Insumo","COT.16","Próprio","ARRUELA LISA 3/16''","Material",null,"UN",16,0.32,5.12,0.32,0]
["Insumo","COT.17","Próprio","ISOLADOR EPOXI DIAMETRO 20MM COMPRIMENTO 20MM PARAFUSO 1/4","Material",null,"UND",16,7.73,123.68,7.73,0]
["Insumo","COT.18","Próprio","DISJUNTOR CAIXA MOLDADA TRIPOLAR 70A","Material",null,"UN",1,214.92,214.92,214.92,0]
["Insumo","COT.24","Próprio","DISJUNTOR CAIXA MOLDADA TRIPOLAR 150A","Material",null,"UND",1,350,350,350,0]
["Insumo","COT.25","Próprio","DISJUNTOR CAIXA MOLDADA TRIPOLAR 200A","Material",null,"UN",1,370.95,370.95,370.95,0]
["Insumo","COT.19","Próprio","DISJUNTOR CAIXA MOLDADA TRIPOLAR 225A","Material",null,"UN",1,371.41,371.41,371.41,0]
[null,null,null,null,"MO sem LS =>",187.21,"LS =>",0,"MO com LS =>",187.21]
[null,null,null,null,"Valor do BDI =>",1092.4100000000001,null,"Valor com BDI =>",null,5462.05]
[]
["Composições Auxiliares"]
[null,"Código","Banco","Descrição","Tipo",null,"Und","Quant.","Valor Unit","Total"]
["Composição"," 88238 ","SINAPI","AJUDANTE DE ARMADOR COM ENCARGOS COMPLEMENTARES","SEDI - SERVIÇOS DIVERSOS",null,"H",1,17.82,17.82]
["Composição Auxiliar"," 95308 ","SINAPI","CURSO DE CAPACITAÇÃO PARA AJUDANTE DE ARMADOR (ENCARGOS COMPLEMENTARES) - HORISTA","SEDI - SERVIÇOS DIVERSOS",null,"H",1,0.12,0.12]
["Insumo"," 00037370 ","SINAPI","ALIMENTACAO - HORISTA (COLETADO CAIXA)","Outros",null,"H",1,1.52,1.52]
["Insumo"," 00006114 ","SINAPI","AJUDANTE DE ARMADOR (HORISTA)","Mão de Obra",null,"H",1,12.8,12.8]
["Insumo"," 00043489 ","SINAPI","EPI - FAMILIA PEDREIRO - HORISTA (ENCARGOS COMPLEMENTARES - COLETADO CAIXA)","Equipamento",null,"H",1,1.0900000000000001,1.0900000000000001]
["Insumo"," 00037372 ","SINAPI","EXAMES - HORISTA (COLETADO CAIXA)","Outros",null,"H",1,0.81,0.81]
["Insumo"," 00043465 ","SINAPI","FERRAMENTAS - FAMILIA PEDREIRO - HORISTA (ENCARGOS COMPLEMENTARES - COLETADO CAIXA)","Equipamento",null,"H",1,0.74,0.74]
["Insumo"," 00037373 ","SINAPI","SEGURO - HORISTA (COLETADO CAIXA)","Taxas",null,"H",1,0.06,0.06]
["Insumo"," 00037371 ","SINAPI","TRANSPORTE - HORISTA (COLETADO CAIXA)","Serviços",null,"H",1,0.68,0.68]
[null,null,null,null,"MO sem LS =>",12.92,"LS =>",0,"MO com LS =>",12.92]
[null,null,null,null,"Valor do BDI =>",4.45,null,"Valor com BDI =>",null,22.27]
[]
[null,"Código","Banco","Descrição","Tipo",null,"Und","Quant.","Valor Unit","Total"]
["Composição"," 88239 ","SINAPI","AJUDANTE DE CARPINTEIRO COM ENCARGOS COMPLEMENTARES","SEDI - SERVIÇOS DIVERSOS",null,"H",1,18.79,18.79]
["Composição Auxiliar"," 95309 ","SINAPI","CURSO DE CAPACITAÇÃO PARA AJUDANTE DE CARPINTEIRO (ENCARGOS COMPLEMENTARES) - HORISTA","SEDI - SERVIÇOS DIVERSOS",null,"H",1,0.16,0.16]
["Insumo"," 00037370 ","SINAPI","ALIMENTACAO - HORISTA (COLETADO CAIXA)","Outros",null,"H",1,1.52,1.52]
["Insumo"," 00006117 ","SINAPI","CARPINTEIRO AUXILIAR (HORISTA)","Mão de Obra",null,"H",1,13.85,13.85]
["Insumo"," 00043483 ","SINAPI","EPI - FAMILIA CARPINTEIRO DE FORMAS - HORISTA (ENCARGOS COMPLEMENTARES - COLETADO CAIXA)","Equipamento",null,"H",1,1.26,1.26]
["Insumo"," 00037372 ","SINAPI","EXAMES - HORISTA (COLETADO CAIXA)","Outros",null,"H",1,0.81,0.81]
["Insumo"," 00043459 ","SINAPI","FERRAMENTAS - FAMILIA CARPINTEIRO DE FORMAS - HORISTA (ENCARGOS COMPLEMENTARES - COLETADO CAIXA)","Equipamento",null,"H",1,0.45,0.45]
["Insumo"," 00037373 ","SINAPI","SEGURO - HORISTA (COLETADO CAIXA)","Taxas",null,"H",1,0.06,0.06]
["Insumo"," 00037371 ","SINAPI","TRANSPORTE - HORISTA (COLETADO CAIXA)","Serviços",null,"H",1,0.68,0.68]
[null,null,null,null,"MO sem LS =>",14.01,"LS =>",0,"MO com LS =>",14.01]
[null,null,null,null,"Valor do BDI =>",4.6900000000000004,null,"Valor com BDI =>",null,23.48]
[]
[null,"Código","Banco","Descrição","Tipo",null,"Und","Quant.","Valor Unit","Total"]
["Composição"," 88240 ","SINAPI","AJUDANTE DE ESTRUTURA METÁLICA COM ENCARGOS COMPLEMENTARES","SEDI - SERVIÇOS DIVERSOS",null,"H",1,13.11,13.11]
["Composição Auxiliar"," 95310 ","SINAPI","CURSO DE CAPACITAÇÃO PARA AJUDANTE DE ESTRUTURA METÁLICA (ENCARGOS COMPLEMENTARES) - HORISTA","SEDI - SERVIÇOS DIVERSOS",null,"H",1,0.08,0.08]
["Insumo"," 00044499 ","SINAPI","AJUDANTE DE ESTRUTURAS METALICAS HORISTA","Mão de Obra",null,"H",1,9.19,9.19]
["Insumo"," 00037370 ","SINAPI","ALIMENTACAO - HORISTA (COLETADO CAIXA)","Outros",null,"H",1,1.52,1.52]
["Insumo"," 00043488 ","SINAPI","EPI - FAMILIA OPERADOR ESCAVADEIRA - HORISTA (ENCARGOS COMPLEMENTARES - COLETADO CAIXA)","Equipamento",null,"H",1,0.76,0.76]
["Insumo"," 00037372 ","SINAPI","EXAMES - HORISTA (COLETADO CAIXA)","Outros",null,"H",1,0.81,0.81]
["Insumo"," 00043464 ","SINAPI","FERRAMENTAS - FAMILIA OPERADOR ESCAVADEIRA - HORISTA (ENCARGOS COMPLEMENTARES - COLETADO CAIXA)","Equipamento",null,"H",1,0.01,0.01]
["Insumo"," 00037373 ","SINAPI","SEGURO - HORISTA (COLETADO CAIXA)","Taxas",null,"H",1,0.06,0.06]
["Insumo"," 00037371 ","SINAPI","TRANSPORTE - HORISTA (COLETADO CAIXA)","Serviços",null,"H",1,0.68,0.68]
[null,null,null,null,"MO sem LS =>",9.27,"LS =>",0,"MO com LS =>",9.27]
[null,null,null,null,"Valor do BDI =>",3.27,null,"Valor com BDI =>",null,16.38]
[]
[null,"Código","Banco","Descrição","Tipo",null,"Und","Quant.","Valor Unit","Total"]
["Composição"," 89488 ","SINAPI","ALVENARIA DE BLOCOS DE CONCRETO ESTRUTURAL 14X19X29 CM, (ESPESSURA 14 CM) FBK = 14,0 MPA, PARA PAREDES COM ÁREA LÍQUIDA MAIOR OU IGUAL A 6M², COM VÃOS, UTILIZANDO COLHER DE PEDREIRO. AF_12/2014","PARE - PAREDES/PAINEIS",null,"m²",1,131.66,131.66]
["Composição Auxiliar"," 88626 ","SINAPI","ARGAMASSA TRAÇO 1:0,5:4,5 (EM VOLUME DE CIMENTO, CAL E AREIA MÉDIA ÚMIDA), PREPARO MECÂNICO COM BETONEIRA 400 L. AF_08/2019","SEDI - SERVIÇOS DIVERSOS",null,"m³",1.8200000000000001E-2,547.79999999999995,9.9600000000000009]
["Composição Auxiliar"," 88309 ","SINAPI","PEDREIRO COM ENCARGOS COMPLEMENTARES","SEDI - SERVIÇOS DIVERSOS",null,"H",1.1000000000000001,22.41,24.65]
["Composição Auxiliar"," 88316 ","SINAPI","SERVENTE COM ENCARGOS COMPLEMENTARES","SEDI - SERVIÇOS DIVERSOS",null,"H",0.83,17.82,14.79]
["Insumo"," 00034564 ","SINAPI","BLOCO DE CONCRETO ESTRUTURAL 14 X 19 X 29 CM, FBK 14 MPA (NBR 6136)","Material",null,"UN",13.61,4.5199999999999996,61.51]
["Insumo"," 00038599 ","SINAPI","CANALETA DE CONCRETO ESTRUTURAL 14 X 19 X 29 CM, FBK 14 MPA (NBR 6136)","Material",null,"UN",2.77,5.27,14.59]
["Insumo"," 00038592 ","SINAPI","MEIO BLOCO DE CONCRETO ESTRUTURAL 14 X 19 X 14 CM, FBK 14 MPA (NBR 6136)","Material",null,"UN",1.38,2.66,3.67]
["Insumo"," 00034547 ","SINAPI","TELA DE ACO SOLDADA GALVANIZADA/ZINCADA PARA ALVENARIA, FIO  D = *1,20 A 1,70* MM, MALHA 15 X 15 MM, (C X L) *50 X 12* CM","Material",null,"M",0.39500000000000002,6.32,2.4900000000000002]
[null,null,null,null,"MO sem LS =>",30.95,"LS =>",0,"MO com LS =>",30.95]
[null,null,null,null,"Valor do BDI =>",32.909999999999997,null,"Valor com BDI =>",null,164.57]
[]
[null,"Código","Banco","Descrição","Tipo",null,"Und","Quant.","Valor Unit","Total"]
["Composição"," 88485 ","SINAPI","APLICAÇÃO DE FUNDO SELADOR ACRÍLICO EM PAREDES, UMA DEMÃO. AF_06/2014","PINT - PINTURAS",null,"m²",1,1.99,1.99]
["Composição Auxiliar"," 88316 ","SINAPI","SERVENTE COM ENCARGOS COMPLEMENTARES","SEDI - SERVIÇOS DIVERSOS",null,"H",1.4E-2,17.82,0.24]
["Composição Auxiliar"," 88310 ","SINAPI","PINTOR COM ENCARGOS COMPLEMENTARES","SEDI - SERVIÇOS DIVERSOS",null,"H",3.9E-2,23.47,0.91]
["Insumo"," 00006085 ","SINAPI","SELADOR ACRILICO OPACO PREMIUM INTERIOR/EXTERIOR","Material",null,"L",0.16,5.28,0.84]
[null,null,null,null,"MO sem LS =>",0.85,"LS =>",0,"MO com LS =>",0.85]
[null,null,null,null,"Valor do BDI =>",0.49,null,"Valor com BDI =>",null,2.48]
[]
[null,"Código","Banco","Descrição","Tipo",null,"Und","Quant.","Valor Unit","Total"]
["Composição"," 96131 ","SINAPI","APLICAÇÃO MANUAL DE MASSA ACRÍLICA EM PANOS DE FACHADA COM PRESENÇA DE VÃOS, DE EDIFÍCIOS DE MÚLTIPLOS PAVIMENTOS, DUAS DEMÃOS. AF_05/2017","PINT - PINTURAS",null,"m²",1,26.19,26.19]
["Composição Auxiliar"," 88316 ","SINAPI","SERVENTE COM ENCARGOS COMPLEMENTARES","SEDI - SERVIÇOS DIVERSOS",null,"H",0.128,17.82,2.2799999999999998]
["Composição Auxiliar"," 88310 ","SINAPI","PINTOR COM ENCARGOS COMPLEMENTARES","SEDI - SERVIÇOS DIVERSOS",null,"H",0.51400000000000001,23.47,12.06]
["Insumo"," 00003767 ","SINAPI","LIXA EM FOLHA PARA PAREDE OU MADEIRA, NUMERO 120, COR VERMELHA","Material",null,"UN",0.1,1.42,0.14000000000000001]
["Insumo"," 00043651 ","SINAPI","MASSA ACRILICA PARA SUPERFICIES INTERNAS E EXTERNAS","Material",null,"KG",1.5518400000000001,7.55,11.71]
[null,null,null,null,"MO sem LS =>",10.61,"LS =>",0,"MO com LS =>",10.61]
[null,null,null,null,"Valor do BDI =>",6.54,null,"Valor com BDI =>",null,32.729999999999997]
[]
[null,"Código","Banco","Descrição","Tipo",null,"Und","Quant.","Valor Unit","Total"]
["Composição"," 88489 ","SINAPI","APLICAÇÃO MANUAL DE PINTURA COM TINTA LÁTEX ACRÍLICA EM PAREDES, DUAS DEMÃOS. AF_06/2014","PINT - PINTURAS",null,"m²",1,14.28,14.28]
["Composição Auxiliar"," 88316 ","SINAPI","SERVENTE COM ENCARGOS COMPLEMENTARES","SEDI - SERVIÇOS DIVERSOS",null,"H",6.9000000000000006E-2,17.82,1.22]
["Composição Auxiliar"," 88310 ","SINAPI","PINTOR COM ENCARGOS COMPLEMENTARES","SEDI - SERVIÇOS DIVERSOS",null,"H",0.187,23.47,4.38]
["Insumo"," 00007356 ","SINAPI","TINTA LATEX ACRILICA PREMIUM, COR BRANCO FOSCO","Material",null,"L",0.33,26.31,8.68]
[null,null,null,null,"MO sem LS =>",4.1399999999999997,"LS =>",0,"MO com LS =>",4.1399999999999997]
[null,null,null,null,"Valor do BDI =>",3.57,null,"Valor com BDI =>",null,17.850000000000001]
[]
[null,"Código","Banco","Descrição","Tipo",null,"Und","Quant.","Valor Unit","Total"]
["Composição"," 88626 ","SINAPI","ARGAMASSA TRAÇO 1:0,5:4,5 (EM VOLUME DE CIMENTO, CAL E AREIA MÉDIA ÚMIDA), PREPARO MECÂNICO COM BETONEIRA 400 L. AF_08/2019","SEDI - SERVIÇOS DIVERSOS",null,"m³",1,547.79999999999995,547.79999999999995]
["Composição Auxiliar"," 88831 ","SINAPI","BETONEIRA CAPACIDADE NOMINAL DE 400 L, CAPACIDADE DE MISTURA 280 L, MOTOR ELÉTRICO TRIFÁSICO POTÊNCIA DE 2 CV, SEM CARREGADOR - CHI DIURNO. AF_10/2014","CHOR - CUSTOS HORÁRIOS DE MÁQUINAS E EQUIPAMENTOS",null,"CHI",2.98,0.39,1.1599999999999999]
["Composição Auxiliar"," 88830 ","SINAPI","BETONEIRA CAPACIDADE NOMINAL DE 400 L, CAPACIDADE DE MISTURA 280 L, MOTOR ELÉTRICO TRIFÁSICO POTÊNCIA DE 2 CV, SEM CARREGADOR - CHP DIURNO. AF_10/2014","CHOR - CUSTOS HORÁRIOS DE MÁQUINAS E EQUIPAMENTOS",null,"CHP",0.9,1.91,1.71]
["Composição Auxiliar"," 88377 ","SINAPI","OPERADOR DE BETONEIRA ESTACIONÁRIA/MISTURADOR COM ENCARGOS COMPLEMENTARES","SEDI - SERVIÇOS DIVERSOS",null,"H",3.88,16.22,62.93]
["Insumo"," 00000370 ","SINAPI","AREIA MEDIA - POSTO JAZIDA/FORNECEDOR (RETIRADO NA JAZIDA, SEM TRANSPORTE)","Material",null,"m³",1.1299999999999999,114,128.82]
["Insumo"," 00001106 ","SINAPI","CAL HIDRATADA CH-I PARA ARGAMASSAS","Material",null,"KG",75.47,0.9,67.92]
["Insumo"," 00001379 ","SINAPI","CIMENTO PORTLAND COMPOSTO CP II-32","Material",null,"KG",339.6,0.84,285.26]
[null,null,null,null,"MO sem LS =>",48.03,"LS =>",0,"MO com LS =>",48.03]
[null,null,null,null,"Valor do BDI =>",136.94999999999999,null,"Valor com BDI =>",null,684.75]
[]
[null,"Código","Banco","Descrição","Tipo",null,"Und","Quant.","Valor Unit","Total"]
["Composição"," 87292 ","SINAPI","ARGAMASSA TRAÇO 1:2:8 (EM VOLUME DE CIMENTO, CAL E AREIA MÉDIA ÚMIDA) PARA EMBOÇO/MASSA ÚNICA/ASSENTAMENTO DE ALVENARIA DE VEDAÇÃO, PREPARO MECÂNICO COM BETONEIRA 400 L. AF_08/2019","SEDI - SERVIÇOS DIVERSOS",null,"m³",1,529.78,529.78]
["Composição Auxiliar"," 88830 ","SINAPI","BETONEIRA CAPACIDADE NOMINAL DE 400 L, CAPACIDADE DE MISTURA 280 L, MOTOR ELÉTRICO TRIFÁSICO POTÊNCIA DE 2 CV, SEM CARREGADOR - CHP DIURNO. AF_10/2014","CHOR - CUSTOS HORÁRIOS DE MÁQUINAS E EQUIPAMENTOS",null,"CHP",1.05,1.91,2]
["Composição Auxiliar"," 88831 ","SINAPI","BETONEIRA CAPACIDADE NOMINAL DE 400 L, CAPACIDADE DE MISTURA 280 L, MOTOR ELÉTRICO TRIFÁSICO POTÊNCIA DE 2 CV, SEM CARREGADOR - CHI DIURNO. AF_10/2014","CHOR - CUSTOS HORÁRIOS DE MÁQUINAS E EQUIPAMENTOS",null,"CHI",3.45,0.39,1.34]
["Composição Auxiliar"," 88377 ","SINAPI","OPERADOR DE BETONEIRA ESTACIONÁRIA/MISTURADOR COM ENCARGOS COMPLEMENTARES","SEDI - SERVIÇOS DIVERSOS",null,"H",4.5,16.22,72.989999999999995]
["Insumo"," 00000370 ","SINAPI","AREIA MEDIA - POSTO JAZIDA/FORNECEDOR (RETIRADO NA JAZIDA, SEM TRANSPORTE)","Material",null,"m³",1.1599999999999999,114,132.24]
["Insumo"," 00001106 ","SINAPI","CAL HIDRATADA CH-I PARA ARGAMASSAS","Material",null,"KG",174.1,0.9,156.69]
["Insumo"," 00001379 ","SINAPI","CIMENTO PORTLAND COMPOSTO CP II-32","Material",null,"KG",195.86,0.84,164.52]
[null,null,null,null,"MO sem LS =>",55.71,"LS =>",0,"MO com LS =>",55.71]
[null,null,null,null,"Valor do BDI =>",132.44,null,"Valor com BDI =>",null,662.22]
[]
[null,"Código","Banco","Descrição","Tipo",null,"Und","Quant.","Valor Unit","Total"]
["Composição"," 87313 ","SINAPI","ARGAMASSA TRAÇO 1:3 (EM VOLUME DE CIMENTO E AREIA GROSSA ÚMIDA) PARA CHAPISCO CONVENCIONAL, PREPARO MECÂNICO COM BETONEIRA 400 L. AF_08/2019","SEDI - SERVIÇOS DIVERSOS",null,"m³",1,541.24,541.24]
["Composição Auxiliar"," 88831 ","SINAPI","BETONEIRA CAPACIDADE NOMINAL DE 400 L, CAPACIDADE DE MISTURA 280 L, MOTOR ELÉTRICO TRIFÁSICO POTÊNCIA DE 2 CV, SEM CARREGADOR - CHI DIURNO. AF_10/2014","CHOR - CUSTOS HORÁRIOS DE MÁQUINAS E EQUIPAMENTOS",null,"CHI",3.31,0.39,1.29]
["Composição Auxiliar"," 88830 ","SINAPI","BETONEIRA CAPACIDADE NOMINAL DE 400 L, CAPACIDADE DE MISTURA 280 L, MOTOR ELÉTRICO TRIFÁSICO POTÊNCIA DE 2 CV, SEM CARREGADOR - CHP DIURNO. AF_10/2014","CHOR - CUSTOS HORÁRIOS DE MÁQUINAS E EQUIPAMENTOS",null,"CHP",1.01,1.91,1.92]
["Composição Auxiliar"," 88377 ","SINAPI","OPERADOR DE BETONEIRA ESTACIONÁRIA/MISTURADOR COM ENCARGOS COMPLEMENTARES","SEDI - SERVIÇOS DIVERSOS",null,"H",4.32,16.22,70.069999999999993]
["Insumo"," 00000367 ","SINAPI","AREIA GROSSA - POSTO JAZIDA/FORNECEDOR (RETIRADO NA JAZIDA, SEM TRANSPORTE)","Material",null,"m³",0.95,115.49,109.71]
["Insumo"," 00001379 ","SINAPI","CIMENTO PORTLAND COMPOSTO CP II-32","Material",null,"KG",426.49,0.84,358.25]
[null,null,null,null,"MO sem LS =>",53.48,"LS =>",0,"MO com LS =>",53.48]
[null,null,null,null,"Valor do BDI =>",135.31,null,"Valor com BDI =>",null,676.55]
[]
[null,"Código","Banco","Descrição","Tipo",null,"Und","Quant.","Valor Unit","Total"]
["Composição"," 100475 ","SINAPI","ARGAMASSA TRAÇO 1:3 (EM VOLUME DE CIMENTO E AREIA MÉDIA ÚMIDA) COM ADIÇÃO DE IMPERMEABILIZANTE, PREPARO MECÂNICO COM BETONEIRA 400 L. AF_08/2019","SEDI - SERVIÇOS DIVERSOS",null,"m³",1,749.11,749.11]
["Composição Auxiliar"," 88830 ","SINAPI","BETONEIRA CAPACIDADE NOMINAL DE 400 L, CAPACIDADE DE MISTURA 280 L, MOTOR ELÉTRICO TRIFÁSICO POTÊNCIA DE 2 CV, SEM CARREGADOR - CHP DIURNO. AF_10/2014","CHOR - CUSTOS HORÁRIOS DE MÁQUINAS E EQUIPAMENTOS",null,"CHP",0.87,1.91,1.66]
["Composição Auxiliar"," 88831 ","SINAPI","BETONEIRA CAPACIDADE NOMINAL DE 400 L, CAPACIDADE DE MISTURA 280 L, MOTOR ELÉTRICO TRIFÁSICO POTÊNCIA DE 2 CV, SEM CARREGADOR - CHI DIURNO. AF_10/2014","CHOR - CUSTOS HORÁRIOS DE MÁQUINAS E EQUIPAMENTOS",null,"CHI",2.88,0.39,1.1200000000000001]
["Composição Auxiliar"," 88377 ","SINAPI","OPERADOR DE BETONEIRA ESTACIONÁRIA/MISTURADOR COM ENCARGOS COMPLEMENTARES","SEDI - SERVIÇOS DIVERSOS",null,"H",3.75,16.22,60.82]
["Insumo"," 00000123 ","SINAPI","ADITIVO IMPERMEABILIZANTE DE PEGA NORMAL PARA ARGAMASSAS E CONCRETOS SEM ARMACAO, LIQUIDO E ISENTO DE CLORETOS","Material",null,"L",19.440000000000001,7.93,154.15]
["Insumo"," 00000370 ","SINAPI","AREIA MEDIA - POSTO JAZIDA/FORNECEDOR (RETIRADO NA JAZIDA, SEM TRANSPORTE)","Material",null,"m³",1.08,114,123.12]
["Insumo"," 00001379 ","SINAPI","CIMENTO PORTLAND COMPOSTO CP II-32","Material",null,"KG",486,0.84,408.24]
[null,null,null,null,"MO sem LS =>",46.42,"LS =>",0,"MO com LS =>",46.42]
[null,null,null,null,"Valor do BDI =>",187.27,null,"Valor com BDI =>",null,936.38]
[]
[null,"Código","Banco","Descrição","Tipo",null,"Und","Quant.","Valor Unit","Total"]
["Composição"," 87316 ","SINAPI","ARGAMASSA TRAÇO 1:4 (EM VOLUME DE CIMENTO E AREIA GROSSA ÚMIDA) PARA CHAPISCO CONVENCIONAL, PREPARO MECÂNICO COM BETONEIRA 400 L. AF_08/2019","SEDI - SERVIÇOS DIVERSOS",null,"m³",1,485.04,485.04]
["Composição Auxiliar"," 88830 ","SINAPI","BETONEIRA CAPACIDADE NOMINAL DE 400 L, CAPACIDADE DE MISTURA 280 L, MOTOR ELÉTRICO TRIFÁSICO POTÊNCIA DE 2 CV, SEM CARREGADOR - CHP DIURNO. AF_10/2014","CHOR - CUSTOS HORÁRIOS DE MÁQUINAS E EQUIPAMENTOS",null,"CHP",1.08,1.91,2.06]
["Composição Auxiliar"," 88831 ","SINAPI","BETONEIRA CAPACIDADE NOMINAL DE 400 L, CAPACIDADE DE MISTURA 280 L, MOTOR ELÉTRICO TRIFÁSICO POTÊNCIA DE 2 CV, SEM CARREGADOR - CHI DIURNO. AF_10/2014","CHOR - CUSTOS HORÁRIOS DE MÁQUINAS E EQUIPAMENTOS",null,"CHI",3.56,0.39,1.38]
["Composição Auxiliar"," 88377 ","SINAPI","OPERADOR DE BETONEIRA ESTACIONÁRIA/MISTURADOR COM ENCARGOS COMPLEMENTARES","SEDI - SERVIÇOS DIVERSOS",null,"H",4.6399999999999997,16.22,75.260000000000005]
["Insumo"," 00000367 ","SINAPI","AREIA GROSSA - POSTO JAZIDA/FORNECEDOR (RETIRADO NA JAZIDA, SEM TRANSPORTE)","Material",null,"m³",1.02,115.49,117.79]
["Insumo"," 00001379 ","SINAPI","CIMENTO PORTLAND COMPOSTO CP II-32","Material",null,"KG",343.52,0.84,288.55]
[null,null,null,null,"MO sem LS =>",57.44,"LS =>",0,"MO com LS =>",57.44]
[null,null,null,null,"Valor do BDI =>",121.26,null,"Valor com BDI =>",null,606.29999999999995]
[]
[null,"Código","Banco","Descrição","Tipo",null,"Und","Quant.","Valor Unit","Total"]
["Composição"," 88245 ","SINAPI","ARMADOR COM ENCARGOS COMPLEMENTARES","SEDI - SERVIÇOS DIVERSOS",null,"H",1,22.28,22.28]
["Composição Auxiliar"," 95314 ","SINAPI","CURSO DE CAPACITAÇÃO PARA ARMADOR (ENCARGOS COMPLEMENTARES) - HORISTA","SEDI - SERVIÇOS DIVERSOS",null,"H",1,0.16,0.16]
["Insumo"," 00037370 ","SINAPI","ALIMENTACAO - HORISTA (COLETADO CAIXA)","Outros",null,"H",1,1.52,1.52]
["Insumo"," 00000378 ","SINAPI","ARMADOR (HORISTA)","Mão de Obra",null,"H",1,17.22,17.22]
["Insumo"," 00043489 ","SINAPI","EPI - FAMILIA PEDREIRO - HORISTA (ENCARGOS COMPLEMENTARES - COLETADO CAIXA)","Equipamento",null,"H",1,1.0900000000000001,1.0900000000000001]
["Insumo"," 00037372 ","SINAPI","EXAMES - HORISTA (COLETADO CAIXA)","Outros",null,"H",1,0.81,0.81]
["Insumo"," 00043465 ","SINAPI","FERRAMENTAS - FAMILIA PEDREIRO - HORISTA (ENCARGOS COMPLEMENTARES - COLETADO CAIXA)","Equipamento",null,"H",1,0.74,0.74]
["Insumo"," 00037373 ","SINAPI","SEGURO - HORISTA (COLETADO CAIXA)","Taxas",null,"H",1,0.06,0.06]
["Insumo"," 00037371 ","SINAPI","TRANSPORTE - HORISTA (COLETADO CAIXA)","Serviços",null,"H",1,0.68,0.68]
[null,null,null,null,"MO sem LS =>",17.38,"LS =>",0,"MO com LS =>",17.38]
[null,null,null,null,"Valor do BDI =>",5.57,null,"Valor com BDI =>",null,27.85]
[]
[null,"Código","Banco","Descrição","Tipo",null,"Und","Quant.","Valor Unit","Total"]
["Composição"," 92767 ","SINAPI","ARMAÇÃO DE LAJE DE ESTRUTURA CONVENCIONAL DE CONCRETO ARMADO UTILIZANDO AÇO CA-60 DE 4,2 MM - MONTAGEM. AF_06/2022","FUES - FUNDAÇÕES E ESTRUTURAS",null,"KG",1,18.739999999999998,18.739999999999998]
["Composição Auxiliar"," 92799 ","SINAPI","CORTE E DOBRA DE AÇO CA-60, DIÂMETRO DE 4,2 MM. AF_06/2022","FUES - FUNDAÇÕES E ESTRUTURAS",null,"KG",1,14.92,14.92]
["Composição Auxiliar"," 88245 ","SINAPI","ARMADOR COM ENCARGOS COMPLEMENTARES","SEDI - SERVIÇOS DIVERSOS",null,"H",0.1055,22.28,2.35]
["Composição Auxiliar"," 88238 ","SINAPI","AJUDANTE DE ARMADOR COM ENCARGOS COMPLEMENTARES","SEDI - SERVIÇOS DIVERSOS",null,"H",1.72E-2,17.82,0.3]
["Insumo"," 00043132 ","SINAPI","ARAME RECOZIDO 16 BWG, D = 1,65 MM (0,016 KG/M) OU 18 BWG, D = 1,25 MM (0,01 KG/M)","Material",null,"KG",2.5000000000000001E-2,22.45,0.56000000000000005]
["Insumo"," 00039017 ","SINAPI","ESPACADOR / DISTANCIADOR CIRCULAR COM ENTRADA LATERAL, EM PLASTICO, PARA VERGALHAO *4,2 A 12,5* MM, COBRIMENTO 20 MM","Material",null,"UN",2.8159999999999998,0.22,0.61]
[null,null,null,null,"MO sem LS =>",3.86,"LS =>",0,"MO com LS =>",3.86]
[null,null,null,null,"Valor do BDI =>",4.68,null,"Valor com BDI =>",null,23.42]
[]
[null,"Código","Banco","Descrição","Tipo",null,"Und","Quant.","Valor Unit","Total"]
["Composição"," 97090 ","SINAPI","ARMAÇÃO PARA EXECUÇÃO DE RADIER, PISO DE CONCRETO OU LAJE SOBRE SOLO, COM USO DE TELA Q-138. AF_09/2021","FUES - FUNDAÇÕES E ESTRUTURAS",null,"KG",1,23.26,23.26]
["Composição Auxiliar"," 88245 ","SINAPI","ARMADOR COM ENCARGOS COMPLEMENTARES","SEDI - SERVIÇOS DIVERSOS",null,"H",3.1E-2,22.28,0.69]
["Composição Auxiliar"," 88238 ","SINAPI","AJUDANTE DE ARMADOR COM ENCARGOS COMPLEMENTARES","SEDI - SERVIÇOS DIVERSOS",null,"H",1.0999999999999999E-2,17.82,0.19]
["Insumo"," 00043132 ","SINAPI","ARAME RECOZIDO 16 BWG, D = 1,65 MM (0,016 KG/M) OU 18 BWG, D = 1,25 MM (0,01 KG/M)","Material",null,"KG",1.0999999999999999E-2,22.45,0.24]
["Insumo"," 00007155 ","SINAPI","TELA DE ACO SOLDADA NERVURADA, CA-60, Q-138, (2,20 KG/M2), DIAMETRO DO FIO = 4,2 MM, LARGURA = 2,45 M, ESPACAMENTO DA MALHA = 10  X 10 CM","Material",null,"m²",0.55500000000000005,31.46,17.46]
["Insumo"," 00042407 ","SINAPI","TRELICA NERVURADA (ESPACADOR), ALTURA = 120,0 MM, DIAMETRO DOS BANZOS INFERIORES E SUPERIOR = 6,0 MM, DIAMETRO DA DIAGONAL = 4,2 MM","Material",null,"M",0.45500000000000002,10.3,4.68]
[null,null,null,null,"MO sem LS =>",0.67,"LS =>",0,"MO com LS =>",0.67]
[null,null,null,null,"Valor do BDI =>",5.81,null,"Valor com BDI =>",null,29.07]
[]
[null,"Código","Banco","Descrição","Tipo",null,"Und","Quant.","Valor Unit","Total"]
["Composição"," 88247 ","SINAPI","AUXILIAR DE ELETRICISTA COM ENCARGOS COMPLEMENTARES","SEDI - SERVIÇOS DIVERSOS",null,"H",1,19.2,19.2]
["Composição Auxiliar"," 95316 ","SINAPI","CURSO DE CAPACITAÇÃO PARA AUXILIAR DE ELETRICISTA (ENCARGOS COMPLEMENTARES) - HORISTA","SEDI - SERVIÇOS DIVERSOS",null,"H",1,0.41,0.41]
["Insumo"," 00000247 ","SINAPI","AJUDANTE DE ELETRICISTA (HORISTA)","Mão de Obra",null,"H",1,13.87,13.87]
["Insumo"," 00037370 ","SINAPI","ALIMENTACAO - HORISTA (COLETADO CAIXA)","Outros",null,"H",1,1.52,1.52]
["Insumo"," 00043484 ","SINAPI","EPI - FAMILIA ELETRICISTA - HORISTA (ENCARGOS COMPLEMENTARES - COLETADO CAIXA)","Equipamento",null,"H",1,1.07,1.07]
["Insumo"," 00037372 ","SINAPI","EXAMES - HORISTA (COLETADO CAIXA)","Outros",null,"H",1,0.81,0.81]
["Insumo"," 00043460 ","SINAPI","FERRAMENTAS - FAMILIA ELETRICISTA - HORISTA (ENCARGOS COMPLEMENTARES - COLETADO CAIXA)","Equipamento",null,"H",1,0.78,0.78]
["Insumo"," 00037373 ","SINAPI","SEGURO - HORISTA (COLETADO CAIXA)","Taxas",null,"H",1,0.06,0.06]
["Insumo"," 00037371 ","SINAPI","TRANSPORTE - HORISTA (COLETADO CAIXA)","Serviços",null,"H",1,0.68,0.68]
[null,null,null,null,"MO sem LS =>",14.28,"LS =>",0,"MO com LS =>",14.28]
[null,null,null,null,"Valor do BDI =>",4.8,null,"Valor com BDI =>",null,24]
[]
[null,"Código","Banco","Descrição","Tipo",null,"Und","Quant.","Valor Unit","Total"]
["Composição"," 88248 ","SINAPI","AUXILIAR DE ENCANADOR OU BOMBEIRO HIDRÁULICO COM ENCARGOS COMPLEMENTARES","SEDI - SERVIÇOS DIVERSOS",null,"H",1,18.399999999999999,18.399999999999999]
["Composição Auxiliar"," 95317 ","SINAPI","CURSO DE CAPACITAÇÃO PARA AUXILIAR DE ENCANADOR OU BOMBEIRO HIDRÁULICO (ENCARGOS COMPLEMENTARES) - HORISTA","SEDI - SERVIÇOS DIVERSOS",null,"H",1,0.2,0.2]
["Insumo"," 00037370 ","SINAPI","ALIMENTACAO - HORISTA (COLETADO CAIXA)","Outros",null,"H",1,1.52,1.52]
["Insumo"," 00000246 ","SINAPI","AUXILIAR DE ENCANADOR OU BOMBEIRO HIDRAULICO (HORISTA)","Mão de Obra",null,"H",1,13.87,13.87]
["Insumo"," 00043485 ","SINAPI","EPI - FAMILIA ENCANADOR - HORISTA (ENCARGOS COMPLEMENTARES - COLETADO CAIXA)","Equipamento",null,"H",1,0.94,0.94]
["Insumo"," 00037372 ","SINAPI","EXAMES - HORISTA (COLETADO CAIXA)","Outros",null,"H",1,0.81,0.81]
["Insumo"," 00043461 ","SINAPI","FERRAMENTAS - FAMILIA ENCANADOR - HORISTA (ENCARGOS COMPLEMENTARES - COLETADO CAIXA)","Equipamento",null,"H",1,0.32,0.32]
["Insumo"," 00037373 ","SINAPI","SEGURO - HORISTA (COLETADO CAIXA)","Taxas",null,"H",1,0.06,0.06]
["Insumo"," 00037371 ","SINAPI","TRANSPORTE - HORISTA (COLETADO CAIXA)","Serviços",null,"H",1,0.68,0.68]
[null,null,null,null,"MO sem LS =>",14.07,"LS =>",0,"MO com LS =>",14.07]
[null,null,null,null,"Valor do BDI =>",4.5999999999999996,null,"Valor com BDI =>",null,23]
[]
[null,"Código","Banco","Descrição","Tipo",null,"Und","Quant.","Valor Unit","Total"]
["Composição"," 88251 ","SINAPI","AUXILIAR DE SERRALHEIRO COM ENCARGOS COMPLEMENTARES","SEDI - SERVIÇOS DIVERSOS",null,"H",1,18.88,18.88]
["Composição Auxiliar"," 95320 ","SINAPI","CURSO DE CAPACITAÇÃO PARA AUXILIAR DE SERRALHEIRO (ENCARGOS COMPLEMENTARES) - HORISTA","SEDI - SERVIÇOS DIVERSOS",null,"H",1,0.13,0.13]
["Insumo"," 00000252 ","SINAPI","AJUDANTE DE SERRALHEIRO (HORISTA)","Mão de Obra",null,"H",1,13.85,13.85]
["Insumo"," 00037370 ","SINAPI","ALIMENTACAO - HORISTA (COLETADO CAIXA)","Outros",null,"H",1,1.52,1.52]
["Insumo"," 00043489 ","SINAPI","EPI - FAMILIA PEDREIRO - HORISTA (ENCARGOS COMPLEMENTARES - COLETADO CAIXA)","Equipamento",null,"H",1,1.0900000000000001,1.0900000000000001]
["Insumo"," 00037372 ","SINAPI","EXAMES - HORISTA (COLETADO CAIXA)","Outros",null,"H",1,0.81,0.81]
["Insumo"," 00043465 ","SINAPI","FERRAMENTAS - FAMILIA PEDREIRO - HORISTA (ENCARGOS COMPLEMENTARES - COLETADO CAIXA)","Equipamento",null,"H",1,0.74,0.74]
["Insumo"," 00037373 ","SINAPI","SEGURO - HORISTA (COLETADO CAIXA)","Taxas",null,"H",1,0.06,0.06]
["Insumo"," 00037371 ","SINAPI","TRANSPORTE - HORISTA (COLETADO CAIXA)","Serviços",null,"H",1,0.68,0.68]
[null,null,null,null,"MO sem LS =>",13.98,"LS =>",0,"MO com LS =>",13.98]
[null,null,null,null,"Valor do BDI =>",4.72,null,"Valor com BDI =>",null,23.6]
[]
[null,"Código","Banco","Descrição","Tipo",null,"Und","Quant.","Valor Unit","Total"]
["Composição"," 88831 ","SINAPI","BETONEIRA CAPACIDADE NOMINAL DE 400 L, CAPACIDADE DE MISTURA 280 L, MOTOR ELÉTRICO TRIFÁSICO POTÊNCIA DE 2 CV, SEM CARREGADOR - CHI DIURNO. AF_10/2014","CHOR - CUSTOS HORÁRIOS DE MÁQUINAS E EQUIPAMENTOS",null,"CHI",1,0.39,0.39]
["Composição Auxiliar"," 88826 ","SINAPI","BETONEIRA CAPACIDADE NOMINAL DE 400 L, CAPACIDADE DE MISTURA 280 L, MOTOR ELÉTRICO TRIFÁSICO POTÊNCIA DE 2 CV, SEM CARREGADOR - DEPRECIAÇÃO. AF_10/2014","CHOR - CUSTOS HORÁRIOS DE MÁQUINAS E EQUIPAMENTOS",null,"H",1,0.35,0.35]
["Composição Auxiliar"," 88827 ","SINAPI","BETONEIRA CAPACIDADE NOMINAL DE 400 L, CAPACIDADE DE MISTURA 280 L, MOTOR ELÉTRICO TRIFÁSICO POTÊNCIA DE 2 CV, SEM CARREGADOR - JUROS. AF_10/2014","CHOR - CUSTOS HORÁRIOS DE MÁQUINAS E EQUIPAMENTOS",null,"H",1,0.04,0.04]
[null,null,null,null,"MO sem LS =>",0,"LS =>",0,"MO com LS =>",0]
[null,null,null,null,"Valor do BDI =>",0.09,null,"Valor com BDI =>",null,0.48]
[]
[null,"Código","Banco","Descrição","Tipo",null,"Und","Quant.","Valor Unit","Total"]
["Composição"," 88830 ","SINAPI","BETONEIRA CAPACIDADE NOMINAL DE 400 L, CAPACIDADE DE MISTURA 280 L, MOTOR ELÉTRICO TRIFÁSICO POTÊNCIA DE 2 CV, SEM CARREGADOR - CHP DIURNO. AF_10/2014","CHOR - CUSTOS HORÁRIOS DE MÁQUINAS E EQUIPAMENTOS",null,"CHP",1,1.91,1.91]
["Composição Auxiliar"," 88826 ","SINAPI","BETONEIRA CAPACIDADE NOMINAL DE 400 L, CAPACIDADE DE MISTURA 280 L, MOTOR ELÉTRICO TRIFÁSICO POTÊNCIA DE 2 CV, SEM CARREGADOR - DEPRECIAÇÃO. AF_10/2014","CHOR - CUSTOS HORÁRIOS DE MÁQUINAS E EQUIPAMENTOS",null,"H",1,0.35,0.35]
["Composição Auxiliar"," 88828 ","SINAPI","BETONEIRA CAPACIDADE NOMINAL DE 400 L, CAPACIDADE DE MISTURA 280 L, MOTOR ELÉTRICO TRIFÁSICO POTÊNCIA DE 2 CV, SEM CARREGADOR - MANUTENÇÃO. AF_10/2014","CHOR - CUSTOS HORÁRIOS DE MÁQUINAS E EQUIPAMENTOS",null,"H",1,0.39,0.39]
["Composição Auxiliar"," 88827 ","SINAPI","BETONEIRA CAPACIDADE NOMINAL DE 400 L, CAPACIDADE DE MISTURA 280 L, MOTOR ELÉTRICO TRIFÁSICO POTÊNCIA DE 2 CV, SEM CARREGADOR - JUROS. AF_10/2014","CHOR - CUSTOS HORÁRIOS DE MÁQUINAS E EQUIPAMENTOS",null,"H",1,0.04,0.04]
["Composição Auxiliar"," 88829 ","SINAPI","BETONEIRA CAPACIDADE NOMINAL DE 400 L, CAPACIDADE DE MISTURA 280 L, MOTOR ELÉTRICO TRIFÁSICO POTÊNCIA DE 2 CV, SEM CARREGADOR - MATERIAIS NA OPERAÇÃO. AF_10/2014","CHOR - CUSTOS HORÁRIOS DE MÁQUINAS E EQUIPAMENTOS",null,"H",1,1.1299999999999999,1.1299999999999999]
[null,null,null,null,"MO sem LS =>",0,"LS =>",0,"MO com LS =>",0]
[null,null,null,null,"Valor do BDI =>",0.47,null,"Valor com BDI =>",null,2.38]
[]
[null,"Código","Banco","Descrição","Tipo",null,"Und","Quant.","Valor Unit","Total"]
["Composição"," 88826 ","SINAPI","BETONEIRA CAPACIDADE NOMINAL DE 400 L, CAPACIDADE DE MISTURA 280 L, MOTOR ELÉTRICO TRIFÁSICO POTÊNCIA DE 2 CV, SEM CARREGADOR - DEPRECIAÇÃO. AF_10/2014","CHOR - CUSTOS HORÁRIOS DE MÁQUINAS E EQUIPAMENTOS",null,"H",1,0.35,0.35]
["Insumo"," 00010535 ","SINAPI","BETONEIRA CAPACIDADE NOMINAL 400 L, CAPACIDADE DE MISTURA  280 L, MOTOR ELETRICO TRIFASICO 220/380 V POTENCIA 2 CV, SEM CARREGADOR","Equipamento",null,"UN",6.3999999999999997E-5,5618,0.35]
[null,null,null,null,"MO sem LS =>",0,"LS =>",0,"MO com LS =>",0]
[null,null,null,null,"Valor do BDI =>",0.08,null,"Valor com BDI =>",null,0.43]
[]
[null,"Código","Banco","Descrição","Tipo",null,"Und","Quant.","Valor Unit","Total"]
["Composição"," 88827 ","SINAPI","BETONEIRA CAPACIDADE NOMINAL DE 400 L, CAPACIDADE DE MISTURA 280 L, MOTOR ELÉTRICO TRIFÁSICO POTÊNCIA DE 2 CV, SEM CARREGADOR - JUROS. AF_10/2014","CHOR - CUSTOS HORÁRIOS DE MÁQUINAS E EQUIPAMENTOS",null,"H",1,0.04,0.04]
["Insumo"," 00010535 ","SINAPI","BETONEIRA CAPACIDADE NOMINAL 400 L, CAPACIDADE DE MISTURA  280 L, MOTOR ELETRICO TRIFASICO 220/380 V POTENCIA 2 CV, SEM CARREGADOR","Equipamento",null,"UN",7.6000000000000001E-6,5618,0.04]
[null,null,null,null,"MO sem LS =>",0,"LS =>",0,"MO com LS =>",0]
[null,null,null,null,"Valor do BDI =>",0.01,null,"Valor com BDI =>",null,0.05]
[]
[null,"Código","Banco","Descrição","Tipo",null,"Und","Quant.","Valor Unit","Total"]
["Composição"," 88828 ","SINAPI","BETONEIRA CAPACIDADE NOMINAL DE 400 L, CAPACIDADE DE MISTURA 280 L, MOTOR ELÉTRICO TRIFÁSICO POTÊNCIA DE 2 CV, SEM CARREGADOR - MANUTENÇÃO. AF_10/2014","CHOR - CUSTOS HORÁRIOS DE MÁQUINAS E EQUIPAMENTOS",null,"H",1,0.39,0.39]
["Insumo"," 00010535 ","SINAPI","BETONEIRA CAPACIDADE NOMINAL 400 L, CAPACIDADE DE MISTURA  280 L, MOTOR ELETRICO TRIFASICO 220/380 V POTENCIA 2 CV, SEM CARREGADOR","Equipamento",null,"UN",6.9999999999999994E-5,5618,0.39]
[null,null,null,null,"MO sem LS =>",0,"LS =>",0,"MO com LS =>",0]
[null,null,null,null,"Valor do BDI =>",0.09,null,"Valor com BDI =>",null,0.48]
[]
[null,"Código","Banco","Descrição","Tipo",null,"Und","Quant.","Valor Unit","Total"]
["Composição"," 88829 ","SINAPI","BETONEIRA CAPACIDADE NOMINAL DE 400 L, CAPACIDADE DE MISTURA 280 L, MOTOR ELÉTRICO TRIFÁSICO POTÊNCIA DE 2 CV, SEM CARREGADOR - MATERIAIS NA OPERAÇÃO. AF_10/2014","CHOR - CUSTOS HORÁRIOS DE MÁQUINAS E EQUIPAMENTOS",null,"H",1,1.1299999999999999,1.1299999999999999]
["Insumo"," 00002705 ","SINAPI","ENERGIA ELETRICA ATE 2000 KWH INDUSTRIAL, SEM DEMANDA","Material",null,"KWH",1.25,0.91,1.1299999999999999]
[null,null,null,null,"MO sem LS =>",0,"LS =>",0,"MO com LS =>",0]
[null,null,null,null,"Valor do BDI =>",0.28000000000000003,null,"Valor com BDI =>",null,1.41]
[]
[null,"Código","Banco","Descrição","Tipo",null,"Und","Quant.","Valor Unit","Total"]
["Composição"," 89226 ","SINAPI","BETONEIRA CAPACIDADE NOMINAL DE 600 L, CAPACIDADE DE MISTURA 360 L, MOTOR ELÉTRICO TRIFÁSICO POTÊNCIA DE 4 CV, SEM CARREGADOR - CHI DIURNO. AF_11/2014","CHOR - CUSTOS HORÁRIOS DE MÁQUINAS E EQUIPAMENTOS",null,"CHI",1,1.63,1.63]
["Composição Auxiliar"," 89222 ","SINAPI","BETONEIRA CAPACIDADE NOMINAL DE 600 L, CAPACIDADE DE MISTURA 360 L, MOTOR ELÉTRICO TRIFÁSICO POTÊNCIA DE 4 CV, SEM CARREGADOR - JUROS. AF_11/2014","CHOR - CUSTOS HORÁRIOS DE MÁQUINAS E EQUIPAMENTOS",null,"H",1,0.17,0.17]
["Composição Auxiliar"," 89221 ","SINAPI","BETONEIRA CAPACIDADE NOMINAL DE 600 L, CAPACIDADE DE MISTURA 360 L, MOTOR ELÉTRICO TRIFÁSICO POTÊNCIA DE 4 CV, SEM CARREGADOR - DEPRECIAÇÃO. AF_11/2014","CHOR - CUSTOS HORÁRIOS DE MÁQUINAS E EQUIPAMENTOS",null,"H",1,1.46,1.46]
[null,null,null,null,"MO sem LS =>",0,"LS =>",0,"MO com LS =>",0]
[null,null,null,null,"Valor do BDI =>",0.4,null,"Valor com BDI =>",null,2.0299999999999998]
[]
[null,"Código","Banco","Descrição","Tipo",null,"Und","Quant.","Valor Unit","Total"]
["Composição"," 89225 ","SINAPI","BETONEIRA CAPACIDADE NOMINAL DE 600 L, CAPACIDADE DE MISTURA 360 L, MOTOR ELÉTRICO TRIFÁSICO POTÊNCIA DE 4 CV, SEM CARREGADOR - CHP DIURNO. AF_11/2014","CHOR - CUSTOS HORÁRIOS DE MÁQUINAS E EQUIPAMENTOS",null,"CHP",1,5.49,5.49]
["Composição Auxiliar"," 89224 ","SINAPI","BETONEIRA CAPACIDADE NOMINAL DE 600 L, CAPACIDADE DE MISTURA 360 L, MOTOR ELÉTRICO TRIFÁSICO POTÊNCIA DE 4 CV, SEM CARREGADOR - MATERIAIS NA OPERAÇÃO. AF_11/2014","CHOR - CUSTOS HORÁRIOS DE MÁQUINAS E EQUIPAMENTOS",null,"H",1,2.27,2.27]
["Composição Auxiliar"," 89221 ","SINAPI","BETONEIRA CAPACIDADE NOMINAL DE 600 L, CAPACIDADE DE MISTURA 360 L, MOTOR ELÉTRICO TRIFÁSICO POTÊNCIA DE 4 CV, SEM CARREGADOR - DEPRECIAÇÃO. AF_11/2014","CHOR - CUSTOS HORÁRIOS DE MÁQUINAS E EQUIPAMENTOS",null,"H",1,1.46,1.46]
["Composição Auxiliar"," 89223 ","SINAPI","BETONEIRA CAPACIDADE NOMINAL DE 600 L, CAPACIDADE DE MISTURA 360 L, MOTOR ELÉTRICO TRIFÁSICO POTÊNCIA DE 4 CV, SEM CARREGADOR - MANUTENÇÃO. AF_11/2014","CHOR - CUSTOS HORÁRIOS DE MÁQUINAS E EQUIPAMENTOS",null,"H",1,1.59,1.59]
["Composição Auxiliar"," 89222 ","SINAPI","BETONEIRA CAPACIDADE NOMINAL DE 600 L, CAPACIDADE DE MISTURA 360 L, MOTOR ELÉTRICO TRIFÁSICO POTÊNCIA DE 4 CV, SEM CARREGADOR - JUROS. AF_11/2014","CHOR - CUSTOS HORÁRIOS DE MÁQUINAS E EQUIPAMENTOS",null,"H",1,0.17,0.17]
[null,null,null,null,"MO sem LS =>",0,"LS =>",0,"MO com LS =>",0]
[null,null,null,null,"Valor do BDI =>",1.37,null,"Valor com BDI =>",null,6.86]
[]
[null,"Código","Banco","Descrição","Tipo",null,"Und","Quant.","Valor Unit","Total"]
["Composição"," 89221 ","SINAPI","BETONEIRA CAPACIDADE NOMINAL DE 600 L, CAPACIDADE DE MISTURA 360 L, MOTOR ELÉTRICO TRIFÁSICO POTÊNCIA DE 4 CV, SEM CARREGADOR - DEPRECIAÇÃO. AF_11/2014","CHOR - CUSTOS HORÁRIOS DE MÁQUINAS E EQUIPAMENTOS",null,"H",1,1.46,1.46]
["Insumo"," 00036397 ","SINAPI","BETONEIRA, CAPACIDADE NOMINAL 600 L, CAPACIDADE DE MISTURA  360L, MOTOR ELETRICO TRIFASICO 220/380V, POTENCIA 4CV, EXCLUSO CARREGADOR","Equipamento",null,"UN",6.3999999999999997E-5,22852.880000000001,1.46]
[null,null,null,null,"MO sem LS =>",0,"LS =>",0,"MO com LS =>",0]
[null,null,null,null,"Valor do BDI =>",0.36,null,"Valor com BDI =>",null,1.82]
[]
[null,"Código","Banco","Descrição","Tipo",null,"Und","Quant.","Valor Unit","Total"]
["Composição"," 89222 ","SINAPI","BETONEIRA CAPACIDADE NOMINAL DE 600 L, CAPACIDADE DE MISTURA 360 L, MOTOR ELÉTRICO TRIFÁSICO POTÊNCIA DE 4 CV, SEM CARREGADOR - JUROS. AF_11/2014","CHOR - CUSTOS HORÁRIOS DE MÁQUINAS E EQUIPAMENTOS",null,"H",1,0.17,0.17]
["Insumo"," 00036397 ","SINAPI","BETONEIRA, CAPACIDADE NOMINAL 600 L, CAPACIDADE DE MISTURA  360L, MOTOR ELETRICO TRIFASICO 220/380V, POTENCIA 4CV, EXCLUSO CARREGADOR","Equipamento",null,"UN",7.6000000000000001E-6,22852.880000000001,0.17]
[null,null,null,null,"MO sem LS =>",0,"LS =>",0,"MO com LS =>",0]
[null,null,null,null,"Valor do BDI =>",0.04,null,"Valor com BDI =>",null,0.21]
[]
[null,"Código","Banco","Descrição","Tipo",null,"Und","Quant.","Valor Unit","Total"]
["Composição"," 89223 ","SINAPI","BETONEIRA CAPACIDADE NOMINAL DE 600 L, CAPACIDADE DE MISTURA 360 L, MOTOR ELÉTRICO TRIFÁSICO POTÊNCIA DE 4 CV, SEM CARREGADOR - MANUTENÇÃO. AF_11/2014","CHOR - CUSTOS HORÁRIOS DE MÁQUINAS E EQUIPAMENTOS",null,"H",1,1.59,1.59]
["Insumo"," 00036397 ","SINAPI","BETONEIRA, CAPACIDADE NOMINAL 600 L, CAPACIDADE DE MISTURA  360L, MOTOR ELETRICO TRIFASICO 220/380V, POTENCIA 4CV, EXCLUSO CARREGADOR","Equipamento",null,"UN",6.9999999999999994E-5,22852.880000000001,1.59]
[null,null,null,null,"MO sem LS =>",0,"LS =>",0,"MO com LS =>",0]
[null,null,null,null,"Valor do BDI =>",0.39,null,"Valor com BDI =>",null,1.98]
[]
[null,"Código","Banco","Descrição","Tipo",null,"Und","Quant.","Valor Unit","Total"]
["Composição"," 89224 ","SINAPI","BETONEIRA CAPACIDADE NOMINAL DE 600 L, CAPACIDADE DE MISTURA 360 L, MOTOR ELÉTRICO TRIFÁSICO POTÊNCIA DE 4 CV, SEM CARREGADOR - MATERIAIS NA OPERAÇÃO. AF_11/2014","CHOR - CUSTOS HORÁRIOS DE MÁQUINAS E EQUIPAMENTOS",null,"H",1,2.27,2.27]
["Insumo"," 00002705 ","SINAPI","ENERGIA ELETRICA ATE 2000 KWH INDUSTRIAL, SEM DEMANDA","Material",null,"KWH",2.5,0.91,2.27]
[null,null,null,null,"MO sem LS =>",0,"LS =>",0,"MO com LS =>",0]
[null,null,null,null,"Valor do BDI =>",0.56000000000000005,null,"Valor com BDI =>",null,2.83]
[]
[null,"Código","Banco","Descrição","Tipo",null,"Und","Quant.","Valor Unit","Total"]
["Composição"," 97087 ","SINAPI","CAMADA SEPARADORA PARA EXECUÇÃO DE RADIER, PISO DE CONCRETO OU LAJE SOBRE SOLO, EM LONA PLÁSTICA. AF_09/2021","FUES - FUNDAÇÕES E ESTRUTURAS",null,"m²",1,1.97,1.97]
["Composição Auxiliar"," 88309 ","SINAPI","PEDREIRO COM ENCARGOS COMPLEMENTARES","SEDI - SERVIÇOS DIVERSOS",null,"H",1.4E-2,22.41,0.31]
["Composição Auxiliar"," 88316 ","SINAPI","SERVENTE COM ENCARGOS COMPLEMENTARES","SEDI - SERVIÇOS DIVERSOS",null,"H",5.0000000000000001E-3,17.82,0.08]
["Insumo"," 00042408 ","SINAPI","LONA PLASTICA EXTRA FORTE PRETA, E = 200 MICRA","Material",null,"m²",1.04,1.52,1.58]
[null,null,null,null,"MO sem LS =>",0.3,"LS =>",0,"MO com LS =>",0.3]
[null,null,null,null,"Valor do BDI =>",0.49,null,"Valor com BDI =>",null,2.46]
[]
[null,"Código","Banco","Descrição","Tipo",null,"Und","Quant.","Valor Unit","Total"]
["Composição"," 88261 ","SINAPI","CARPINTEIRO DE ESQUADRIA COM ENCARGOS COMPLEMENTARES","SEDI - SERVIÇOS DIVERSOS",null,"H",1,21.18,21.18]
["Composição Auxiliar"," 95329 ","SINAPI","CURSO DE CAPACITAÇÃO PARA CARPINTEIRO DE ESQUADRIA (ENCARGOS COMPLEMENTARES) - HORISTA","SEDI - SERVIÇOS DIVERSOS",null,"H",1,0.19,0.19]
["Insumo"," 00037370 ","SINAPI","ALIMENTACAO - HORISTA (COLETADO CAIXA)","Outros",null,"H",1,1.52,1.52]
["Insumo"," 00001214 ","SINAPI","CARPINTEIRO DE ESQUADRIAS (HORISTA)","Mão de Obra",null,"H",1,16.21,16.21]
["Insumo"," 00043483 ","SINAPI","EPI - FAMILIA CARPINTEIRO DE FORMAS - HORISTA (ENCARGOS COMPLEMENTARES - COLETADO CAIXA)","Equipamento",null,"H",1,1.26,1.26]
["Insumo"," 00037372 ","SINAPI","EXAMES - HORISTA (COLETADO CAIXA)","Outros",null,"H",1,0.81,0.81]
["Insumo"," 00043459 ","SINAPI","FERRAMENTAS - FAMILIA CARPINTEIRO DE FORMAS - HORISTA (ENCARGOS COMPLEMENTARES - COLETADO CAIXA)","Equipamento",null,"H",1,0.45,0.45]
["Insumo"," 00037373 ","SINAPI","SEGURO - HORISTA (COLETADO CAIXA)","Taxas",null,"H",1,0.06,0.06]
["Insumo"," 00037371 ","SINAPI","TRANSPORTE - HORISTA (COLETADO CAIXA)","Serviços",null,"H",1,0.68,0.68]
[null,null,null,null,"MO sem LS =>",16.399999999999999,"LS =>",0,"MO com LS =>",16.399999999999999]
[null,null,null,null,"Valor do BDI =>",5.29,null,"Valor com BDI =>",null,26.47]
[]
[null,"Código","Banco","Descrição","Tipo",null,"Und","Quant.","Valor Unit","Total"]
["Composição"," 88262 ","SINAPI","CARPINTEIRO DE FORMAS COM ENCARGOS COMPLEMENTARES","SEDI - SERVIÇOS DIVERSOS",null,"H",1,22.16,22.16]
["Composição Auxiliar"," 95330 ","SINAPI","CURSO DE CAPACITAÇÃO PARA CARPINTEIRO DE FÔRMAS (ENCARGOS COMPLEMENTARES) - HORISTA","SEDI - SERVIÇOS DIVERSOS",null,"H",1,0.16,0.16]
["Insumo"," 00037370 ","SINAPI","ALIMENTACAO - HORISTA (COLETADO CAIXA)","Outros",null,"H",1,1.52,1.52]
["Insumo"," 00001213 ","SINAPI","CARPINTEIRO DE FORMAS (HORISTA)","Mão de Obra",null,"H",1,17.22,17.22]
["Insumo"," 00043483 ","SINAPI","EPI - FAMILIA CARPINTEIRO DE FORMAS - HORISTA (ENCARGOS COMPLEMENTARES - COLETADO CAIXA)","Equipamento",null,"H",1,1.26,1.26]
["Insumo"," 00037372 ","SINAPI","EXAMES - HORISTA (COLETADO CAIXA)","Outros",null,"H",1,0.81,0.81]
["Insumo"," 00043459 ","SINAPI","FERRAMENTAS - FAMILIA CARPINTEIRO DE FORMAS - HORISTA (ENCARGOS COMPLEMENTARES - COLETADO CAIXA)","Equipamento",null,"H",1,0.45,0.45]
["Insumo"," 00037373 ","SINAPI","SEGURO - HORISTA (COLETADO CAIXA)","Taxas",null,"H",1,0.06,0.06]
["Insumo"," 00037371 ","SINAPI","TRANSPORTE - HORISTA (COLETADO CAIXA)","Serviços",null,"H",1,0.68,0.68]
[null,null,null,null,"MO sem LS =>",17.38,"LS =>",0,"MO com LS =>",17.38]
[null,null,null,null,"Valor do BDI =>",5.54,null,"Valor com BDI =>",null,27.7]
[]
[null,"Código","Banco","Descrição","Tipo",null,"Und","Quant.","Valor Unit","Total"]
["Composição"," 87905 ","SINAPI","CHAPISCO APLICADO EM ALVENARIA (COM PRESENÇA DE VÃOS) E ESTRUTURAS DE CONCRETO DE FACHADA, COM COLHER DE PEDREIRO.  ARGAMASSA TRAÇO 1:3 COM PREPARO EM BETONEIRA 400L. AF_06/2014","REVE - REVESTIMENTO E TRATAMENTO DE SUPERFÍCIES",null,"m²",1,7.99,7.99]
["Composição Auxiliar"," 87313 ","SINAPI","ARGAMASSA TRAÇO 1:3 (EM VOLUME DE CIMENTO E AREIA GROSSA ÚMIDA) PARA CHAPISCO CONVENCIONAL, PREPARO MECÂNICO COM BETONEIRA 400 L. AF_08/2019","SEDI - SERVIÇOS DIVERSOS",null,"m³",4.1999999999999997E-3,541.24,2.27]
["Composição Auxiliar"," 88309 ","SINAPI","PEDREIRO COM ENCARGOS COMPLEMENTARES","SEDI - SERVIÇOS DIVERSOS",null,"H",0.183,22.41,4.0999999999999996]
["Composição Auxiliar"," 88316 ","SINAPI","SERVENTE COM ENCARGOS COMPLEMENTARES","SEDI - SERVIÇOS DIVERSOS",null,"H",9.0999999999999998E-2,17.82,1.62]
[null,null,null,null,"MO sem LS =>",4.5999999999999996,"LS =>",0,"MO com LS =>",4.5999999999999996]
[null,null,null,null,"Valor do BDI =>",1.99,null,"Valor com BDI =>",null,9.98]
[]
[null,"Código","Banco","Descrição","Tipo",null,"Und","Quant.","Valor Unit","Total"]
["Composição"," 91534 ","SINAPI","COMPACTADOR DE SOLOS DE PERCUSSÃO (SOQUETE) COM MOTOR A GASOLINA 4 TEMPOS, POTÊNCIA 4 CV - CHI DIURNO. AF_08/2015","CHOR - CUSTOS HORÁRIOS DE MÁQUINAS E EQUIPAMENTOS",null,"CHI",1,17.940000000000001,17.940000000000001]
["Composição Auxiliar"," 91530 ","SINAPI","COMPACTADOR DE SOLOS DE PERCUSSÃO (SOQUETE) COM MOTOR A GASOLINA 4 TEMPOS, POTÊNCIA 4 CV - JUROS. AF_08/2015","CHOR - CUSTOS HORÁRIOS DE MÁQUINAS E EQUIPAMENTOS",null,"H",1,0.1,0.1]
["Composição Auxiliar"," 91529 ","SINAPI","COMPACTADOR DE SOLOS DE PERCUSSÃO (SOQUETE) COM MOTOR A GASOLINA 4 TEMPOS, POTÊNCIA 4 CV - DEPRECIAÇÃO. AF_08/2015","CHOR - CUSTOS HORÁRIOS DE MÁQUINAS E EQUIPAMENTOS",null,"H",1,0.76,0.76]
["Composição Auxiliar"," 88297 ","SINAPI","OPERADOR DE MÁQUINAS E EQUIPAMENTOS COM ENCARGOS COMPLEMENTARES","SEDI - SERVIÇOS DIVERSOS",null,"H",1,17.079999999999998,17.079999999999998]
[null,null,null,null,"MO sem LS =>",13.24,"LS =>",0,"MO com LS =>",13.24]
[null,null,null,null,"Valor do BDI =>",4.4800000000000004,null,"Valor com BDI =>",null,22.42]
[]
[null,"Código","Banco","Descrição","Tipo",null,"Und","Quant.","Valor Unit","Total"]
["Composição"," 91533 ","SINAPI","COMPACTADOR DE SOLOS DE PERCUSSÃO (SOQUETE) COM MOTOR A GASOLINA 4 TEMPOS, POTÊNCIA 4 CV - CHP DIURNO. AF_08/2015","CHOR - CUSTOS HORÁRIOS DE MÁQUINAS E EQUIPAMENTOS",null,"CHP",1,26.12,26.12]
["Composição Auxiliar"," 91530 ","SINAPI","COMPACTADOR DE SOLOS DE PERCUSSÃO (SOQUETE) COM MOTOR A GASOLINA 4 TEMPOS, POTÊNCIA 4 CV - JUROS. AF_08/2015","CHOR - CUSTOS HORÁRIOS DE MÁQUINAS E EQUIPAMENTOS",null,"H",1,0.1,0.1]
["Composição Auxiliar"," 91532 ","SINAPI","COMPACTADOR DE SOLOS DE PERCUSSÃO (SOQUETE) COM MOTOR A GASOLINA 4 TEMPOS, POTÊNCIA 4 CV - MATERIAIS NA OPERAÇÃO. AF_08/2015","CHOR - CUSTOS HORÁRIOS DE MÁQUINAS E EQUIPAMENTOS",null,"H",1,7.23,7.23]
["Composição Auxiliar"," 91531 ","SINAPI","COMPACTADOR DE SOLOS DE PERCUSSÃO (SOQUETE) COM MOTOR A GASOLINA 4 TEMPOS, POTÊNCIA 4 CV - MANUTENÇÃO. AF_08/2015","CHOR - CUSTOS HORÁRIOS DE MÁQUINAS E EQUIPAMENTOS",null,"H",1,0.95,0.95]
["Composição Auxiliar"," 91529 ","SINAPI","COMPACTADOR DE SOLOS DE PERCUSSÃO (SOQUETE) COM MOTOR A GASOLINA 4 TEMPOS, POTÊNCIA 4 CV - DEPRECIAÇÃO. AF_08/2015","CHOR - CUSTOS HORÁRIOS DE MÁQUINAS E EQUIPAMENTOS",null,"H",1,0.76,0.76]
["Composição Auxiliar"," 88297 ","SINAPI","OPERADOR DE MÁQUINAS E EQUIPAMENTOS COM ENCARGOS COMPLEMENTARES","SEDI - SERVIÇOS DIVERSOS",null,"H",1,17.079999999999998,17.079999999999998]
[null,null,null,null,"MO sem LS =>",13.24,"LS =>",0,"MO com LS =>",13.24]
[null,null,null,null,"Valor do BDI =>",6.53,null,"Valor com BDI =>",null,32.65]
[]
[null,"Código","Banco","Descrição","Tipo",null,"Und","Quant.","Valor Unit","Total"]
["Composição"," 91529 ","SINAPI","COMPACTADOR DE SOLOS DE PERCUSSÃO (SOQUETE) COM MOTOR A GASOLINA 4 TEMPOS, POTÊNCIA 4 CV - DEPRECIAÇÃO. AF_08/2015","CHOR - CUSTOS HORÁRIOS DE MÁQUINAS E EQUIPAMENTOS",null,"H",1,0.76,0.76]
["Insumo"," 00013458 ","SINAPI","COMPACTADOR DE SOLOS DE PERCURSAO (SOQUETE) COM MOTOR A GASOLINA 4 TEMPOS DE 4 HP (4 CV)","Equipamento",null,"UN",5.3300000000000001E-5,14360.28,0.76]
[null,null,null,null,"MO sem LS =>",0,"LS =>",0,"MO com LS =>",0]
[null,null,null,null,"Valor do BDI =>",0.19,null,"Valor com BDI =>",null,0.95]
[]
[null,"Código","Banco","Descrição","Tipo",null,"Und","Quant.","Valor Unit","Total"]
["Composição"," 91530 ","SINAPI","COMPACTADOR DE SOLOS DE PERCUSSÃO (SOQUETE) COM MOTOR A GASOLINA 4 TEMPOS, POTÊNCIA 4 CV - JUROS. AF_08/2015","CHOR - CUSTOS HORÁRIOS DE MÁQUINAS E EQUIPAMENTOS",null,"H",1,0.1,0.1]
["Insumo"," 00013458 ","SINAPI","COMPACTADOR DE SOLOS DE PERCURSAO (SOQUETE) COM MOTOR A GASOLINA 4 TEMPOS DE 4 HP (4 CV)","Equipamento",null,"UN",7.4000000000000003E-6,14360.28,0.1]
[null,null,null,null,"MO sem LS =>",0,"LS =>",0,"MO com LS =>",0]
[null,null,null,null,"Valor do BDI =>",0.02,null,"Valor com BDI =>",null,0.12]
[]
[null,"Código","Banco","Descrição","Tipo",null,"Und","Quant.","Valor Unit","Total"]
["Composição"," 91531 ","SINAPI","COMPACTADOR DE SOLOS DE PERCUSSÃO (SOQUETE) COM MOTOR A GASOLINA 4 TEMPOS, POTÊNCIA 4 CV - MANUTENÇÃO. AF_08/2015","CHOR - CUSTOS HORÁRIOS DE MÁQUINAS E EQUIPAMENTOS",null,"H",1,0.95,0.95]
["Insumo"," 00013458 ","SINAPI","COMPACTADOR DE SOLOS DE PERCURSAO (SOQUETE) COM MOTOR A GASOLINA 4 TEMPOS DE 4 HP (4 CV)","Equipamento",null,"UN",6.6699999999999995E-5,14360.28,0.95]
[null,null,null,null,"MO sem LS =>",0,"LS =>",0,"MO com LS =>",0]
[null,null,null,null,"Valor do BDI =>",0.23,null,"Valor com BDI =>",null,1.18]
[]
[null,"Código","Banco","Descrição","Tipo",null,"Und","Quant.","Valor Unit","Total"]
["Composição"," 91532 ","SINAPI","COMPACTADOR DE SOLOS DE PERCUSSÃO (SOQUETE) COM MOTOR A GASOLINA 4 TEMPOS, POTÊNCIA 4 CV - MATERIAIS NA OPERAÇÃO. AF_08/2015","CHOR - CUSTOS HORÁRIOS DE MÁQUINAS E EQUIPAMENTOS",null,"H",1,7.23,7.23]
["Insumo"," 00004222 ","SINAPI","GASOLINA COMUM","Material",null,"L",1.03,7.02,7.23]
[null,null,null,null,"MO sem LS =>",0,"LS =>",0,"MO com LS =>",0]
[null,null,null,null,"Valor do BDI =>",1.8,null,"Valor com BDI =>",null,9.0299999999999994]
[]
[null,"Código","Banco","Descrição","Tipo",null,"Und","Quant.","Valor Unit","Total"]
["Composição"," 95265 ","SINAPI","COMPACTADOR DE SOLOS DE PERCUSÃO (SOQUETE) COM MOTOR A GASOLINA, POTÊNCIA 3 CV - CHI DIURNO. AF_09/2016","CHOR - CUSTOS HORÁRIOS DE MÁQUINAS E EQUIPAMENTOS",null,"CHI",1,0.79,0.79]
["Composição Auxiliar"," 95260 ","SINAPI","COMPACTADOR DE SOLOS DE PERCUSÃO (SOQUETE) COM MOTOR A GASOLINA, POTÊNCIA 3 CV - DEPRECIAÇÃO. AF_09/2016","CHOR - CUSTOS HORÁRIOS DE MÁQUINAS E EQUIPAMENTOS",null,"H",1,0.61,0.61]
["Composição Auxiliar"," 95261 ","SINAPI","COMPACTADOR DE SOLOS DE PERCUSÃO (SOQUETE) COM MOTOR A GASOLINA, POTÊNCIA 3 CV - JUROS. AF_09/2016","CHOR - CUSTOS HORÁRIOS DE MÁQUINAS E EQUIPAMENTOS",null,"H",1,0.18,0.18]
[null,null,null,null,"MO sem LS =>",0,"LS =>",0,"MO com LS =>",0]
[null,null,null,null,"Valor do BDI =>",0.19,null,"Valor com BDI =>",null,0.98]
[]
[null,"Código","Banco","Descrição","Tipo",null,"Und","Quant.","Valor Unit","Total"]
["Composição"," 95264 ","SINAPI","COMPACTADOR DE SOLOS DE PERCUSÃO (SOQUETE) COM MOTOR A GASOLINA, POTÊNCIA 3 CV - CHP DIURNO. AF_09/2016","CHOR - CUSTOS HORÁRIOS DE MÁQUINAS E EQUIPAMENTOS",null,"CHP",1,7.92,7.92]
["Composição Auxiliar"," 95263 ","SINAPI","COMPACTADOR DE SOLOS DE PERCUSÃO (SOQUETE) COM MOTOR A GASOLINA, POTÊNCIA 3 CV - MATERIAIS NA OPERAÇÃO. AF_09/2016","CHOR - CUSTOS HORÁRIOS DE MÁQUINAS E EQUIPAMENTOS",null,"H",1,5.47,5.47]
["Composição Auxiliar"," 95260 ","SINAPI","COMPACTADOR DE SOLOS DE PERCUSÃO (SOQUETE) COM MOTOR A GASOLINA, POTÊNCIA 3 CV - DEPRECIAÇÃO. AF_09/2016","CHOR - CUSTOS HORÁRIOS DE MÁQUINAS E EQUIPAMENTOS",null,"H",1,0.61,0.61]
["Composição Auxiliar"," 95261 ","SINAPI","COMPACTADOR DE SOLOS DE PERCUSÃO (SOQUETE) COM MOTOR A GASOLINA, POTÊNCIA 3 CV - JUROS. AF_09/2016","CHOR - CUSTOS HORÁRIOS DE MÁQUINAS E EQUIPAMENTOS",null,"H",1,0.18,0.18]
["Composição Auxiliar"," 95262 ","SINAPI","COMPACTADOR DE SOLOS DE PERCUSÃO (SOQUETE) COM MOTOR A GASOLINA, POTÊNCIA 3 CV - MANUTENÇÃO. AF_09/2016","CHOR - CUSTOS HORÁRIOS DE MÁQUINAS E EQUIPAMENTOS",null,"H",1,1.66,1.66]
[null,null,null,null,"MO sem LS =>",0,"LS =>",0,"MO com LS =>",0]
[null,null,null,null,"Valor do BDI =>",1.98,null,"Valor com BDI =>",null,9.9]
[]
[null,"Código","Banco","Descrição","Tipo",null,"Und","Quant.","Valor Unit","Total"]
["Composição"," 95260 ","SINAPI","COMPACTADOR DE SOLOS DE PERCUSÃO (SOQUETE) COM MOTOR A GASOLINA, POTÊNCIA 3 CV - DEPRECIAÇÃO. AF_09/2016","CHOR - CUSTOS HORÁRIOS DE MÁQUINAS E EQUIPAMENTOS",null,"H",1,0.61,0.61]
["Insumo"," 00011281 ","SINAPI","COMPACTADOR DE SOLO A PERCUSSAO (SOQUETE), COM MOTOR GASOLINA DE 4 TEMPOS, PESO ENTRE 55 E 65 KG, FORCA DE IMPACTO DE 1.000 A 1.500 KGF, FREQUENCIA DE 600 A 700 GOLPES POR MINUTO, VELOCIDADE DE TRABALHO ENTRE 10 E 15 M/MIN, POTENCIA ENTRE 2,00 E 3,00 HP","Equipamento",null,"UN",5.3300000000000001E-5,11589,0.61]
[null,null,null,null,"MO sem LS =>",0,"LS =>",0,"MO com LS =>",0]
[null,null,null,null,"Valor do BDI =>",0.15,null,"Valor com BDI =>",null,0.76]
[]
[null,"Código","Banco","Descrição","Tipo",null,"Und","Quant.","Valor Unit","Total"]
["Composição"," 95261 ","SINAPI","COMPACTADOR DE SOLOS DE PERCUSÃO (SOQUETE) COM MOTOR A GASOLINA, POTÊNCIA 3 CV - JUROS. AF_09/2016","CHOR - CUSTOS HORÁRIOS DE MÁQUINAS E EQUIPAMENTOS",null,"H",1,0.18,0.18]
["Insumo"," 00011616 ","SINAPI","MARTELO DEMOLIDOR PNEUMATICO MANUAL, PADRAO, PESO DE 32 KG","Equipamento",null,"UN",7.4000000000000003E-6,24951.13,0.18]
[null,null,null,null,"MO sem LS =>",0,"LS =>",0,"MO com LS =>",0]
[null,null,null,null,"Valor do BDI =>",0.04,null,"Valor com BDI =>",null,0.22]
[]
[null,"Código","Banco","Descrição","Tipo",null,"Und","Quant.","Valor Unit","Total"]
["Composição"," 95262 ","SINAPI","COMPACTADOR DE SOLOS DE PERCUSÃO (SOQUETE) COM MOTOR A GASOLINA, POTÊNCIA 3 CV - MANUTENÇÃO. AF_09/2016","CHOR - CUSTOS HORÁRIOS DE MÁQUINAS E EQUIPAMENTOS",null,"H",1,1.66,1.66]
["Insumo"," 00011616 ","SINAPI","MARTELO DEMOLIDOR PNEUMATICO MANUAL, PADRAO, PESO DE 32 KG","Equipamento",null,"UN",6.6699999999999995E-5,24951.13,1.66]
[null,null,null,null,"MO sem LS =>",0,"LS =>",0,"MO com LS =>",0]
[null,null,null,null,"Valor do BDI =>",0.41,null,"Valor com BDI =>",null,2.0699999999999998]
[]
[null,"Código","Banco","Descrição","Tipo",null,"Und","Quant.","Valor Unit","Total"]
["Composição"," 95263 ","SINAPI","COMPACTADOR DE SOLOS DE PERCUSÃO (SOQUETE) COM MOTOR A GASOLINA, POTÊNCIA 3 CV - MATERIAIS NA OPERAÇÃO. AF_09/2016","CHOR - CUSTOS HORÁRIOS DE MÁQUINAS E EQUIPAMENTOS",null,"H",1,5.47,5.47]
["Insumo"," 00004222 ","SINAPI","GASOLINA COMUM","Material",null,"L",0.78,7.02,5.47]
[null,null,null,null,"MO sem LS =>",0,"LS =>",0,"MO com LS =>",0]
[null,null,null,null,"Valor do BDI =>",1.36,null,"Valor com BDI =>",null,6.83]
[]
[null,"Código","Banco","Descrição","Tipo",null,"Und","Quant.","Valor Unit","Total"]
["Composição"," 97083 ","SINAPI","COMPACTAÇÃO MECÂNICA DE SOLO PARA EXECUÇÃO DE RADIER, PISO DE CONCRETO OU LAJE SOBRE SOLO, COM COMPACTADOR DE SOLOS A PERCUSSÃO. AF_09/2021","FUES - FUNDAÇÕES E ESTRUTURAS",null,"m²",1,2.8,2.8]
["Composição Auxiliar"," 95264 ","SINAPI","COMPACTADOR DE SOLOS DE PERCUSÃO (SOQUETE) COM MOTOR A GASOLINA, POTÊNCIA 3 CV - CHP DIURNO. AF_09/2016","CHOR - CUSTOS HORÁRIOS DE MÁQUINAS E EQUIPAMENTOS",null,"CHP",2.5000000000000001E-2,7.92,0.19]
["Composição Auxiliar"," 95265 ","SINAPI","COMPACTADOR DE SOLOS DE PERCUSÃO (SOQUETE) COM MOTOR A GASOLINA, POTÊNCIA 3 CV - CHI DIURNO. AF_09/2016","CHOR - CUSTOS HORÁRIOS DE MÁQUINAS E EQUIPAMENTOS",null,"CHI",4.2000000000000003E-2,0.79,0.03]
["Composição Auxiliar"," 88309 ","SINAPI","PEDREIRO COM ENCARGOS COMPLEMENTARES","SEDI - SERVIÇOS DIVERSOS",null,"H",4.4999999999999998E-2,22.41,1]
["Composição Auxiliar"," 88316 ","SINAPI","SERVENTE COM ENCARGOS COMPLEMENTARES","SEDI - SERVIÇOS DIVERSOS",null,"H",8.8999999999999996E-2,17.82,1.58]
[null,null,null,null,"MO sem LS =>",1.94,"LS =>",0,"MO com LS =>",1.94]
[null,null,null,null,"Valor do BDI =>",0.7,null,"Valor com BDI =>",null,3.5]
[]
[null,"Código","Banco","Descrição","Tipo",null,"Und","Quant.","Valor Unit","Total"]
["Composição"," 97084 ","SINAPI","COMPACTAÇÃO MECÂNICA DE SOLO PARA EXECUÇÃO DE RADIER, PISO DE CONCRETO OU LAJE SOBRE SOLO, COM COMPACTADOR DE SOLOS TIPO PLACA VIBRATÓRIA. AF_09/2021","FUES - FUNDAÇÕES E ESTRUTURAS",null,"m²",1,0.57999999999999996,0.57999999999999996]
["Composição Auxiliar"," 91277 ","SINAPI","PLACA VIBRATÓRIA REVERSÍVEL COM MOTOR 4 TEMPOS A GASOLINA, FORÇA CENTRÍFUGA DE 25 KN (2500 KGF), POTÊNCIA 5,5 CV - CHP DIURNO. AF_08/2015","CHOR - CUSTOS HORÁRIOS DE MÁQUINAS E EQUIPAMENTOS",null,"CHP",5.0000000000000001E-3,11.32,0.05]
["Composição Auxiliar"," 88309 ","SINAPI","PEDREIRO COM ENCARGOS COMPLEMENTARES","SEDI - SERVIÇOS DIVERSOS",null,"H",8.9999999999999993E-3,22.41,0.2]
["Composição Auxiliar"," 88316 ","SINAPI","SERVENTE COM ENCARGOS COMPLEMENTARES","SEDI - SERVIÇOS DIVERSOS",null,"H",1.9E-2,17.82,0.33]
[null,null,null,null,"MO sem LS =>",0.39,"LS =>",0,"MO com LS =>",0.39]
[null,null,null,null,"Valor do BDI =>",0.14000000000000001,null,"Valor com BDI =>",null,0.72]
[]
[null,"Código","Banco","Descrição","Tipo",null,"Und","Quant.","Valor Unit","Total"]
["Composição"," 97096 ","SINAPI","CONCRETAGEM DE RADIER, PISO DE CONCRETO OU LAJE SOBRE SOLO, FCK 30 MPA - LANÇAMENTO, ADENSAMENTO E ACABAMENTO. AF_09/2021","FUES - FUNDAÇÕES E ESTRUTURAS",null,"m³",1,710.32,710.32]
["Composição Auxiliar"," 90586 ","SINAPI","VIBRADOR DE IMERSÃO, DIÂMETRO DE PONTEIRA 45MM, MOTOR ELÉTRICO TRIFÁSICO POTÊNCIA DE 2 CV - CHP DIURNO. AF_06/2015","CHOR - CUSTOS HORÁRIOS DE MÁQUINAS E EQUIPAMENTOS",null,"CHP",5.2999999999999999E-2,1.42,7.0000000000000007E-2]
["Composição Auxiliar"," 90587 ","SINAPI","VIBRADOR DE IMERSÃO, DIÂMETRO DE PONTEIRA 45MM, MOTOR ELÉTRICO TRIFÁSICO POTÊNCIA DE 2 CV - CHI DIURNO. AF_06/2015","CHOR - CUSTOS HORÁRIOS DE MÁQUINAS E EQUIPAMENTOS",null,"CHI",4.9000000000000002E-2,0.56000000000000005,0.02]
["Composição Auxiliar"," 88309 ","SINAPI","PEDREIRO COM ENCARGOS COMPLEMENTARES","SEDI - SERVIÇOS DIVERSOS",null,"H",0.41099999999999998,22.41,9.2100000000000009]
["Composição Auxiliar"," 88316 ","SINAPI","SERVENTE COM ENCARGOS COMPLEMENTARES","SEDI - SERVIÇOS DIVERSOS",null,"H",0.41099999999999998,17.82,7.32]
["Insumo"," 00001525 ","SINAPI","CONCRETO USINADO BOMBEAVEL, CLASSE DE RESISTENCIA C30, COM BRITA 0 E 1, SLUMP = 100 +/- 20 MM, INCLUI SERVICO DE BOMBEAMENTO (NBR 8953)","Material",null,"m³",1.06,654.44000000000005,693.7]
[null,null,null,null,"MO sem LS =>",12.54,"LS =>",0,"MO com LS =>",12.54]
[null,null,null,null,"Valor do BDI =>",177.58,null,"Valor com BDI =>",null,887.9]
[]
[null,"Código","Banco","Descrição","Tipo",null,"Und","Quant.","Valor Unit","Total"]
["Composição"," 94971 ","SINAPI","CONCRETO FCK = 25MPA, TRAÇO 1:2,3:2,7 (EM MASSA SECA DE CIMENTO/ AREIA MÉDIA/ BRITA 1) - PREPARO MECÂNICO COM BETONEIRA 600 L. AF_05/2021","FUES - FUNDAÇÕES E ESTRUTURAS",null,"m³",1,506.78,506.78]
["Composição Auxiliar"," 89225 ","SINAPI","BETONEIRA CAPACIDADE NOMINAL DE 600 L, CAPACIDADE DE MISTURA 360 L, MOTOR ELÉTRICO TRIFÁSICO POTÊNCIA DE 4 CV, SEM CARREGADOR - CHP DIURNO. AF_11/2014","CHOR - CUSTOS HORÁRIOS DE MÁQUINAS E EQUIPAMENTOS",null,"CHP",0.64339999999999997,5.49,3.53]
["Composição Auxiliar"," 89226 ","SINAPI","BETONEIRA CAPACIDADE NOMINAL DE 600 L, CAPACIDADE DE MISTURA 360 L, MOTOR ELÉTRICO TRIFÁSICO POTÊNCIA DE 4 CV, SEM CARREGADOR - CHI DIURNO. AF_11/2014","CHOR - CUSTOS HORÁRIOS DE MÁQUINAS E EQUIPAMENTOS",null,"CHI",0.60670000000000002,1.63,0.98]
["Composição Auxiliar"," 88316 ","SINAPI","SERVENTE COM ENCARGOS COMPLEMENTARES","SEDI - SERVIÇOS DIVERSOS",null,"H",1.9792000000000001,17.82,35.26]
["Composição Auxiliar"," 88377 ","SINAPI","OPERADOR DE BETONEIRA ESTACIONÁRIA/MISTURADOR COM ENCARGOS COMPLEMENTARES","SEDI - SERVIÇOS DIVERSOS",null,"H",1.2501,16.22,20.27]
["Insumo"," 00000370 ","SINAPI","AREIA MEDIA - POSTO JAZIDA/FORNECEDOR (RETIRADO NA JAZIDA, SEM TRANSPORTE)","Material",null,"m³",0.72750000000000004,114,82.93]
["Insumo"," 00001379 ","SINAPI","CIMENTO PORTLAND COMPOSTO CP II-32","Material",null,"KG",364.94330000000002,0.84,306.55]
["Insumo"," 00004721 ","SINAPI","PEDRA BRITADA N. 1 (9,5 a 19 MM) POSTO PEDREIRA/FORNECEDOR, SEM FRETE","Material",null,"m³",0.59719999999999995,95.89,57.26]
[null,null,null,null,"MO sem LS =>",41.27,"LS =>",0,"MO com LS =>",41.27]
[null,null,null,null,"Valor do BDI =>",126.69,null,"Valor com BDI =>",null,633.47]
[]
[null,"Código","Banco","Descrição","Tipo",null,"Und","Quant.","Valor Unit","Total"]
["Composição"," 92799 ","SINAPI","CORTE E DOBRA DE AÇO CA-60, DIÂMETRO DE 4,2 MM. AF_06/2022","FUES - FUNDAÇÕES E ESTRUTURAS",null,"KG",1,14.92,14.92]
["Composição Auxiliar"," 88238 ","SINAPI","AJUDANTE DE ARMADOR COM ENCARGOS COMPLEMENTARES","SEDI - SERVIÇOS DIVERSOS",null,"H",1.52E-2,17.82,0.27]
["Composição Auxiliar"," 88245 ","SINAPI","ARMADOR COM ENCARGOS COMPLEMENTARES","SEDI - SERVIÇOS DIVERSOS",null,"H",9.3299999999999994E-2,22.28,2.0699999999999998]
["Insumo"," 00043059 ","SINAPI","ACO CA-60, 4,2 MM, OU 5,0 MM, OU 6,0 MM, OU 7,0 MM, VERGALHAO","Material",null,"KG",1.07,11.76,12.58]
[null,null,null,null,"MO sem LS =>",1.81,"LS =>",0,"MO com LS =>",1.81]
[null,null,null,null,"Valor do BDI =>",3.73,null,"Valor com BDI =>",null,18.649999999999999]
[]
[null,"Código","Banco","Descrição","Tipo",null,"Und","Quant.","Valor Unit","Total"]
["Composição"," 95308 ","SINAPI","CURSO DE CAPACITAÇÃO PARA AJUDANTE DE ARMADOR (ENCARGOS COMPLEMENTARES) - HORISTA","SEDI - SERVIÇOS DIVERSOS",null,"H",1,0.12,0.12]
["Insumo"," 00006114 ","SINAPI","AJUDANTE DE ARMADOR (HORISTA)","Mão de Obra",null,"H",9.4000000000000004E-3,12.8,0.12]
[null,null,null,null,"MO sem LS =>",0.12,"LS =>",0,"MO com LS =>",0.12]
[null,null,null,null,"Valor do BDI =>",0.03,null,"Valor com BDI =>",null,0.15]
[]
[null,"Código","Banco","Descrição","Tipo",null,"Und","Quant.","Valor Unit","Total"]
["Composição"," 95309 ","SINAPI","CURSO DE CAPACITAÇÃO PARA AJUDANTE DE CARPINTEIRO (ENCARGOS COMPLEMENTARES) - HORISTA","SEDI - SERVIÇOS DIVERSOS",null,"H",1,0.16,0.16]
["Insumo"," 00006117 ","SINAPI","CARPINTEIRO AUXILIAR (HORISTA)","Mão de Obra",null,"H",1.2E-2,13.85,0.16]
[null,null,null,null,"MO sem LS =>",0.16,"LS =>",0,"MO com LS =>",0.16]
[null,null,null,null,"Valor do BDI =>",0.04,null,"Valor com BDI =>",null,0.2]
[]
[null,"Código","Banco","Descrição","Tipo",null,"Und","Quant.","Valor Unit","Total"]
["Composição"," 95310 ","SINAPI","CURSO DE CAPACITAÇÃO PARA AJUDANTE DE ESTRUTURA METÁLICA (ENCARGOS COMPLEMENTARES) - HORISTA","SEDI - SERVIÇOS DIVERSOS",null,"H",1,0.08,0.08]
["Insumo"," 00044499 ","SINAPI","AJUDANTE DE ESTRUTURAS METALICAS HORISTA","Mão de Obra",null,"H",9.4000000000000004E-3,9.19,0.08]
[null,null,null,null,"MO sem LS =>",0.08,"LS =>",0,"MO com LS =>",0.08]
[null,null,null,null,"Valor do BDI =>",0.02,null,"Valor com BDI =>",null,0.1]
[]
[null,"Código","Banco","Descrição","Tipo",null,"Und","Quant.","Valor Unit","Total"]
["Composição"," 95314 ","SINAPI","CURSO DE CAPACITAÇÃO PARA ARMADOR (ENCARGOS COMPLEMENTARES) - HORISTA","SEDI - SERVIÇOS DIVERSOS",null,"H",1,0.16,0.16]
["Insumo"," 00000378 ","SINAPI","ARMADOR (HORISTA)","Mão de Obra",null,"H",9.4000000000000004E-3,17.22,0.16]
[null,null,null,null,"MO sem LS =>",0.16,"LS =>",0,"MO com LS =>",0.16]
[null,null,null,null,"Valor do BDI =>",0.04,null,"Valor com BDI =>",null,0.2]
[]
[null,"Código","Banco","Descrição","Tipo",null,"Und","Quant.","Valor Unit","Total"]
["Composição"," 95316 ","SINAPI","CURSO DE CAPACITAÇÃO PARA AUXILIAR DE ELETRICISTA (ENCARGOS COMPLEMENTARES) - HORISTA","SEDI - SERVIÇOS DIVERSOS",null,"H",1,0.41,0.41]
["Insumo"," 00000247 ","SINAPI","AJUDANTE DE ELETRICISTA (HORISTA)","Mão de Obra",null,"H",3.0200000000000001E-2,13.87,0.41]
[null,null,null,null,"MO sem LS =>",0.41,"LS =>",0,"MO com LS =>",0.41]
[null,null,null,null,"Valor do BDI =>",0.1,null,"Valor com BDI =>",null,0.51]
[]
[null,"Código","Banco","Descrição","Tipo",null,"Und","Quant.","Valor Unit","Total"]
["Composição"," 95317 ","SINAPI","CURSO DE CAPACITAÇÃO PARA AUXILIAR DE ENCANADOR OU BOMBEIRO HIDRÁULICO (ENCARGOS COMPLEMENTARES) - HORISTA","SEDI - SERVIÇOS DIVERSOS",null,"H",1,0.2,0.2]
["Insumo"," 00000246 ","SINAPI","AUXILIAR DE ENCANADOR OU BOMBEIRO HIDRAULICO (HORISTA)","Mão de Obra",null,"H",1.46E-2,13.87,0.2]
[null,null,null,null,"MO sem LS =>",0.2,"LS =>",0,"MO com LS =>",0.2]
[null,null,null,null,"Valor do BDI =>",0.05,null,"Valor com BDI =>",null,0.25]
[]
[null,"Código","Banco","Descrição","Tipo",null,"Und","Quant.","Valor Unit","Total"]
["Composição"," 95320 ","SINAPI","CURSO DE CAPACITAÇÃO PARA AUXILIAR DE SERRALHEIRO (ENCARGOS COMPLEMENTARES) - HORISTA","SEDI - SERVIÇOS DIVERSOS",null,"H",1,0.13,0.13]
["Insumo"," 00000252 ","SINAPI","AJUDANTE DE SERRALHEIRO (HORISTA)","Mão de Obra",null,"H",9.4000000000000004E-3,13.85,0.13]
[null,null,null,null,"MO sem LS =>",0.13,"LS =>",0,"MO com LS =>",0.13]
[null,null,null,null,"Valor do BDI =>",0.03,null,"Valor com BDI =>",null,0.16]
[]
[null,"Código","Banco","Descrição","Tipo",null,"Und","Quant.","Valor Unit","Total"]
["Composição"," 95329 ","SINAPI","CURSO DE CAPACITAÇÃO PARA CARPINTEIRO DE ESQUADRIA (ENCARGOS COMPLEMENTARES) - HORISTA","SEDI - SERVIÇOS DIVERSOS",null,"H",1,0.19,0.19]
["Insumo"," 00001214 ","SINAPI","CARPINTEIRO DE ESQUADRIAS (HORISTA)","Mão de Obra",null,"H",1.2E-2,16.21,0.19]
[null,null,null,null,"MO sem LS =>",0.19,"LS =>",0,"MO com LS =>",0.19]
[null,null,null,null,"Valor do BDI =>",0.04,null,"Valor com BDI =>",null,0.23]
[]
[null,"Código","Banco","Descrição","Tipo",null,"Und","Quant.","Valor Unit","Total"]
["Composição"," 95330 ","SINAPI","CURSO DE CAPACITAÇÃO PARA CARPINTEIRO DE FÔRMAS (ENCARGOS COMPLEMENTARES) - HORISTA","SEDI - SERVIÇOS DIVERSOS",null,"H",1,0.16,0.16]
["Insumo"," 00001213 ","SINAPI","CARPINTEIRO DE FORMAS (HORISTA)","Mão de Obra",null,"H",9.4000000000000004E-3,17.22,0.16]
[null,null,null,null,"MO sem LS =>",0.16,"LS =>",0,"MO com LS =>",0.16]
[null,null,null,null,"Valor do BDI =>",0.04,null,"Valor com BDI =>",null,0.2]
[]
[null,"Código","Banco","Descrição","Tipo",null,"Und","Quant.","Valor Unit","Total"]
["Composição"," 95332 ","SINAPI","CURSO DE CAPACITAÇÃO PARA ELETRICISTA (ENCARGOS COMPLEMENTARES) - HORISTA","SEDI - SERVIÇOS DIVERSOS",null,"H",1,0.53,0.53]
["Insumo"," 00002436 ","SINAPI","ELETRICISTA (HORISTA)","Mão de Obra",null,"H",3.0200000000000001E-2,17.79,0.53]
[null,null,null,null,"MO sem LS =>",0.53,"LS =>",0,"MO com LS =>",0.53]
[null,null,null,null,"Valor do BDI =>",0.13,null,"Valor com BDI =>",null,0.66]
[]
[null,"Código","Banco","Descrição","Tipo",null,"Und","Quant.","Valor Unit","Total"]
["Composição"," 95335 ","SINAPI","CURSO DE CAPACITAÇÃO PARA ENCANADOR OU BOMBEIRO HIDRÁULICO (ENCARGOS COMPLEMENTARES) - HORISTA","SEDI - SERVIÇOS DIVERSOS",null,"H",1,0.25,0.25]
["Insumo"," 00002696 ","SINAPI","ENCANADOR OU BOMBEIRO HIDRAULICO (HORISTA)","Mão de Obra",null,"H",1.46E-2,17.79,0.25]
[null,null,null,null,"MO sem LS =>",0.25,"LS =>",0,"MO com LS =>",0.25]
[null,null,null,null,"Valor do BDI =>",0.06,null,"Valor com BDI =>",null,0.31]
[]
[null,"Código","Banco","Descrição","Tipo",null,"Und","Quant.","Valor Unit","Total"]
["Composição"," 95344 ","SINAPI","CURSO DE CAPACITAÇÃO PARA MONTADOR DE ESTRUTURA METÁLICA (ENCARGOS COMPLEMENTARES) - HORISTA","SEDI - SERVIÇOS DIVERSOS",null,"H",1,0.11,0.11]
["Insumo"," 00044497 ","SINAPI","MONTADOR DE ESTRUTURAS METALICAS HORISTA","Mão de Obra",null,"H",9.4000000000000004E-3,12.18,0.11]
[null,null,null,null,"MO sem LS =>",0.11,"LS =>",0,"MO com LS =>",0.11]
[null,null,null,null,"Valor do BDI =>",0.02,null,"Valor com BDI =>",null,0.13]
[]
[null,"Código","Banco","Descrição","Tipo",null,"Und","Quant.","Valor Unit","Total"]
["Composição"," 95389 ","SINAPI","CURSO DE CAPACITAÇÃO PARA OPERADOR DE BETONEIRA ESTACIONÁRIA/MISTURADOR (ENCARGOS COMPLEMENTARES) - HORISTA","SEDI - SERVIÇOS DIVERSOS",null,"H",1,0.08,0.08]
["Insumo"," 00037666 ","SINAPI","OPERADOR DE BETONEIRA ESTACIONARIA / MISTURADOR","Mão de Obra",null,"H",6.7000000000000002E-3,12.3,0.08]
[null,null,null,null,"MO sem LS =>",0.08,"LS =>",0,"MO com LS =>",0.08]
[null,null,null,null,"Valor do BDI =>",0.02,null,"Valor com BDI =>",null,0.1]
[]
[null,"Código","Banco","Descrição","Tipo",null,"Und","Quant.","Valor Unit","Total"]
["Composição"," 95358 ","SINAPI","CURSO DE CAPACITAÇÃO PARA OPERADOR DE GUINCHO (ENCARGOS COMPLEMENTARES) - HORISTA","SEDI - SERVIÇOS DIVERSOS",null,"H",1,0.16,0.16]
["Insumo"," 00004253 ","SINAPI","OPERADOR DE GUINCHO OU GUINCHEIRO","Mão de Obra",null,"H",1.3299999999999999E-2,12.37,0.16]
[null,null,null,null,"MO sem LS =>",0.16,"LS =>",0,"MO com LS =>",0.16]
[null,null,null,null,"Valor do BDI =>",0.04,null,"Valor com BDI =>",null,0.2]
[]
[null,"Código","Banco","Descrição","Tipo",null,"Und","Quant.","Valor Unit","Total"]
["Composição"," 95360 ","SINAPI","CURSO DE CAPACITAÇÃO PARA OPERADOR DE MÁQUINAS E EQUIPAMENTOS (ENCARGOS COMPLEMENTARES) - HORISTA","SEDI - SERVIÇOS DIVERSOS",null,"H",1,0.12,0.12]
["Insumo"," 00004230 ","SINAPI","OPERADOR DE MAQUINAS E TRATORES DIVERSOS (TERRAPLANAGEM)","Mão de Obra",null,"H",9.4000000000000004E-3,13.12,0.12]
[null,null,null,null,"MO sem LS =>",0.12,"LS =>",0,"MO com LS =>",0.12]
[null,null,null,null,"Valor do BDI =>",0.03,null,"Valor com BDI =>",null,0.15]
[]
[null,"Código","Banco","Descrição","Tipo",null,"Und","Quant.","Valor Unit","Total"]
["Composição"," 95371 ","SINAPI","CURSO DE CAPACITAÇÃO PARA PEDREIRO (ENCARGOS COMPLEMENTARES) - HORISTA","SEDI - SERVIÇOS DIVERSOS",null,"H",1,0.28999999999999998,0.28999999999999998]
["Insumo"," 00004750 ","SINAPI","PEDREIRO (HORISTA)","Mão de Obra",null,"H",1.72E-2,17.22,0.28999999999999998]
[null,null,null,null,"MO sem LS =>",0.28999999999999998,"LS =>",0,"MO com LS =>",0.28999999999999998]
[null,null,null,null,"Valor do BDI =>",7.0000000000000007E-2,null,"Valor com BDI =>",null,0.36]
[]
[null,"Código","Banco","Descrição","Tipo",null,"Und","Quant.","Valor Unit","Total"]
["Composição"," 95372 ","SINAPI","CURSO DE CAPACITAÇÃO PARA PINTOR (ENCARGOS COMPLEMENTARES) - HORISTA","SEDI - SERVIÇOS DIVERSOS",null,"H",1,0.2,0.2]
["Insumo"," 00004783 ","SINAPI","PINTOR (HORISTA)","Mão de Obra",null,"H",1.2E-2,17.22,0.2]
[null,null,null,null,"MO sem LS =>",0.2,"LS =>",0,"MO com LS =>",0.2]
[null,null,null,null,"Valor do BDI =>",0.05,null,"Valor com BDI =>",null,0.25]
[]
[null,"Código","Banco","Descrição","Tipo",null,"Und","Quant.","Valor Unit","Total"]
["Composição"," 95377 ","SINAPI","CURSO DE CAPACITAÇÃO PARA SERRALHEIRO (ENCARGOS COMPLEMENTARES) - HORISTA","SEDI - SERVIÇOS DIVERSOS",null,"H",1,0.16,0.16]
["Insumo"," 00006110 ","SINAPI","SERRALHEIRO (HORISTA)","Mão de Obra",null,"H",9.4000000000000004E-3,17.22,0.16]
[null,null,null,null,"MO sem LS =>",0.16,"LS =>",0,"MO com LS =>",0.16]
[null,null,null,null,"Valor do BDI =>",0.04,null,"Valor com BDI =>",null,0.2]
[]
[null,"Código","Banco","Descrição","Tipo",null,"Und","Quant.","Valor Unit","Total"]
["Composição"," 95378 ","SINAPI","CURSO DE CAPACITAÇÃO PARA SERVENTE (ENCARGOS COMPLEMENTARES) - HORISTA","SEDI - SERVIÇOS DIVERSOS",null,"H",1,0.22,0.22]
["Insumo"," 00006111 ","SINAPI","SERVENTE DE OBRAS","Mão de Obra",null,"H",1.72E-2,12.82,0.22]
[null,null,null,null,"MO sem LS =>",0.22,"LS =>",0,"MO com LS =>",0.22]
[null,null,null,null,"Valor do BDI =>",0.05,null,"Valor com BDI =>",null,0.27]
[]
[null,"Código","Banco","Descrição","Tipo",null,"Und","Quant.","Valor Unit","Total"]
["Composição"," 95385 ","SINAPI","CURSO DE CAPACITAÇÃO PARA TELHADISTA (ENCARGOS COMPLEMENTARES) - HORISTA","SEDI - SERVIÇOS DIVERSOS",null,"H",1,0.15,0.15]
["Insumo"," 00012869 ","SINAPI","TELHADOR (HORISTA)","Mão de Obra",null,"H",9.4000000000000004E-3,17,0.15]
[null,null,null,null,"MO sem LS =>",0.15,"LS =>",0,"MO com LS =>",0.15]
[null,null,null,null,"Valor do BDI =>",0.03,null,"Valor com BDI =>",null,0.18]
[]
[null,"Código","Banco","Descrição","Tipo",null,"Und","Quant.","Valor Unit","Total"]
["Composição"," 88264 ","SINAPI","ELETRICISTA COM ENCARGOS COMPLEMENTARES","SEDI - SERVIÇOS DIVERSOS",null,"H",1,23.24,23.24]
["Composição Auxiliar"," 95332 ","SINAPI","CURSO DE CAPACITAÇÃO PARA ELETRICISTA (ENCARGOS COMPLEMENTARES) - HORISTA","SEDI - SERVIÇOS DIVERSOS",null,"H",1,0.53,0.53]
["Insumo"," 00037370 ","SINAPI","ALIMENTACAO - HORISTA (COLETADO CAIXA)","Outros",null,"H",1,1.52,1.52]
["Insumo"," 00002436 ","SINAPI","ELETRICISTA (HORISTA)","Mão de Obra",null,"H",1,17.79,17.79]
["Insumo"," 00043484 ","SINAPI","EPI - FAMILIA ELETRICISTA - HORISTA (ENCARGOS COMPLEMENTARES - COLETADO CAIXA)","Equipamento",null,"H",1,1.07,1.07]
["Insumo"," 00037372 ","SINAPI","EXAMES - HORISTA (COLETADO CAIXA)","Outros",null,"H",1,0.81,0.81]
["Insumo"," 00043460 ","SINAPI","FERRAMENTAS - FAMILIA ELETRICISTA - HORISTA (ENCARGOS COMPLEMENTARES - COLETADO CAIXA)","Equipamento",null,"H",1,0.78,0.78]
["Insumo"," 00037373 ","SINAPI","SEGURO - HORISTA (COLETADO CAIXA)","Taxas",null,"H",1,0.06,0.06]
["Insumo"," 00037371 ","SINAPI","TRANSPORTE - HORISTA (COLETADO CAIXA)","Serviços",null,"H",1,0.68,0.68]
[null,null,null,null,"MO sem LS =>",18.32,"LS =>",0,"MO com LS =>",18.32]
[null,null,null,null,"Valor do BDI =>",5.81,null,"Valor com BDI =>",null,29.05]
[]
[null,"Código","Banco","Descrição","Tipo",null,"Und","Quant.","Valor Unit","Total"]
["Composição"," 87775 ","SINAPI","EMBOÇO OU MASSA ÚNICA EM ARGAMASSA TRAÇO 1:2:8, PREPARO MECÂNICO COM BETONEIRA 400 L, APLICADA MANUALMENTE EM PANOS DE FACHADA COM PRESENÇA DE VÃOS, ESPESSURA DE 25 MM. AF_06/2014","REVE - REVESTIMENTO E TRATAMENTO DE SUPERFÍCIES",null,"m²",1,52.04,52.04]
["Composição Auxiliar"," 87292 ","SINAPI","ARGAMASSA TRAÇO 1:2:8 (EM VOLUME DE CIMENTO, CAL E AREIA MÉDIA ÚMIDA) PARA EMBOÇO/MASSA ÚNICA/ASSENTAMENTO DE ALVENARIA DE VEDAÇÃO, PREPARO MECÂNICO COM BETONEIRA 400 L. AF_08/2019","SEDI - SERVIÇOS DIVERSOS",null,"m³",3.1399999999999997E-2,529.78,16.63]
["Composição Auxiliar"," 88309 ","SINAPI","PEDREIRO COM ENCARGOS COMPLEMENTARES","SEDI - SERVIÇOS DIVERSOS",null,"H",0.78,22.41,17.47]
["Composição Auxiliar"," 88316 ","SINAPI","SERVENTE COM ENCARGOS COMPLEMENTARES","SEDI - SERVIÇOS DIVERSOS",null,"H",0.78,17.82,13.89]
["Insumo"," 00037411 ","SINAPI","TELA DE ACO SOLDADA GALVANIZADA/ZINCADA PARA ALVENARIA, FIO D = *1,24 MM, MALHA 25 X 25 MM","Material",null,"m²",0.13880000000000001,29.25,4.05]
[null,null,null,null,"MO sem LS =>",25.56,"LS =>",0,"MO com LS =>",25.56]
[null,null,null,null,"Valor do BDI =>",13.01,null,"Valor com BDI =>",null,65.05]
[]
[null,"Código","Banco","Descrição","Tipo",null,"Und","Quant.","Valor Unit","Total"]
["Composição"," 88267 ","SINAPI","ENCANADOR OU BOMBEIRO HIDRÁULICO COM ENCARGOS COMPLEMENTARES","SEDI - SERVIÇOS DIVERSOS",null,"H",1,22.37,22.37]
["Composição Auxiliar"," 95335 ","SINAPI","CURSO DE CAPACITAÇÃO PARA ENCANADOR OU BOMBEIRO HIDRÁULICO (ENCARGOS COMPLEMENTARES) - HORISTA","SEDI - SERVIÇOS DIVERSOS",null,"H",1,0.25,0.25]
["Insumo"," 00037370 ","SINAPI","ALIMENTACAO - HORISTA (COLETADO CAIXA)","Outros",null,"H",1,1.52,1.52]
["Insumo"," 00002696 ","SINAPI","ENCANADOR OU BOMBEIRO HIDRAULICO (HORISTA)","Mão de Obra",null,"H",1,17.79,17.79]
["Insumo"," 00043485 ","SINAPI","EPI - FAMILIA ENCANADOR - HORISTA (ENCARGOS COMPLEMENTARES - COLETADO CAIXA)","Equipamento",null,"H",1,0.94,0.94]
["Insumo"," 00037372 ","SINAPI","EXAMES - HORISTA (COLETADO CAIXA)","Outros",null,"H",1,0.81,0.81]
["Insumo"," 00043461 ","SINAPI","FERRAMENTAS - FAMILIA ENCANADOR - HORISTA (ENCARGOS COMPLEMENTARES - COLETADO CAIXA)","Equipamento",null,"H",1,0.32,0.32]
["Insumo"," 00037373 ","SINAPI","SEGURO - HORISTA (COLETADO CAIXA)","Taxas",null,"H",1,0.06,0.06]
["Insumo"," 00037371 ","SINAPI","TRANSPORTE - HORISTA (COLETADO CAIXA)","Serviços",null,"H",1,0.68,0.68]
[null,null,null,null,"MO sem LS =>",18.04,"LS =>",0,"MO com LS =>",18.04]
[null,null,null,null,"Valor do BDI =>",5.59,null,"Valor com BDI =>",null,27.96]
[]
[null,"Código","Banco","Descrição","Tipo",null,"Und","Quant.","Valor Unit","Total"]
["Composição"," 97082 ","SINAPI","ESCAVAÇÃO MANUAL DE VIGA DE BORDA PARA RADIER. AF_09/2021","FUES - FUNDAÇÕES E ESTRUTURAS",null,"m³",1,51.74,51.74]
["Composição Auxiliar"," 88316 ","SINAPI","SERVENTE COM ENCARGOS COMPLEMENTARES","SEDI - SERVIÇOS DIVERSOS",null,"H",2.9039999999999999,17.82,51.74]
[null,null,null,null,"MO sem LS =>",37.86,"LS =>",0,"MO com LS =>",37.86]
[null,null,null,null,"Valor do BDI =>",12.93,null,"Valor com BDI =>",null,64.67]
[]
[null,"Código","Banco","Descrição","Tipo",null,"Und","Quant.","Valor Unit","Total"]
["Composição"," 97102 ","SINAPI","EXECUÇÃO DE RADIER, ESPESSURA DE 15 CM, FCK = 30 MPA, COM USO DE FORMAS EM MADEIRA SERRADA. AF_09/2021","FUES - FUNDAÇÕES E ESTRUTURAS",null,"m²",1,265.64999999999998,265.64999999999998]
["Composição Auxiliar"," 97090 ","SINAPI","ARMAÇÃO PARA EXECUÇÃO DE RADIER, PISO DE CONCRETO OU LAJE SOBRE SOLO, COM USO DE TELA Q-138. AF_09/2021","FUES - FUNDAÇÕES E ESTRUTURAS",null,"KG",4.4000000000000004,23.26,102.34]
["Composição Auxiliar"," 96624 ","SINAPI","LASTRO COM MATERIAL GRANULAR (PEDRA BRITADA N.2), APLICADO EM PISOS OU LAJES SOBRE SOLO, ESPESSURA DE *10 CM*. AF_08/2017","FUES - FUNDAÇÕES E ESTRUTURAS",null,"m³",0.1,138.49,13.84]
["Composição Auxiliar"," 97096 ","SINAPI","CONCRETAGEM DE RADIER, PISO DE CONCRETO OU LAJE SOBRE SOLO, FCK 30 MPA - LANÇAMENTO, ADENSAMENTO E ACABAMENTO. AF_09/2021","FUES - FUNDAÇÕES E ESTRUTURAS",null,"m³",0.185,710.32,131.4]
["Composição Auxiliar"," 97086 ","SINAPI","FABRICAÇÃO, MONTAGEM E DESMONTAGEM DE FORMA PARA RADIER, PISO DE CONCRETO OU LAJE SOBRE SOLO, EM MADEIRA SERRADA, 4 UTILIZAÇÕES. AF_09/2021","FUES - FUNDAÇÕES E ESTRUTURAS",null,"m²",0.1,110.23,11.02]
["Composição Auxiliar"," 97087 ","SINAPI","CAMADA SEPARADORA PARA EXECUÇÃO DE RADIER, PISO DE CONCRETO OU LAJE SOBRE SOLO, EM LONA PLÁSTICA. AF_09/2021","FUES - FUNDAÇÕES E ESTRUTURAS",null,"m²",1.24,1.97,2.44]
["Composição Auxiliar"," 97082 ","SINAPI","ESCAVAÇÃO MANUAL DE VIGA DE BORDA PARA RADIER. AF_09/2021","FUES - FUNDAÇÕES E ESTRUTURAS",null,"m³",3.5000000000000003E-2,51.74,1.81]
["Composição Auxiliar"," 97083 ","SINAPI","COMPACTAÇÃO MECÂNICA DE SOLO PARA EXECUÇÃO DE RADIER, PISO DE CONCRETO OU LAJE SOBRE SOLO, COM COMPACTADOR DE SOLOS A PERCUSSÃO. AF_09/2021","FUES - FUNDAÇÕES E ESTRUTURAS",null,"m²",1,2.8,2.8]
[null,null,null,null,"MO sem LS =>",17.239999999999998,"LS =>",0,"MO com LS =>",17.239999999999998]
[null,null,null,null,"Valor do BDI =>",66.41,null,"Valor com BDI =>",null,332.06]
[]
[null,"Código","Banco","Descrição","Tipo",null,"Und","Quant.","Valor Unit","Total"]
["Composição"," 92565 ","SINAPI","FABRICAÇÃO E INSTALAÇÃO DE ESTRUTURA PONTALETADA DE MADEIRA NÃO APARELHADA PARA TELHADOS COM ATÉ 2 ÁGUAS E PARA TELHA CERÂMICA OU DE CONCRETO, INCLUSO TRANSPORTE VERTICAL. AF_12/2015","COBE - COBERTURA",null,"m²",1,35.43,35.43]
["Composição Auxiliar"," 93281 ","SINAPI","GUINCHO ELÉTRICO DE COLUNA, CAPACIDADE 400 KG, COM MOTO FREIO, MOTOR TRIFÁSICO DE 1,25 CV - CHP DIURNO. AF_03/2016","CHOR - CUSTOS HORÁRIOS DE MÁQUINAS E EQUIPAMENTOS",null,"CHP",7.0000000000000001E-3,17.739999999999998,0.12]
["Composição Auxiliar"," 93282 ","SINAPI","GUINCHO ELÉTRICO DE COLUNA, CAPACIDADE 400 KG, COM MOTO FREIO, MOTOR TRIFÁSICO DE 1,25 CV - CHI DIURNO. AF_03/2016","CHOR - CUSTOS HORÁRIOS DE MÁQUINAS E EQUIPAMENTOS",null,"CHI",1.03E-2,16.73,0.17]
["Composição Auxiliar"," 88262 ","SINAPI","CARPINTEIRO DE FORMAS COM ENCARGOS COMPLEMENTARES","SEDI - SERVIÇOS DIVERSOS",null,"H",0.373,22.16,8.26]
["Composição Auxiliar"," 88239 ","SINAPI","AJUDANTE DE CARPINTEIRO COM ENCARGOS COMPLEMENTARES","SEDI - SERVIÇOS DIVERSOS",null,"H",0.13800000000000001,18.79,2.59]
["Insumo"," 00004430 ","SINAPI","CAIBRO NAO APARELHADO *5 X 6* CM, EM MACARANDUBA, ANGELIM OU EQUIVALENTE DA REGIAO -  BRUTA","Material",null,"M",0.55600000000000005,11.8,6.56]
["Insumo"," 00005075 ","SINAPI","PREGO DE ACO POLIDO COM CABECA 18 X 30 (2 3/4 X 10)","Material",null,"KG",0.24,26.81,6.43]
["Insumo"," 00004425 ","SINAPI","VIGA NAO APARELHADA  *6 X 12* CM, EM MACARANDUBA, ANGELIM OU EQUIVALENTE DA REGIAO - BRUTA","Material",null,"M",0.222,24.96,5.54]
["Insumo"," 00004472 ","SINAPI","VIGA NAO APARELHADA *6 X 16* CM, EM MACARANDUBA, ANGELIM OU EQUIVALENTE DA REGIAO -  BRUTA","Material",null,"M",0.185,31.18,5.76]
[null,null,null,null,"MO sem LS =>",8.61,"LS =>",0,"MO com LS =>",8.61]
[null,null,null,null,"Valor do BDI =>",8.85,null,"Valor com BDI =>",null,44.28]
[]
[null,"Código","Banco","Descrição","Tipo",null,"Und","Quant.","Valor Unit","Total"]
["Composição"," 97086 ","SINAPI","FABRICAÇÃO, MONTAGEM E DESMONTAGEM DE FORMA PARA RADIER, PISO DE CONCRETO OU LAJE SOBRE SOLO, EM MADEIRA SERRADA, 4 UTILIZAÇÕES. AF_09/2021","FUES - FUNDAÇÕES E ESTRUTURAS",null,"m²",1,110.23,110.23]
["Composição Auxiliar"," 88262 ","SINAPI","CARPINTEIRO DE FORMAS COM ENCARGOS COMPLEMENTARES","SEDI - SERVIÇOS DIVERSOS",null,"H",2.3570000000000002,22.16,52.23]
["Composição Auxiliar"," 88239 ","SINAPI","AJUDANTE DE CARPINTEIRO COM ENCARGOS COMPLEMENTARES","SEDI - SERVIÇOS DIVERSOS",null,"H",1.444,18.79,27.13]
["Insumo"," 00002692 ","SINAPI","DESMOLDANTE PROTETOR PARA FORMAS DE MADEIRA, DE BASE OLEOSA EMULSIONADA EM AGUA","Material",null,"L",1.7000000000000001E-2,7.62,0.12]
["Insumo"," 00005068 ","SINAPI","PREGO DE ACO POLIDO COM CABECA 17 X 21 (2 X 11)","Material",null,"KG",9.5000000000000001E-2,26.81,2.54]
["Insumo"," 00004491 ","SINAPI","PONTALETE *7,5 X 7,5* CM EM PINUS, MISTA OU EQUIVALENTE DA REGIAO - BRUTA","Material",null,"M",0.37,9.9499999999999993,3.68]
["Insumo"," 00004517 ","SINAPI","SARRAFO *2,5 X 7,5* CM EM PINUS, MISTA OU EQUIVALENTE DA REGIAO - BRUTA","Material",null,"M",0.44,3.48,1.53]
["Insumo"," 00006193 ","SINAPI","TABUA  NAO  APARELHADA  *2,5 X 20* CM, EM MACARANDUBA, ANGELIM OU EQUIVALENTE DA REGIAO - BRUTA","Material",null,"M",1.38,16.670000000000002,23]
[null,null,null,null,"MO sem LS =>",61.19,"LS =>",0,"MO com LS =>",61.19]
[null,null,null,null,"Valor do BDI =>",27.55,null,"Valor com BDI =>",null,137.78]
[]
[null,"Código","Banco","Descrição","Tipo",null,"Und","Quant.","Valor Unit","Total"]
["Composição"," 91170 ","SINAPI","FIXAÇÃO DE TUBOS HORIZONTAIS DE PVC, CPVC OU COBRE DIÂMETROS MENORES OU IGUAIS A 40 MM OU ELETROCALHAS ATÉ 150MM DE LARGURA, COM ABRAÇADEIRA METÁLICA RÍGIDA TIPO D 1/2\u0094, FIXADA EM PERFILADO EM LAJE. AF_05/2015","INHI - INSTALAÇÕES HIDROS SANITÁRIAS",null,"M",1,3.11,3.11]
["Composição Auxiliar"," 88267 ","SINAPI","ENCANADOR OU BOMBEIRO HIDRÁULICO COM ENCARGOS COMPLEMENTARES","SEDI - SERVIÇOS DIVERSOS",null,"H",6.9000000000000006E-2,22.37,1.54]
["Composição Auxiliar"," 88248 ","SINAPI","AUXILIAR DE ENCANADOR OU BOMBEIRO HIDRÁULICO COM ENCARGOS COMPLEMENTARES","SEDI - SERVIÇOS DIVERSOS",null,"H",0.01,18.399999999999999,0.18]
["Insumo"," 00000392 ","SINAPI","ABRACADEIRA EM ACO PARA AMARRACAO DE ELETRODUTOS, TIPO D, COM 1/2\" E PARAFUSO DE FIXACAO","Material",null,"UN",0.65,2.15,1.39]
[null,null,null,null,"MO sem LS =>",1.38,"LS =>",0,"MO com LS =>",1.38]
[null,null,null,null,"Valor do BDI =>",0.77,null,"Valor com BDI =>",null,3.88]
[]
[null,"Código","Banco","Descrição","Tipo",null,"Und","Quant.","Valor Unit","Total"]
["Composição"," 93282 ","SINAPI","GUINCHO ELÉTRICO DE COLUNA, CAPACIDADE 400 KG, COM MOTO FREIO, MOTOR TRIFÁSICO DE 1,25 CV - CHI DIURNO. AF_03/2016","CHOR - CUSTOS HORÁRIOS DE MÁQUINAS E EQUIPAMENTOS",null,"CHI",1,16.73,16.73]
["Composição Auxiliar"," 93278 ","SINAPI","GUINCHO ELÉTRICO DE COLUNA, CAPACIDADE 400 KG, COM MOTO FREIO, MOTOR TRIFÁSICO DE 1,25 CV - JUROS. AF_03/2016","CHOR - CUSTOS HORÁRIOS DE MÁQUINAS E EQUIPAMENTOS",null,"H",1,0.03,0.03]
["Composição Auxiliar"," 93277 ","SINAPI","GUINCHO ELÉTRICO DE COLUNA, CAPACIDADE 400 KG, COM MOTO FREIO, MOTOR TRIFÁSICO DE 1,25 CV - DEPRECIAÇÃO. AF_03/2016","CHOR - CUSTOS HORÁRIOS DE MÁQUINAS E EQUIPAMENTOS",null,"H",1,0.33,0.33]
["Composição Auxiliar"," 88295 ","SINAPI","OPERADOR DE GUINCHO COM ENCARGOS COMPLEMENTARES","SEDI - SERVIÇOS DIVERSOS",null,"H",1,16.37,16.37]
[null,null,null,null,"MO sem LS =>",12.53,"LS =>",0,"MO com LS =>",12.53]
[null,null,null,null,"Valor do BDI =>",4.18,null,"Valor com BDI =>",null,20.91]
[]
[null,"Código","Banco","Descrição","Tipo",null,"Und","Quant.","Valor Unit","Total"]
["Composição"," 93281 ","SINAPI","GUINCHO ELÉTRICO DE COLUNA, CAPACIDADE 400 KG, COM MOTO FREIO, MOTOR TRIFÁSICO DE 1,25 CV - CHP DIURNO. AF_03/2016","CHOR - CUSTOS HORÁRIOS DE MÁQUINAS E EQUIPAMENTOS",null,"CHP",1,17.739999999999998,17.739999999999998]
["Composição Auxiliar"," 93278 ","SINAPI","GUINCHO ELÉTRICO DE COLUNA, CAPACIDADE 400 KG, COM MOTO FREIO, MOTOR TRIFÁSICO DE 1,25 CV - JUROS. AF_03/2016","CHOR - CUSTOS HORÁRIOS DE MÁQUINAS E EQUIPAMENTOS",null,"H",1,0.03,0.03]
["Composição Auxiliar"," 93277 ","SINAPI","GUINCHO ELÉTRICO DE COLUNA, CAPACIDADE 400 KG, COM MOTO FREIO, MOTOR TRIFÁSICO DE 1,25 CV - DEPRECIAÇÃO. AF_03/2016","CHOR - CUSTOS HORÁRIOS DE MÁQUINAS E EQUIPAMENTOS",null,"H",1,0.33,0.33]
["Composição Auxiliar"," 93279 ","SINAPI","GUINCHO ELÉTRICO DE COLUNA, CAPACIDADE 400 KG, COM MOTO FREIO, MOTOR TRIFÁSICO DE 1,25 CV - MANUTENÇÃO. AF_03/2016","CHOR - CUSTOS HORÁRIOS DE MÁQUINAS E EQUIPAMENTOS",null,"H",1,0.31,0.31]
["Composição Auxiliar"," 93280 ","SINAPI","GUINCHO ELÉTRICO DE COLUNA, CAPACIDADE 400 KG, COM MOTO FREIO, MOTOR TRIFÁSICO DE 1,25 CV - MATERIAIS NA OPERAÇÃO. AF_03/2016","CHOR - CUSTOS HORÁRIOS DE MÁQUINAS E EQUIPAMENTOS",null,"H",1,0.7,0.7]
["Composição Auxiliar"," 88295 ","SINAPI","OPERADOR DE GUINCHO COM ENCARGOS COMPLEMENTARES","SEDI - SERVIÇOS DIVERSOS",null,"H",1,16.37,16.37]
[null,null,null,null,"MO sem LS =>",12.53,"LS =>",0,"MO com LS =>",12.53]
[null,null,null,null,"Valor do BDI =>",4.43,null,"Valor com BDI =>",null,22.17]
[]
[null,"Código","Banco","Descrição","Tipo",null,"Und","Quant.","Valor Unit","Total"]
["Composição"," 93277 ","SINAPI","GUINCHO ELÉTRICO DE COLUNA, CAPACIDADE 400 KG, COM MOTO FREIO, MOTOR TRIFÁSICO DE 1,25 CV - DEPRECIAÇÃO. AF_03/2016","CHOR - CUSTOS HORÁRIOS DE MÁQUINAS E EQUIPAMENTOS",null,"H",1,0.33,0.33]
["Insumo"," 00036487 ","SINAPI","GUINCHO ELETRICO DE COLUNA, CAPACIDADE 400 KG, COM MOTO FREIO, MOTOR TRIFASICO DE 1,25 CV","Equipamento",null,"UN",6.3999999999999997E-5,5172.1099999999997,0.33]
[null,null,null,null,"MO sem LS =>",0,"LS =>",0,"MO com LS =>",0]
[null,null,null,null,"Valor do BDI =>",0.08,null,"Valor com BDI =>",null,0.41]
[]
[null,"Código","Banco","Descrição","Tipo",null,"Und","Quant.","Valor Unit","Total"]
["Composição"," 93278 ","SINAPI","GUINCHO ELÉTRICO DE COLUNA, CAPACIDADE 400 KG, COM MOTO FREIO, MOTOR TRIFÁSICO DE 1,25 CV - JUROS. AF_03/2016","CHOR - CUSTOS HORÁRIOS DE MÁQUINAS E EQUIPAMENTOS",null,"H",1,0.03,0.03]
["Insumo"," 00036487 ","SINAPI","GUINCHO ELETRICO DE COLUNA, CAPACIDADE 400 KG, COM MOTO FREIO, MOTOR TRIFASICO DE 1,25 CV","Equipamento",null,"UN",7.6000000000000001E-6,5172.1099999999997,0.03]
[null,null,null,null,"MO sem LS =>",0,"LS =>",0,"MO com LS =>",0]
[null,null,null,null,"Valor do BDI =>",0,null,"Valor com BDI =>",null,0.03]
[]
[null,"Código","Banco","Descrição","Tipo",null,"Und","Quant.","Valor Unit","Total"]
["Composição"," 93279 ","SINAPI","GUINCHO ELÉTRICO DE COLUNA, CAPACIDADE 400 KG, COM MOTO FREIO, MOTOR TRIFÁSICO DE 1,25 CV - MANUTENÇÃO. AF_03/2016","CHOR - CUSTOS HORÁRIOS DE MÁQUINAS E EQUIPAMENTOS",null,"H",1,0.31,0.31]
["Insumo"," 00036487 ","SINAPI","GUINCHO ELETRICO DE COLUNA, CAPACIDADE 400 KG, COM MOTO FREIO, MOTOR TRIFASICO DE 1,25 CV","Equipamento",null,"UN",6.0000000000000002E-5,5172.1099999999997,0.31]
[null,null,null,null,"MO sem LS =>",0,"LS =>",0,"MO com LS =>",0]
[null,null,null,null,"Valor do BDI =>",7.0000000000000007E-2,null,"Valor com BDI =>",null,0.38]
[]
[null,"Código","Banco","Descrição","Tipo",null,"Und","Quant.","Valor Unit","Total"]
["Composição"," 93280 ","SINAPI","GUINCHO ELÉTRICO DE COLUNA, CAPACIDADE 400 KG, COM MOTO FREIO, MOTOR TRIFÁSICO DE 1,25 CV - MATERIAIS NA OPERAÇÃO. AF_03/2016","CHOR - CUSTOS HORÁRIOS DE MÁQUINAS E EQUIPAMENTOS",null,"H",1,0.7,0.7]
["Insumo"," 00002705 ","SINAPI","ENERGIA ELETRICA ATE 2000 KWH INDUSTRIAL, SEM DEMANDA","Material",null,"KWH",0.78,0.91,0.7]
[null,null,null,null,"MO sem LS =>",0,"LS =>",0,"MO com LS =>",0]
[null,null,null,null,"Valor do BDI =>",0.17,null,"Valor com BDI =>",null,0.87]
[]
[null,"Código","Banco","Descrição","Tipo",null,"Und","Quant.","Valor Unit","Total"]
["Composição"," 96624 ","SINAPI","LASTRO COM MATERIAL GRANULAR (PEDRA BRITADA N.2), APLICADO EM PISOS OU LAJES SOBRE SOLO, ESPESSURA DE *10 CM*. AF_08/2017","FUES - FUNDAÇÕES E ESTRUTURAS",null,"m³",1,138.49,138.49]
["Composição Auxiliar"," 91277 ","SINAPI","PLACA VIBRATÓRIA REVERSÍVEL COM MOTOR 4 TEMPOS A GASOLINA, FORÇA CENTRÍFUGA DE 25 KN (2500 KGF), POTÊNCIA 5,5 CV - CHP DIURNO. AF_08/2015","CHOR - CUSTOS HORÁRIOS DE MÁQUINAS E EQUIPAMENTOS",null,"CHP",3.2000000000000001E-2,11.32,0.36]
["Composição Auxiliar"," 91278 ","SINAPI","PLACA VIBRATÓRIA REVERSÍVEL COM MOTOR 4 TEMPOS A GASOLINA, FORÇA CENTRÍFUGA DE 25 KN (2500 KGF), POTÊNCIA 5,5 CV - CHI DIURNO. AF_08/2015","CHOR - CUSTOS HORÁRIOS DE MÁQUINAS E EQUIPAMENTOS",null,"CHI",0.03,0.57999999999999996,0.01]
["Composição Auxiliar"," 88309 ","SINAPI","PEDREIRO COM ENCARGOS COMPLEMENTARES","SEDI - SERVIÇOS DIVERSOS",null,"H",1.03,22.41,23.08]
["Composição Auxiliar"," 88316 ","SINAPI","SERVENTE COM ENCARGOS COMPLEMENTARES","SEDI - SERVIÇOS DIVERSOS",null,"H",0.34300000000000003,17.82,6.11]
["Insumo"," 00004718 ","SINAPI","PEDRA BRITADA N. 2 (19 A 38 MM) POSTO PEDREIRA/FORNECEDOR, SEM FRETE","Material",null,"m³",1.1299999999999999,96.4,108.93]
[null,null,null,null,"MO sem LS =>",22.5,"LS =>",0,"MO com LS =>",22.5]
[null,null,null,null,"Valor do BDI =>",34.619999999999997,null,"Valor com BDI =>",null,173.11]
[]
[null,"Código","Banco","Descrição","Tipo",null,"Und","Quant.","Valor Unit","Total"]
["Composição"," 88278 ","SINAPI","MONTADOR DE ESTRUTURA METÁLICA COM ENCARGOS COMPLEMENTARES","SEDI - SERVIÇOS DIVERSOS",null,"H",1,16.13,16.13]
["Composição Auxiliar"," 95344 ","SINAPI","CURSO DE CAPACITAÇÃO PARA MONTADOR DE ESTRUTURA METÁLICA (ENCARGOS COMPLEMENTARES) - HORISTA","SEDI - SERVIÇOS DIVERSOS",null,"H",1,0.11,0.11]
["Insumo"," 00037370 ","SINAPI","ALIMENTACAO - HORISTA (COLETADO CAIXA)","Outros",null,"H",1,1.52,1.52]
["Insumo"," 00043488 ","SINAPI","EPI - FAMILIA OPERADOR ESCAVADEIRA - HORISTA (ENCARGOS COMPLEMENTARES - COLETADO CAIXA)","Equipamento",null,"H",1,0.76,0.76]
["Insumo"," 00037372 ","SINAPI","EXAMES - HORISTA (COLETADO CAIXA)","Outros",null,"H",1,0.81,0.81]
["Insumo"," 00043464 ","SINAPI","FERRAMENTAS - FAMILIA OPERADOR ESCAVADEIRA - HORISTA (ENCARGOS COMPLEMENTARES - COLETADO CAIXA)","Equipamento",null,"H",1,0.01,0.01]
["Insumo"," 00044497 ","SINAPI","MONTADOR DE ESTRUTURAS METALICAS HORISTA","Mão de Obra",null,"H",1,12.18,12.18]
["Insumo"," 00037373 ","SINAPI","SEGURO - HORISTA (COLETADO CAIXA)","Taxas",null,"H",1,0.06,0.06]
["Insumo"," 00037371 ","SINAPI","TRANSPORTE - HORISTA (COLETADO CAIXA)","Serviços",null,"H",1,0.68,0.68]
[null,null,null,null,"MO sem LS =>",12.29,"LS =>",0,"MO com LS =>",12.29]
[null,null,null,null,"Valor do BDI =>",4.03,null,"Valor com BDI =>",null,20.16]
[]
[null,"Código","Banco","Descrição","Tipo",null,"Und","Quant.","Valor Unit","Total"]
["Composição"," 88377 ","SINAPI","OPERADOR DE BETONEIRA ESTACIONÁRIA/MISTURADOR COM ENCARGOS COMPLEMENTARES","SEDI - SERVIÇOS DIVERSOS",null,"H",1,16.22,16.22]
["Composição Auxiliar"," 95389 ","SINAPI","CURSO DE CAPACITAÇÃO PARA OPERADOR DE BETONEIRA ESTACIONÁRIA/MISTURADOR (ENCARGOS COMPLEMENTARES) - HORISTA","SEDI - SERVIÇOS DIVERSOS",null,"H",1,0.08,0.08]
["Insumo"," 00037370 ","SINAPI","ALIMENTACAO - HORISTA (COLETADO CAIXA)","Outros",null,"H",1,1.52,1.52]
["Insumo"," 00043488 ","SINAPI","EPI - FAMILIA OPERADOR ESCAVADEIRA - HORISTA (ENCARGOS COMPLEMENTARES - COLETADO CAIXA)","Equipamento",null,"H",1,0.76,0.76]
["Insumo"," 00037372 ","SINAPI","EXAMES - HORISTA (COLETADO CAIXA)","Outros",null,"H",1,0.81,0.81]
["Insumo"," 00043464 ","SINAPI","FERRAMENTAS - FAMILIA OPERADOR ESCAVADEIRA - HORISTA (ENCARGOS COMPLEMENTARES - COLETADO CAIXA)","Equipamento",null,"H",1,0.01,0.01]
["Insumo"," 00037666 ","SINAPI","OPERADOR DE BETONEIRA ESTACIONARIA / MISTURADOR","Mão de Obra",null,"H",1,12.3,12.3]
["Insumo"," 00037373 ","SINAPI","SEGURO - HORISTA (COLETADO CAIXA)","Taxas",null,"H",1,0.06,0.06]
["Insumo"," 00037371 ","SINAPI","TRANSPORTE - HORISTA (COLETADO CAIXA)","Serviços",null,"H",1,0.68,0.68]
[null,null,null,null,"MO sem LS =>",12.38,"LS =>",0,"MO com LS =>",12.38]
[null,null,null,null,"Valor do BDI =>",4.05,null,"Valor com BDI =>",null,20.27]
[]
[null,"Código","Banco","Descrição","Tipo",null,"Und","Quant.","Valor Unit","Total"]
["Composição"," 88295 ","SINAPI","OPERADOR DE GUINCHO COM ENCARGOS COMPLEMENTARES","SEDI - SERVIÇOS DIVERSOS",null,"H",1,16.37,16.37]
["Composição Auxiliar"," 95358 ","SINAPI","CURSO DE CAPACITAÇÃO PARA OPERADOR DE GUINCHO (ENCARGOS COMPLEMENTARES) - HORISTA","SEDI - SERVIÇOS DIVERSOS",null,"H",1,0.16,0.16]
["Insumo"," 00037370 ","SINAPI","ALIMENTACAO - HORISTA (COLETADO CAIXA)","Outros",null,"H",1,1.52,1.52]
["Insumo"," 00043488 ","SINAPI","EPI - FAMILIA OPERADOR ESCAVADEIRA - HORISTA (ENCARGOS COMPLEMENTARES - COLETADO CAIXA)","Equipamento",null,"H",1,0.76,0.76]
["Insumo"," 00037372 ","SINAPI","EXAMES - HORISTA (COLETADO CAIXA)","Outros",null,"H",1,0.81,0.81]
["Insumo"," 00043464 ","SINAPI","FERRAMENTAS - FAMILIA OPERADOR ESCAVADEIRA - HORISTA (ENCARGOS COMPLEMENTARES - COLETADO CAIXA)","Equipamento",null,"H",1,0.01,0.01]
["Insumo"," 00004253 ","SINAPI","OPERADOR DE GUINCHO OU GUINCHEIRO","Mão de Obra",null,"H",1,12.37,12.37]
["Insumo"," 00037373 ","SINAPI","SEGURO - HORISTA (COLETADO CAIXA)","Taxas",null,"H",1,0.06,0.06]
["Insumo"," 00037371 ","SINAPI","TRANSPORTE - HORISTA (COLETADO CAIXA)","Serviços",null,"H",1,0.68,0.68]
[null,null,null,null,"MO sem LS =>",12.53,"LS =>",0,"MO com LS =>",12.53]
[null,null,null,null,"Valor do BDI =>",4.09,null,"Valor com BDI =>",null,20.46]
[]
[null,"Código","Banco","Descrição","Tipo",null,"Und","Quant.","Valor Unit","Total"]
["Composição"," 88297 ","SINAPI","OPERADOR DE MÁQUINAS E EQUIPAMENTOS COM ENCARGOS COMPLEMENTARES","SEDI - SERVIÇOS DIVERSOS",null,"H",1,17.079999999999998,17.079999999999998]
["Composição Auxiliar"," 95360 ","SINAPI","CURSO DE CAPACITAÇÃO PARA OPERADOR DE MÁQUINAS E EQUIPAMENTOS (ENCARGOS COMPLEMENTARES) - HORISTA","SEDI - SERVIÇOS DIVERSOS",null,"H",1,0.12,0.12]
["Insumo"," 00037370 ","SINAPI","ALIMENTACAO - HORISTA (COLETADO CAIXA)","Outros",null,"H",1,1.52,1.52]
["Insumo"," 00043488 ","SINAPI","EPI - FAMILIA OPERADOR ESCAVADEIRA - HORISTA (ENCARGOS COMPLEMENTARES - COLETADO CAIXA)","Equipamento",null,"H",1,0.76,0.76]
["Insumo"," 00037372 ","SINAPI","EXAMES - HORISTA (COLETADO CAIXA)","Outros",null,"H",1,0.81,0.81]
["Insumo"," 00043464 ","SINAPI","FERRAMENTAS - FAMILIA OPERADOR ESCAVADEIRA - HORISTA (ENCARGOS COMPLEMENTARES - COLETADO CAIXA)","Equipamento",null,"H",1,0.01,0.01]
["Insumo"," 00004230 ","SINAPI","OPERADOR DE MAQUINAS E TRATORES DIVERSOS (TERRAPLANAGEM)","Mão de Obra",null,"H",1,13.12,13.12]
["Insumo"," 00037373 ","SINAPI","SEGURO - HORISTA (COLETADO CAIXA)","Taxas",null,"H",1,0.06,0.06]
["Insumo"," 00037371 ","SINAPI","TRANSPORTE - HORISTA (COLETADO CAIXA)","Serviços",null,"H",1,0.68,0.68]
[null,null,null,null,"MO sem LS =>",13.24,"LS =>",0,"MO com LS =>",13.24]
[null,null,null,null,"Valor do BDI =>",4.2699999999999996,null,"Valor com BDI =>",null,21.35]
[]
[null,"Código","Banco","Descrição","Tipo",null,"Und","Quant.","Valor Unit","Total"]
["Composição"," 88309 ","SINAPI","PEDREIRO COM ENCARGOS COMPLEMENTARES","SEDI - SERVIÇOS DIVERSOS",null,"H",1,22.41,22.41]
["Composição Auxiliar"," 95371 ","SINAPI","CURSO DE CAPACITAÇÃO PARA PEDREIRO (ENCARGOS COMPLEMENTARES) - HORISTA","SEDI - SERVIÇOS DIVERSOS",null,"H",1,0.28999999999999998,0.28999999999999998]
["Insumo"," 00037370 ","SINAPI","ALIMENTACAO - HORISTA (COLETADO CAIXA)","Outros",null,"H",1,1.52,1.52]
["Insumo"," 00043489 ","SINAPI","EPI - FAMILIA PEDREIRO - HORISTA (ENCARGOS COMPLEMENTARES - COLETADO CAIXA)","Equipamento",null,"H",1,1.0900000000000001,1.0900000000000001]
["Insumo"," 00037372 ","SINAPI","EXAMES - HORISTA (COLETADO CAIXA)","Outros",null,"H",1,0.81,0.81]
["Insumo"," 00043465 ","SINAPI","FERRAMENTAS - FAMILIA PEDREIRO - HORISTA (ENCARGOS COMPLEMENTARES - COLETADO CAIXA)","Equipamento",null,"H",1,0.74,0.74]
["Insumo"," 00004750 ","SINAPI","PEDREIRO (HORISTA)","Mão de Obra",null,"H",1,17.22,17.22]
["Insumo"," 00037373 ","SINAPI","SEGURO - HORISTA (COLETADO CAIXA)","Taxas",null,"H",1,0.06,0.06]
["Insumo"," 00037371 ","SINAPI","TRANSPORTE - HORISTA (COLETADO CAIXA)","Serviços",null,"H",1,0.68,0.68]
[null,null,null,null,"MO sem LS =>",17.510000000000002,"LS =>",0,"MO com LS =>",17.510000000000002]
[null,null,null,null,"Valor do BDI =>",5.6,null,"Valor com BDI =>",null,28.01]
[]
[null,"Código","Banco","Descrição","Tipo",null,"Und","Quant.","Valor Unit","Total"]
["Composição"," 97734 ","SINAPI","PEÇA RETANGULAR PRÉ-MOLDADA, VOLUME DE CONCRETO DE 10 A 30 LITROS, TAXA DE AÇO APROXIMADA DE 30KG/M³. AF_01/2018","FUES - FUNDAÇÕES E ESTRUTURAS",null,"m³",1,2755.56,2755.56]
["Composição Auxiliar"," 91692 ","SINAPI","SERRA CIRCULAR DE BANCADA COM MOTOR ELÉTRICO POTÊNCIA DE 5HP, COM COIFA PARA DISCO 10\" - CHP DIURNO. AF_08/2015","CHOR - CUSTOS HORÁRIOS DE MÁQUINAS E EQUIPAMENTOS",null,"CHP",0.48770000000000002,18.52,9.0299999999999994]
["Composição Auxiliar"," 90586 ","SINAPI","VIBRADOR DE IMERSÃO, DIÂMETRO DE PONTEIRA 45MM, MOTOR ELÉTRICO TRIFÁSICO POTÊNCIA DE 2 CV - CHP DIURNO. AF_06/2015","CHOR - CUSTOS HORÁRIOS DE MÁQUINAS E EQUIPAMENTOS",null,"CHP",6.6349999999999998,1.42,9.42]
["Composição Auxiliar"," 91693 ","SINAPI","SERRA CIRCULAR DE BANCADA COM MOTOR ELÉTRICO POTÊNCIA DE 5HP, COM COIFA PARA DISCO 10\" - CHI DIURNO. AF_08/2015","CHOR - CUSTOS HORÁRIOS DE MÁQUINAS E EQUIPAMENTOS",null,"CHI",0.70430000000000004,17.21,12.12]
["Composição Auxiliar"," 90587 ","SINAPI","VIBRADOR DE IMERSÃO, DIÂMETRO DE PONTEIRA 45MM, MOTOR ELÉTRICO TRIFÁSICO POTÊNCIA DE 2 CV - CHI DIURNO. AF_06/2015","CHOR - CUSTOS HORÁRIOS DE MÁQUINAS E EQUIPAMENTOS",null,"CHI",18.246200000000002,0.56000000000000005,10.210000000000001]
["Composição Auxiliar"," 92767 ","SINAPI","ARMAÇÃO DE LAJE DE ESTRUTURA CONVENCIONAL DE CONCRETO ARMADO UTILIZANDO AÇO CA-60 DE 4,2 MM - MONTAGEM. AF_06/2022","FUES - FUNDAÇÕES E ESTRUTURAS",null,"KG",27.898800000000001,18.739999999999998,522.82000000000005]
["Composição Auxiliar"," 94971 ","SINAPI","CONCRETO FCK = 25MPA, TRAÇO 1:2,3:2,7 (EM MASSA SECA DE CIMENTO/ AREIA MÉDIA/ BRITA 1) - PREPARO MECÂNICO COM BETONEIRA 600 L. AF_05/2021","FUES - FUNDAÇÕES E ESTRUTURAS",null,"m³",1.2,506.78,608.13]
["Composição Auxiliar"," 88239 ","SINAPI","AJUDANTE DE CARPINTEIRO COM ENCARGOS COMPLEMENTARES","SEDI - SERVIÇOS DIVERSOS",null,"H",1.1919999999999999,18.79,22.39]
["Composição Auxiliar"," 88261 ","SINAPI","CARPINTEIRO DE ESQUADRIA COM ENCARGOS COMPLEMENTARES","SEDI - SERVIÇOS DIVERSOS",null,"H",5.96,21.18,126.23]
["Composição Auxiliar"," 88309 ","SINAPI","PEDREIRO COM ENCARGOS COMPLEMENTARES","SEDI - SERVIÇOS DIVERSOS",null,"H",31.5459,22.41,706.94]
["Composição Auxiliar"," 88316 ","SINAPI","SERVENTE COM ENCARGOS COMPLEMENTARES","SEDI - SERVIÇOS DIVERSOS",null,"H",31.5459,17.82,562.14]
["Insumo"," 00001358 ","SINAPI","CHAPA/PAINEL DE MADEIRA COMPENSADA RESINADA (MADEIRITE RESINADO ROSA) PARA FORMA DE CONCRETO, DE 2200 x 1100 MM, E = 17 MM","Material",null,"m²",1.9403999999999999,68.53,132.97]
["Insumo"," 00002692 ","SINAPI","DESMOLDANTE PROTETOR PARA FORMAS DE MADEIRA, DE BASE OLEOSA EMULSIONADA EM AGUA","Material",null,"L",8.3299999999999999E-2,7.62,0.63]
["Insumo"," 00020247 ","SINAPI","PREGO DE ACO POLIDO COM CABECA 15 X 15 (1 1/4 X 13)","Material",null,"KG",0.4365,29.68,12.95]
["Insumo"," 00004517 ","SINAPI","SARRAFO *2,5 X 7,5* CM EM PINUS, MISTA OU EQUIVALENTE DA REGIAO - BRUTA","Material",null,"M",5.6283000000000003,3.48,19.579999999999998]
[null,null,null,null,"MO sem LS =>",1251.1099999999999,"LS =>",0,"MO com LS =>",1251.1099999999999]
[null,null,null,null,"Valor do BDI =>",688.89,null,"Valor com BDI =>",null,3444.45]
[]
[null,"Código","Banco","Descrição","Tipo",null,"Und","Quant.","Valor Unit","Total"]
["Composição"," 88310 ","SINAPI","PINTOR COM ENCARGOS COMPLEMENTARES","SEDI - SERVIÇOS DIVERSOS",null,"H",1,23.47,23.47]
["Composição Auxiliar"," 95372 ","SINAPI","CURSO DE CAPACITAÇÃO PARA PINTOR (ENCARGOS COMPLEMENTARES) - HORISTA","SEDI - SERVIÇOS DIVERSOS",null,"H",1,0.2,0.2]
["Insumo"," 00037370 ","SINAPI","ALIMENTACAO - HORISTA (COLETADO CAIXA)","Outros",null,"H",1,1.52,1.52]
["Insumo"," 00043490 ","SINAPI","EPI - FAMILIA PINTOR - HORISTA (ENCARGOS COMPLEMENTARES - COLETADO CAIXA)","Equipamento",null,"H",1,1.5,1.5]
["Insumo"," 00037372 ","SINAPI","EXAMES - HORISTA (COLETADO CAIXA)","Outros",null,"H",1,0.81,0.81]
["Insumo"," 00043466 ","SINAPI","FERRAMENTAS - FAMILIA PINTOR - HORISTA (ENCARGOS COMPLEMENTARES - COLETADO CAIXA)","Equipamento",null,"H",1,1.48,1.48]
["Insumo"," 00004783 ","SINAPI","PINTOR (HORISTA)","Mão de Obra",null,"H",1,17.22,17.22]
["Insumo"," 00037373 ","SINAPI","SEGURO - HORISTA (COLETADO CAIXA)","Taxas",null,"H",1,0.06,0.06]
["Insumo"," 00037371 ","SINAPI","TRANSPORTE - HORISTA (COLETADO CAIXA)","Serviços",null,"H",1,0.68,0.68]
[null,null,null,null,"MO sem LS =>",17.420000000000002,"LS =>",0,"MO com LS =>",17.420000000000002]
[null,null,null,null,"Valor do BDI =>",5.86,null,"Valor com BDI =>",null,29.33]
[]
[null,"Código","Banco","Descrição","Tipo",null,"Und","Quant.","Valor Unit","Total"]
["Composição"," 91278 ","SINAPI","PLACA VIBRATÓRIA REVERSÍVEL COM MOTOR 4 TEMPOS A GASOLINA, FORÇA CENTRÍFUGA DE 25 KN (2500 KGF), POTÊNCIA 5,5 CV - CHI DIURNO. AF_08/2015","CHOR - CUSTOS HORÁRIOS DE MÁQUINAS E EQUIPAMENTOS",null,"CHI",1,0.57999999999999996,0.57999999999999996]
["Composição Auxiliar"," 91273 ","SINAPI","PLACA VIBRATÓRIA REVERSÍVEL COM MOTOR 4 TEMPOS A GASOLINA, FORÇA CENTRÍFUGA DE 25 KN (2500 KGF), POTÊNCIA 5,5 CV - DEPRECIAÇÃO. AF_08/2015","CHOR - CUSTOS HORÁRIOS DE MÁQUINAS E EQUIPAMENTOS",null,"H",1,0.51,0.51]
["Composição Auxiliar"," 91274 ","SINAPI","PLACA VIBRATÓRIA REVERSÍVEL COM MOTOR 4 TEMPOS A GASOLINA, FORÇA CENTRÍFUGA DE 25 KN (2500 KGF), POTÊNCIA 5,5 CV - JUROS. AF_08/2015","CHOR - CUSTOS HORÁRIOS DE MÁQUINAS E EQUIPAMENTOS",null,"H",1,7.0000000000000007E-2,7.0000000000000007E-2]
[null,null,null,null,"MO sem LS =>",0,"LS =>",0,"MO com LS =>",0]
[null,null,null,null,"Valor do BDI =>",0.14000000000000001,null,"Valor com BDI =>",null,0.72]
[]
[null,"Código","Banco","Descrição","Tipo",null,"Und","Quant.","Valor Unit","Total"]
["Composição"," 91277 ","SINAPI","PLACA VIBRATÓRIA REVERSÍVEL COM MOTOR 4 TEMPOS A GASOLINA, FORÇA CENTRÍFUGA DE 25 KN (2500 KGF), POTÊNCIA 5,5 CV - CHP DIURNO. AF_08/2015","CHOR - CUSTOS HORÁRIOS DE MÁQUINAS E EQUIPAMENTOS",null,"CHP",1,11.32,11.32]
["Composição Auxiliar"," 91273 ","SINAPI","PLACA VIBRATÓRIA REVERSÍVEL COM MOTOR 4 TEMPOS A GASOLINA, FORÇA CENTRÍFUGA DE 25 KN (2500 KGF), POTÊNCIA 5,5 CV - DEPRECIAÇÃO. AF_08/2015","CHOR - CUSTOS HORÁRIOS DE MÁQUINAS E EQUIPAMENTOS",null,"H",1,0.51,0.51]
["Composição Auxiliar"," 91274 ","SINAPI","PLACA VIBRATÓRIA REVERSÍVEL COM MOTOR 4 TEMPOS A GASOLINA, FORÇA CENTRÍFUGA DE 25 KN (2500 KGF), POTÊNCIA 5,5 CV - JUROS. AF_08/2015","CHOR - CUSTOS HORÁRIOS DE MÁQUINAS E EQUIPAMENTOS",null,"H",1,7.0000000000000007E-2,7.0000000000000007E-2]
["Composição Auxiliar"," 91276 ","SINAPI","PLACA VIBRATÓRIA REVERSÍVEL COM MOTOR 4 TEMPOS A GASOLINA, FORÇA CENTRÍFUGA DE 25 KN (2500 KGF), POTÊNCIA 5,5 CV - MATERIAIS NA OPERAÇÃO. AF_08/2015","CHOR - CUSTOS HORÁRIOS DE MÁQUINAS E EQUIPAMENTOS",null,"H",1,10.1,10.1]
["Composição Auxiliar"," 91275 ","SINAPI","PLACA VIBRATÓRIA REVERSÍVEL COM MOTOR 4 TEMPOS A GASOLINA, FORÇA CENTRÍFUGA DE 25 KN (2500 KGF), POTÊNCIA 5,5 CV - MANUTENÇÃO. AF_08/2015","CHOR - CUSTOS HORÁRIOS DE MÁQUINAS E EQUIPAMENTOS",null,"H",1,0.64,0.64]
[null,null,null,null,"MO sem LS =>",0,"LS =>",0,"MO com LS =>",0]
[null,null,null,null,"Valor do BDI =>",2.83,null,"Valor com BDI =>",null,14.15]
[]
[null,"Código","Banco","Descrição","Tipo",null,"Und","Quant.","Valor Unit","Total"]
["Composição"," 91273 ","SINAPI","PLACA VIBRATÓRIA REVERSÍVEL COM MOTOR 4 TEMPOS A GASOLINA, FORÇA CENTRÍFUGA DE 25 KN (2500 KGF), POTÊNCIA 5,5 CV - DEPRECIAÇÃO. AF_08/2015","CHOR - CUSTOS HORÁRIOS DE MÁQUINAS E EQUIPAMENTOS",null,"H",1,0.51,0.51]
["Insumo"," 00001442 ","SINAPI","COMPACTADOR DE SOLO TIPO PLACA VIBRATORIA REVERSIVEL, A GASOLINA, 4 TEMPOS, PESO DE 125 A 150 KG, FORCA CENTRIFUGA DE 2500 A 2800 KGF, LARG. TRABALHO DE 400 A 450 MM, FREQ VIBRACAO DE 4300 A 4500 RPM, VELOC. TRABALHO DE 15 A 20 M/MIN, POT. DE 5,5 A 6,0 HP","Equipamento",null,"UN",5.3300000000000001E-5,9728.8799999999992,0.51]
[null,null,null,null,"MO sem LS =>",0,"LS =>",0,"MO com LS =>",0]
[null,null,null,null,"Valor do BDI =>",0.12,null,"Valor com BDI =>",null,0.63]
[]
[null,"Código","Banco","Descrição","Tipo",null,"Und","Quant.","Valor Unit","Total"]
["Composição"," 91274 ","SINAPI","PLACA VIBRATÓRIA REVERSÍVEL COM MOTOR 4 TEMPOS A GASOLINA, FORÇA CENTRÍFUGA DE 25 KN (2500 KGF), POTÊNCIA 5,5 CV - JUROS. AF_08/2015","CHOR - CUSTOS HORÁRIOS DE MÁQUINAS E EQUIPAMENTOS",null,"H",1,7.0000000000000007E-2,7.0000000000000007E-2]
["Insumo"," 00001442 ","SINAPI","COMPACTADOR DE SOLO TIPO PLACA VIBRATORIA REVERSIVEL, A GASOLINA, 4 TEMPOS, PESO DE 125 A 150 KG, FORCA CENTRIFUGA DE 2500 A 2800 KGF, LARG. TRABALHO DE 400 A 450 MM, FREQ VIBRACAO DE 4300 A 4500 RPM, VELOC. TRABALHO DE 15 A 20 M/MIN, POT. DE 5,5 A 6,0 HP","Equipamento",null,"UN",7.4000000000000003E-6,9728.8799999999992,7.0000000000000007E-2]
[null,null,null,null,"MO sem LS =>",0,"LS =>",0,"MO com LS =>",0]
[null,null,null,null,"Valor do BDI =>",0.01,null,"Valor com BDI =>",null,0.08]
[]
[null,"Código","Banco","Descrição","Tipo",null,"Und","Quant.","Valor Unit","Total"]
["Composição"," 91275 ","SINAPI","PLACA VIBRATÓRIA REVERSÍVEL COM MOTOR 4 TEMPOS A GASOLINA, FORÇA CENTRÍFUGA DE 25 KN (2500 KGF), POTÊNCIA 5,5 CV - MANUTENÇÃO. AF_08/2015","CHOR - CUSTOS HORÁRIOS DE MÁQUINAS E EQUIPAMENTOS",null,"H",1,0.64,0.64]
["Insumo"," 00001442 ","SINAPI","COMPACTADOR DE SOLO TIPO PLACA VIBRATORIA REVERSIVEL, A GASOLINA, 4 TEMPOS, PESO DE 125 A 150 KG, FORCA CENTRIFUGA DE 2500 A 2800 KGF, LARG. TRABALHO DE 400 A 450 MM, FREQ VIBRACAO DE 4300 A 4500 RPM, VELOC. TRABALHO DE 15 A 20 M/MIN, POT. DE 5,5 A 6,0 HP","Equipamento",null,"UN",6.6699999999999995E-5,9728.8799999999992,0.64]
[null,null,null,null,"MO sem LS =>",0,"LS =>",0,"MO com LS =>",0]
[null,null,null,null,"Valor do BDI =>",0.16,null,"Valor com BDI =>",null,0.8]
[]
[null,"Código","Banco","Descrição","Tipo",null,"Und","Quant.","Valor Unit","Total"]
["Composição"," 91276 ","SINAPI","PLACA VIBRATÓRIA REVERSÍVEL COM MOTOR 4 TEMPOS A GASOLINA, FORÇA CENTRÍFUGA DE 25 KN (2500 KGF), POTÊNCIA 5,5 CV - MATERIAIS NA OPERAÇÃO. AF_08/2015","CHOR - CUSTOS HORÁRIOS DE MÁQUINAS E EQUIPAMENTOS",null,"H",1,10.1,10.1]
["Insumo"," 00004222 ","SINAPI","GASOLINA COMUM","Material",null,"L",1.44,7.02,10.1]
[null,null,null,null,"MO sem LS =>",0,"LS =>",0,"MO com LS =>",0]
[null,null,null,null,"Valor do BDI =>",2.52,null,"Valor com BDI =>",null,12.62]
[]
[null,"Código","Banco","Descrição","Tipo",null,"Und","Quant.","Valor Unit","Total"]
["Composição"," 91338 ","SINAPI","PORTA DE ALUMÍNIO DE ABRIR COM LAMBRI, COM GUARNIÇÃO, FIXAÇÃO COM PARAFUSOS - FORNECIMENTO E INSTALAÇÃO. AF_12/2019","ESQV - ESQUADRIAS/FERRAGENS/VIDROS",null,"m²",1,791.39,791.39]
["Composição Auxiliar"," 88309 ","SINAPI","PEDREIRO COM ENCARGOS COMPLEMENTARES","SEDI - SERVIÇOS DIVERSOS",null,"H",0.35630000000000001,22.41,7.98]
["Composição Auxiliar"," 88316 ","SINAPI","SERVENTE COM ENCARGOS COMPLEMENTARES","SEDI - SERVIÇOS DIVERSOS",null,"H",0.1779,17.82,3.17]
["Insumo"," 00007568 ","SINAPI","BUCHA DE NYLON SEM ABA S10, COM PARAFUSO DE 6,10 X 65 MM EM ACO ZINCADO COM ROSCA SOBERBA, CABECA CHATA E FENDA PHILLIPS","Material",null,"UN",4.8166000000000002,0.73,3.51]
["Insumo"," 00036888 ","SINAPI","GUARNICAO / MOLDURA / ARREMATE DE ACABAMENTO PARA ESQUADRIA, EM ALUMINIO PERFIL 25, ACABAMENTO ANODIZADO BRANCO OU BRILHANTE, PARA 1 FACE","Material",null,"M",6.8503999999999996,26.67,182.7]
["Insumo"," 00004914 ","SINAPI","PORTA DE ABRIR EM ALUMINIO COM LAMBRI HORIZONTAL/LAMINADA, ACABAMENTO ANODIZADO NATURAL, SEM GUARNICAO/ALIZAR/VISTA","Material",null,"m²",1,560.46,560.46]
["Insumo"," 00000142 ","SINAPI","SELANTE ELASTICO MONOCOMPONENTE A BASE DE POLIURETANO (PU) PARA JUNTAS DIVERSAS","Material",null,"310ML",0.88290000000000002,38.03,33.57]
[null,null,null,null,"MO sem LS =>",8.5399999999999991,"LS =>",0,"MO com LS =>",8.5399999999999991]
[null,null,null,null,"Valor do BDI =>",197.84,null,"Valor com BDI =>",null,989.23]
[]
[null,"Código","Banco","Descrição","Tipo",null,"Und","Quant.","Valor Unit","Total"]
["Composição"," 101618 ","SINAPI","PREPARO DE FUNDO DE VALA COM LARGURA MENOR QUE 1,5 M, COM CAMADA DE AREIA, LANÇAMENTO MANUAL. AF_08/2020","MOVT - MOVIMENTO DE TERRA",null,"m³",1,227.81,227.81]
["Composição Auxiliar"," 91533 ","SINAPI","COMPACTADOR DE SOLOS DE PERCUSSÃO (SOQUETE) COM MOTOR A GASOLINA 4 TEMPOS, POTÊNCIA 4 CV - CHP DIURNO. AF_08/2015","CHOR - CUSTOS HORÁRIOS DE MÁQUINAS E EQUIPAMENTOS",null,"CHP",7.1800000000000003E-2,26.12,1.87]
["Composição Auxiliar"," 91534 ","SINAPI","COMPACTADOR DE SOLOS DE PERCUSSÃO (SOQUETE) COM MOTOR A GASOLINA 4 TEMPOS, POTÊNCIA 4 CV - CHI DIURNO. AF_08/2015","CHOR - CUSTOS HORÁRIOS DE MÁQUINAS E EQUIPAMENTOS",null,"CHI",6.6600000000000006E-2,17.940000000000001,1.19]
["Composição Auxiliar"," 88309 ","SINAPI","PEDREIRO COM ENCARGOS COMPLEMENTARES","SEDI - SERVIÇOS DIVERSOS",null,"H",2.0219,22.41,45.31]
["Composição Auxiliar"," 88316 ","SINAPI","SERVENTE COM ENCARGOS COMPLEMENTARES","SEDI - SERVIÇOS DIVERSOS",null,"H",3.0329000000000002,17.82,54.04]
["Insumo"," 00000370 ","SINAPI","AREIA MEDIA - POSTO JAZIDA/FORNECEDOR (RETIRADO NA JAZIDA, SEM TRANSPORTE)","Material",null,"m³",1.1000000000000001,114,125.4]
[null,null,null,null,"MO sem LS =>",76.77,"LS =>",0,"MO com LS =>",76.77]
[null,null,null,null,"Valor do BDI =>",56.95,null,"Valor com BDI =>",null,284.76]
[]
[null,"Código","Banco","Descrição","Tipo",null,"Und","Quant.","Valor Unit","Total"]
["Composição"," 101619 ","SINAPI","PREPARO DE FUNDO DE VALA COM LARGURA MENOR QUE 1,5 M, COM CAMADA DE BRITA, LANÇAMENTO MANUAL. AF_08/2020","MOVT - MOVIMENTO DE TERRA",null,"m³",1,247.37,247.37]
["Composição Auxiliar"," 91533 ","SINAPI","COMPACTADOR DE SOLOS DE PERCUSSÃO (SOQUETE) COM MOTOR A GASOLINA 4 TEMPOS, POTÊNCIA 4 CV - CHP DIURNO. AF_08/2015","CHOR - CUSTOS HORÁRIOS DE MÁQUINAS E EQUIPAMENTOS",null,"CHP",7.1800000000000003E-2,26.12,1.87]
["Composição Auxiliar"," 91534 ","SINAPI","COMPACTADOR DE SOLOS DE PERCUSSÃO (SOQUETE) COM MOTOR A GASOLINA 4 TEMPOS, POTÊNCIA 4 CV - CHI DIURNO. AF_08/2015","CHOR - CUSTOS HORÁRIOS DE MÁQUINAS E EQUIPAMENTOS",null,"CHI",6.6600000000000006E-2,17.940000000000001,1.19]
["Composição Auxiliar"," 88309 ","SINAPI","PEDREIRO COM ENCARGOS COMPLEMENTARES","SEDI - SERVIÇOS DIVERSOS",null,"H",2.4937999999999998,22.41,55.88]
["Composição Auxiliar"," 88316 ","SINAPI","SERVENTE COM ENCARGOS COMPLEMENTARES","SEDI - SERVIÇOS DIVERSOS",null,"H",3.7406999999999999,17.82,66.650000000000006]
["Insumo"," 00004720 ","SINAPI","PEDRA BRITADA N. 0, OU PEDRISCO (4,8 A 9,5 MM) POSTO PEDREIRA/FORNECEDOR, SEM FRETE","Material",null,"m³",1.1000000000000001,110.71,121.78]
[null,null,null,null,"MO sem LS =>",94.26,"LS =>",0,"MO com LS =>",94.26]
[null,null,null,null,"Valor do BDI =>",61.84,null,"Valor com BDI =>",null,309.20999999999998]
[]
[null,"Código","Banco","Descrição","Tipo",null,"Und","Quant.","Valor Unit","Total"]
["Composição"," 91693 ","SINAPI","SERRA CIRCULAR DE BANCADA COM MOTOR ELÉTRICO POTÊNCIA DE 5HP, COM COIFA PARA DISCO 10\" - CHI DIURNO. AF_08/2015","CHOR - CUSTOS HORÁRIOS DE MÁQUINAS E EQUIPAMENTOS",null,"CHI",1,17.21,17.21]
["Composição Auxiliar"," 91689 ","SINAPI","SERRA CIRCULAR DE BANCADA COM MOTOR ELÉTRICO POTÊNCIA DE 5HP, COM COIFA PARA DISCO 10\" - JUROS. AF_08/2015","CHOR - CUSTOS HORÁRIOS DE MÁQUINAS E EQUIPAMENTOS",null,"H",1,0.01,0.01]
["Composição Auxiliar"," 91688 ","SINAPI","SERRA CIRCULAR DE BANCADA COM MOTOR ELÉTRICO POTÊNCIA DE 5HP, COM COIFA PARA DISCO 10\" - DEPRECIAÇÃO. AF_08/2015","CHOR - CUSTOS HORÁRIOS DE MÁQUINAS E EQUIPAMENTOS",null,"H",1,0.12,0.12]
["Composição Auxiliar"," 88297 ","SINAPI","OPERADOR DE MÁQUINAS E EQUIPAMENTOS COM ENCARGOS COMPLEMENTARES","SEDI - SERVIÇOS DIVERSOS",null,"H",1,17.079999999999998,17.079999999999998]
[null,null,null,null,"MO sem LS =>",13.24,"LS =>",0,"MO com LS =>",13.24]
[null,null,null,null,"Valor do BDI =>",4.3,null,"Valor com BDI =>",null,21.51]
[]
[null,"Código","Banco","Descrição","Tipo",null,"Und","Quant.","Valor Unit","Total"]
["Composição"," 91692 ","SINAPI","SERRA CIRCULAR DE BANCADA COM MOTOR ELÉTRICO POTÊNCIA DE 5HP, COM COIFA PARA DISCO 10\" - CHP DIURNO. AF_08/2015","CHOR - CUSTOS HORÁRIOS DE MÁQUINAS E EQUIPAMENTOS",null,"CHP",1,18.52,18.52]
["Composição Auxiliar"," 91689 ","SINAPI","SERRA CIRCULAR DE BANCADA COM MOTOR ELÉTRICO POTÊNCIA DE 5HP, COM COIFA PARA DISCO 10\" - JUROS. AF_08/2015","CHOR - CUSTOS HORÁRIOS DE MÁQUINAS E EQUIPAMENTOS",null,"H",1,0.01,0.01]
["Composição Auxiliar"," 91690 ","SINAPI","SERRA CIRCULAR DE BANCADA COM MOTOR ELÉTRICO POTÊNCIA DE 5HP, COM COIFA PARA DISCO 10\" - MANUTENÇÃO. AF_08/2015","CHOR - CUSTOS HORÁRIOS DE MÁQUINAS E EQUIPAMENTOS",null,"H",1,0.08,0.08]
["Composição Auxiliar"," 91688 ","SINAPI","SERRA CIRCULAR DE BANCADA COM MOTOR ELÉTRICO POTÊNCIA DE 5HP, COM COIFA PARA DISCO 10\" - DEPRECIAÇÃO. AF_08/2015","CHOR - CUSTOS HORÁRIOS DE MÁQUINAS E EQUIPAMENTOS",null,"H",1,0.12,0.12]
["Composição Auxiliar"," 91691 ","SINAPI","SERRA CIRCULAR DE BANCADA COM MOTOR ELÉTRICO POTÊNCIA DE 5HP, COM COIFA PARA DISCO 10\" - MATERIAIS NA OPERAÇÃO. AF_08/2015","CHOR - CUSTOS HORÁRIOS DE MÁQUINAS E EQUIPAMENTOS",null,"H",1,1.23,1.23]
["Composição Auxiliar"," 88297 ","SINAPI","OPERADOR DE MÁQUINAS E EQUIPAMENTOS COM ENCARGOS COMPLEMENTARES","SEDI - SERVIÇOS DIVERSOS",null,"H",1,17.079999999999998,17.079999999999998]
[null,null,null,null,"MO sem LS =>",13.24,"LS =>",0,"MO com LS =>",13.24]
[null,null,null,null,"Valor do BDI =>",4.63,null,"Valor com BDI =>",null,23.15]
[]
[null,"Código","Banco","Descrição","Tipo",null,"Und","Quant.","Valor Unit","Total"]
["Composição"," 91688 ","SINAPI","SERRA CIRCULAR DE BANCADA COM MOTOR ELÉTRICO POTÊNCIA DE 5HP, COM COIFA PARA DISCO 10\" - DEPRECIAÇÃO. AF_08/2015","CHOR - CUSTOS HORÁRIOS DE MÁQUINAS E EQUIPAMENTOS",null,"H",1,0.12,0.12]
["Insumo"," 00014618 ","SINAPI","SERRA CIRCULAR DE BANCADA COM MOTOR ELETRICO, POTENCIA DE *1600* W, PARA DISCO DE DIAMETRO DE 10\" (250 MM)","Material",null,"UN",7.2000000000000002E-5,1677.77,0.12]
[null,null,null,null,"MO sem LS =>",0,"LS =>",0,"MO com LS =>",0]
[null,null,null,null,"Valor do BDI =>",0.03,null,"Valor com BDI =>",null,0.15]
[]
[null,"Código","Banco","Descrição","Tipo",null,"Und","Quant.","Valor Unit","Total"]
["Composição"," 91689 ","SINAPI","SERRA CIRCULAR DE BANCADA COM MOTOR ELÉTRICO POTÊNCIA DE 5HP, COM COIFA PARA DISCO 10\" - JUROS. AF_08/2015","CHOR - CUSTOS HORÁRIOS DE MÁQUINAS E EQUIPAMENTOS",null,"H",1,0.01,0.01]
["Insumo"," 00014618 ","SINAPI","SERRA CIRCULAR DE BANCADA COM MOTOR ELETRICO, POTENCIA DE *1600* W, PARA DISCO DE DIAMETRO DE 10\" (250 MM)","Material",null,"UN",7.5000000000000002E-6,1677.77,0.01]
[null,null,null,null,"MO sem LS =>",0,"LS =>",0,"MO com LS =>",0]
[null,null,null,null,"Valor do BDI =>",0,null,"Valor com BDI =>",null,0.01]
[]
[null,"Código","Banco","Descrição","Tipo",null,"Und","Quant.","Valor Unit","Total"]
["Composição"," 91690 ","SINAPI","SERRA CIRCULAR DE BANCADA COM MOTOR ELÉTRICO POTÊNCIA DE 5HP, COM COIFA PARA DISCO 10\" - MANUTENÇÃO. AF_08/2015","CHOR - CUSTOS HORÁRIOS DE MÁQUINAS E EQUIPAMENTOS",null,"H",1,0.08,0.08]
["Insumo"," 00014618 ","SINAPI","SERRA CIRCULAR DE BANCADA COM MOTOR ELETRICO, POTENCIA DE *1600* W, PARA DISCO DE DIAMETRO DE 10\" (250 MM)","Material",null,"UN",5.0000000000000002E-5,1677.77,0.08]
[null,null,null,null,"MO sem LS =>",0,"LS =>",0,"MO com LS =>",0]
[null,null,null,null,"Valor do BDI =>",0.02,null,"Valor com BDI =>",null,0.1]
[]
[null,"Código","Banco","Descrição","Tipo",null,"Und","Quant.","Valor Unit","Total"]
["Composição"," 91691 ","SINAPI","SERRA CIRCULAR DE BANCADA COM MOTOR ELÉTRICO POTÊNCIA DE 5HP, COM COIFA PARA DISCO 10\" - MATERIAIS NA OPERAÇÃO. AF_08/2015","CHOR - CUSTOS HORÁRIOS DE MÁQUINAS E EQUIPAMENTOS",null,"H",1,1.23,1.23]
["Insumo"," 00002705 ","SINAPI","ENERGIA ELETRICA ATE 2000 KWH INDUSTRIAL, SEM DEMANDA","Material",null,"KWH",1.36,0.91,1.23]
[null,null,null,null,"MO sem LS =>",0,"LS =>",0,"MO com LS =>",0]
[null,null,null,null,"Valor do BDI =>",0.3,null,"Valor com BDI =>",null,1.53]
[]
[null,"Código","Banco","Descrição","Tipo",null,"Und","Quant.","Valor Unit","Total"]
["Composição"," 88315 ","SINAPI","SERRALHEIRO COM ENCARGOS COMPLEMENTARES","SEDI - SERVIÇOS DIVERSOS",null,"H",1,22.28,22.28]
["Composição Auxiliar"," 95377 ","SINAPI","CURSO DE CAPACITAÇÃO PARA SERRALHEIRO (ENCARGOS COMPLEMENTARES) - HORISTA","SEDI - SERVIÇOS DIVERSOS",null,"H",1,0.16,0.16]
["Insumo"," 00037370 ","SINAPI","ALIMENTACAO - HORISTA (COLETADO CAIXA)","Outros",null,"H",1,1.52,1.52]
["Insumo"," 00043489 ","SINAPI","EPI - FAMILIA PEDREIRO - HORISTA (ENCARGOS COMPLEMENTARES - COLETADO CAIXA)","Equipamento",null,"H",1,1.0900000000000001,1.0900000000000001]
["Insumo"," 00037372 ","SINAPI","EXAMES - HORISTA (COLETADO CAIXA)","Outros",null,"H",1,0.81,0.81]
["Insumo"," 00043465 ","SINAPI","FERRAMENTAS - FAMILIA PEDREIRO - HORISTA (ENCARGOS COMPLEMENTARES - COLETADO CAIXA)","Equipamento",null,"H",1,0.74,0.74]
["Insumo"," 00037373 ","SINAPI","SEGURO - HORISTA (COLETADO CAIXA)","Taxas",null,"H",1,0.06,0.06]
["Insumo"," 00006110 ","SINAPI","SERRALHEIRO (HORISTA)","Mão de Obra",null,"H",1,17.22,17.22]
["Insumo"," 00037371 ","SINAPI","TRANSPORTE - HORISTA (COLETADO CAIXA)","Serviços",null,"H",1,0.68,0.68]
[null,null,null,null,"MO sem LS =>",17.38,"LS =>",0,"MO com LS =>",17.38]
[null,null,null,null,"Valor do BDI =>",5.57,null,"Valor com BDI =>",null,27.85]
[]
[null,"Código","Banco","Descrição","Tipo",null,"Und","Quant.","Valor Unit","Total"]
["Composição"," 88316 ","SINAPI","SERVENTE COM ENCARGOS COMPLEMENTARES","SEDI - SERVIÇOS DIVERSOS",null,"H",1,17.82,17.82]
["Composição Auxiliar"," 95378 ","SINAPI","CURSO DE CAPACITAÇÃO PARA SERVENTE (ENCARGOS COMPLEMENTARES) - HORISTA","SEDI - SERVIÇOS DIVERSOS",null,"H",1,0.22,0.22]
["Insumo"," 00037370 ","SINAPI","ALIMENTACAO - HORISTA (COLETADO CAIXA)","Outros",null,"H",1,1.52,1.52]
["Insumo"," 00043491 ","SINAPI","EPI - FAMILIA SERVENTE - HORISTA (ENCARGOS COMPLEMENTARES - COLETADO CAIXA)","Equipamento",null,"H",1,1.1499999999999999,1.1499999999999999]
["Insumo"," 00037372 ","SINAPI","EXAMES - HORISTA (COLETADO CAIXA)","Outros",null,"H",1,0.81,0.81]
["Insumo"," 00043467 ","SINAPI","FERRAMENTAS - FAMILIA SERVENTE - HORISTA (ENCARGOS COMPLEMENTARES - COLETADO CAIXA)","Equipamento",null,"H",1,0.56000000000000005,0.56000000000000005]
["Insumo"," 00037373 ","SINAPI","SEGURO - HORISTA (COLETADO CAIXA)","Taxas",null,"H",1,0.06,0.06]
["Insumo"," 00006111 ","SINAPI","SERVENTE DE OBRAS","Mão de Obra",null,"H",1,12.82,12.82]
["Insumo"," 00037371 ","SINAPI","TRANSPORTE - HORISTA (COLETADO CAIXA)","Serviços",null,"H",1,0.68,0.68]
[null,null,null,null,"MO sem LS =>",13.04,"LS =>",0,"MO com LS =>",13.04]
[null,null,null,null,"Valor do BDI =>",4.45,null,"Valor com BDI =>",null,22.27]
[]
[null,"Código","Banco","Descrição","Tipo",null,"Und","Quant.","Valor Unit","Total"]
["Composição"," 88323 ","SINAPI","TELHADISTA COM ENCARGOS COMPLEMENTARES","SEDI - SERVIÇOS DIVERSOS",null,"H",1,21.93,21.93]
["Composição Auxiliar"," 95385 ","SINAPI","CURSO DE CAPACITAÇÃO PARA TELHADISTA (ENCARGOS COMPLEMENTARES) - HORISTA","SEDI - SERVIÇOS DIVERSOS",null,"H",1,0.15,0.15]
["Insumo"," 00037370 ","SINAPI","ALIMENTACAO - HORISTA (COLETADO CAIXA)","Outros",null,"H",1,1.52,1.52]
["Insumo"," 00043483 ","SINAPI","EPI - FAMILIA CARPINTEIRO DE FORMAS - HORISTA (ENCARGOS COMPLEMENTARES - COLETADO CAIXA)","Equipamento",null,"H",1,1.26,1.26]
["Insumo"," 00037372 ","SINAPI","EXAMES - HORISTA (COLETADO CAIXA)","Outros",null,"H",1,0.81,0.81]
["Insumo"," 00043459 ","SINAPI","FERRAMENTAS - FAMILIA CARPINTEIRO DE FORMAS - HORISTA (ENCARGOS COMPLEMENTARES - COLETADO CAIXA)","Equipamento",null,"H",1,0.45,0.45]
["Insumo"," 00037373 ","SINAPI","SEGURO - HORISTA (COLETADO CAIXA)","Taxas",null,"H",1,0.06,0.06]
["Insumo"," 00012869 ","SINAPI","TELHADOR (HORISTA)","Mão de Obra",null,"H",1,17,17]
["Insumo"," 00037371 ","SINAPI","TRANSPORTE - HORISTA (COLETADO CAIXA)","Serviços",null,"H",1,0.68,0.68]
[null,null,null,null,"MO sem LS =>",17.149999999999999,"LS =>",0,"MO com LS =>",17.149999999999999]
[null,null,null,null,"Valor do BDI =>",5.48,null,"Valor com BDI =>",null,27.41]
[]
[null,"Código","Banco","Descrição","Tipo",null,"Und","Quant.","Valor Unit","Total"]
["Composição"," 94210 ","SINAPI","TELHAMENTO COM TELHA ONDULADA DE FIBROCIMENTO E = 6 MM, COM RECOBRIMENTO LATERAL DE 1 1/4 DE ONDA PARA TELHADO COM INCLINAÇÃO MÁXIMA DE 10°, COM ATÉ 2 ÁGUAS, INCLUSO IÇAMENTO. AF_07/2019","COBE - COBERTURA",null,"m²",1,48.76,48.76]
["Composição Auxiliar"," 93281 ","SINAPI","GUINCHO ELÉTRICO DE COLUNA, CAPACIDADE 400 KG, COM MOTO FREIO, MOTOR TRIFÁSICO DE 1,25 CV - CHP DIURNO. AF_03/2016","CHOR - CUSTOS HORÁRIOS DE MÁQUINAS E EQUIPAMENTOS",null,"CHP",5.3E-3,17.739999999999998,0.09]
["Composição Auxiliar"," 93282 ","SINAPI","GUINCHO ELÉTRICO DE COLUNA, CAPACIDADE 400 KG, COM MOTO FREIO, MOTOR TRIFÁSICO DE 1,25 CV - CHI DIURNO. AF_03/2016","CHOR - CUSTOS HORÁRIOS DE MÁQUINAS E EQUIPAMENTOS",null,"CHI",7.3000000000000001E-3,16.73,0.12]
["Composição Auxiliar"," 88316 ","SINAPI","SERVENTE COM ENCARGOS COMPLEMENTARES","SEDI - SERVIÇOS DIVERSOS",null,"H",0.16600000000000001,17.82,2.95]
["Composição Auxiliar"," 88323 ","SINAPI","TELHADISTA COM ENCARGOS COMPLEMENTARES","SEDI - SERVIÇOS DIVERSOS",null,"H",0.128,21.93,2.8]
["Insumo"," 00001607 ","SINAPI","CONJUNTO ARRUELAS DE VEDACAO 5/16\" PARA TELHA FIBROCIMENTO (UMA ARRUELA METALICA E UMA ARRUELA PVC - CONICAS)","Material",null,"CJ",1.26,0.26,0.32]
["Insumo"," 00004302 ","SINAPI","PARAFUSO ZINCADO ROSCA SOBERBA, CABECA SEXTAVADA, 5/16 \" X 250 MM, PARA FIXACAO DE TELHA EM MADEIRA","Material",null,"UN",1.26,3.97,5]
["Insumo"," 00007194 ","SINAPI","TELHA DE FIBROCIMENTO ONDULADA E = 6 MM, DE 2,44 X 1,10 M (SEM AMIANTO)","Material",null,"m²",1.357,27.62,37.479999999999997]
[null,null,null,null,"MO sem LS =>",4.5,"LS =>",0,"MO com LS =>",4.5]
[null,null,null,null,"Valor do BDI =>",12.19,null,"Valor com BDI =>",null,60.95]
[]
[null,"Código","Banco","Descrição","Tipo",null,"Und","Quant.","Valor Unit","Total"]
["Composição"," 90587 ","SINAPI","VIBRADOR DE IMERSÃO, DIÂMETRO DE PONTEIRA 45MM, MOTOR ELÉTRICO TRIFÁSICO POTÊNCIA DE 2 CV - CHI DIURNO. AF_06/2015","CHOR - CUSTOS HORÁRIOS DE MÁQUINAS E EQUIPAMENTOS",null,"CHI",1,0.56000000000000005,0.56000000000000005]
["Composição Auxiliar"," 90582 ","SINAPI","VIBRADOR DE IMERSÃO, DIÂMETRO DE PONTEIRA 45MM, MOTOR ELÉTRICO TRIFÁSICO POTÊNCIA DE 2 CV - DEPRECIAÇÃO. AF_06/2015","CHOR - CUSTOS HORÁRIOS DE MÁQUINAS E EQUIPAMENTOS",null,"H",1,0.5,0.5]
["Composição Auxiliar"," 90583 ","SINAPI","VIBRADOR DE IMERSÃO, DIÂMETRO DE PONTEIRA 45MM, MOTOR ELÉTRICO TRIFÁSICO POTÊNCIA DE 2 CV - JUROS. AF_06/2015","CHOR - CUSTOS HORÁRIOS DE MÁQUINAS E EQUIPAMENTOS",null,"H",1,0.06,0.06]
[null,null,null,null,"MO sem LS =>",0,"LS =>",0,"MO com LS =>",0]
[null,null,null,null,"Valor do BDI =>",0.14000000000000001,null,"Valor com BDI =>",null,0.7]
[]
[null,"Código","Banco","Descrição","Tipo",null,"Und","Quant.","Valor Unit","Total"]
["Composição"," 90586 ","SINAPI","VIBRADOR DE IMERSÃO, DIÂMETRO DE PONTEIRA 45MM, MOTOR ELÉTRICO TRIFÁSICO POTÊNCIA DE 2 CV - CHP DIURNO. AF_06/2015","CHOR - CUSTOS HORÁRIOS DE MÁQUINAS E EQUIPAMENTOS",null,"CHP",1,1.42,1.42]
["Composição Auxiliar"," 90582 ","SINAPI","VIBRADOR DE IMERSÃO, DIÂMETRO DE PONTEIRA 45MM, MOTOR ELÉTRICO TRIFÁSICO POTÊNCIA DE 2 CV - DEPRECIAÇÃO. AF_06/2015","CHOR - CUSTOS HORÁRIOS DE MÁQUINAS E EQUIPAMENTOS",null,"H",1,0.5,0.5]
["Composição Auxiliar"," 90583 ","SINAPI","VIBRADOR DE IMERSÃO, DIÂMETRO DE PONTEIRA 45MM, MOTOR ELÉTRICO TRIFÁSICO POTÊNCIA DE 2 CV - JUROS. AF_06/2015","CHOR - CUSTOS HORÁRIOS DE MÁQUINAS E EQUIPAMENTOS",null,"H",1,0.06,0.06]
["Composição Auxiliar"," 90585 ","SINAPI","VIBRADOR DE IMERSÃO, DIÂMETRO DE PONTEIRA 45MM, MOTOR ELÉTRICO TRIFÁSICO POTÊNCIA DE 2 CV - MATERIAIS NA OPERAÇÃO. AF_06/2015","CHOR - CUSTOS HORÁRIOS DE MÁQUINAS E EQUIPAMENTOS",null,"H",1,0.47,0.47]
["Composição Auxiliar"," 90584 ","SINAPI","VIBRADOR DE IMERSÃO, DIÂMETRO DE PONTEIRA 45MM, MOTOR ELÉTRICO TRIFÁSICO POTÊNCIA DE 2 CV - MANUTENÇÃO. AF_06/2015","CHOR - CUSTOS HORÁRIOS DE MÁQUINAS E EQUIPAMENTOS",null,"H",1,0.39,0.39]
[null,null,null,null,"MO sem LS =>",0,"LS =>",0,"MO com LS =>",0]
[null,null,null,null,"Valor do BDI =>",0.35,null,"Valor com BDI =>",null,1.77]
[]
[null,"Código","Banco","Descrição","Tipo",null,"Und","Quant.","Valor Unit","Total"]
["Composição"," 90582 ","SINAPI","VIBRADOR DE IMERSÃO, DIÂMETRO DE PONTEIRA 45MM, MOTOR ELÉTRICO TRIFÁSICO POTÊNCIA DE 2 CV - DEPRECIAÇÃO. AF_06/2015","CHOR - CUSTOS HORÁRIOS DE MÁQUINAS E EQUIPAMENTOS",null,"H",1,0.5,0.5]
["Insumo"," 00013896 ","SINAPI","VIBRADOR DE IMERSAO, DIAMETRO DA PONTEIRA DE *45* MM, COM MOTOR ELETRICO TRIFASICO DE 2 HP (2 CV)","Equipamento",null,"UN",1.2799999999999999E-4,3978.58,0.5]
[null,null,null,null,"MO sem LS =>",0,"LS =>",0,"MO com LS =>",0]
[null,null,null,null,"Valor do BDI =>",0.12,null,"Valor com BDI =>",null,0.62]
[]
[null,"Código","Banco","Descrição","Tipo",null,"Und","Quant.","Valor Unit","Total"]
["Composição"," 90583 ","SINAPI","VIBRADOR DE IMERSÃO, DIÂMETRO DE PONTEIRA 45MM, MOTOR ELÉTRICO TRIFÁSICO POTÊNCIA DE 2 CV - JUROS. AF_06/2015","CHOR - CUSTOS HORÁRIOS DE MÁQUINAS E EQUIPAMENTOS",null,"H",1,0.06,0.06]
["Insumo"," 00013896 ","SINAPI","VIBRADOR DE IMERSAO, DIAMETRO DA PONTEIRA DE *45* MM, COM MOTOR ELETRICO TRIFASICO DE 2 HP (2 CV)","Equipamento",null,"UN",1.5099999999999999E-5,3978.58,0.06]
[null,null,null,null,"MO sem LS =>",0,"LS =>",0,"MO com LS =>",0]
[null,null,null,null,"Valor do BDI =>",0.01,null,"Valor com BDI =>",null,7.0000000000000007E-2]
[]
[null,"Código","Banco","Descrição","Tipo",null,"Und","Quant.","Valor Unit","Total"]
["Composição"," 90584 ","SINAPI","VIBRADOR DE IMERSÃO, DIÂMETRO DE PONTEIRA 45MM, MOTOR ELÉTRICO TRIFÁSICO POTÊNCIA DE 2 CV - MANUTENÇÃO. AF_06/2015","CHOR - CUSTOS HORÁRIOS DE MÁQUINAS E EQUIPAMENTOS",null,"H",1,0.39,0.39]
["Insumo"," 00013896 ","SINAPI","VIBRADOR DE IMERSAO, DIAMETRO DA PONTEIRA DE *45* MM, COM MOTOR ELETRICO TRIFASICO DE 2 HP (2 CV)","Equipamento",null,"UN",1E-4,3978.58,0.39]
[null,null,null,null,"MO sem LS =>",0,"LS =>",0,"MO com LS =>",0]
[null,null,null,null,"Valor do BDI =>",0.09,null,"Valor com BDI =>",null,0.48]
[]
[null,"Código","Banco","Descrição","Tipo",null,"Und","Quant.","Valor Unit","Total"]
["Composição"," 90585 ","SINAPI","VIBRADOR DE IMERSÃO, DIÂMETRO DE PONTEIRA 45MM, MOTOR ELÉTRICO TRIFÁSICO POTÊNCIA DE 2 CV - MATERIAIS NA OPERAÇÃO. AF_06/2015","CHOR - CUSTOS HORÁRIOS DE MÁQUINAS E EQUIPAMENTOS",null,"H",1,0.47,0.47]
["Insumo"," 00002705 ","SINAPI","ENERGIA ELETRICA ATE 2000 KWH INDUSTRIAL, SEM DEMANDA","Material",null,"KWH",0.52,0.91,0.47]
[null,null,null,null,"MO sem LS =>",0,"LS =>",0,"MO com LS =>",0]
[null,null,null,null,"Valor do BDI =>",0.11,null,"Valor com BDI =>",null,0.57999999999999996]

{"sheet":"CRONOGRAMA","index":4,"n_rows":24,"n_cols":5,"rows_kept":24,"cut":false,"hidden":false,"merged":[[23,0,23,3],[22,0,22,3],[21,0,21,3],[20,0,20,3],[7,0,7,4],[13,2,14,2],[13,3,14,3],[15,0,16,0],[15,1,16,1],[15,2,16,2],[15,3,16,3],[19,0,19,1],[9,0,10,0],[9,1,10,1],[9,2,10,2],[9,3,10,3],[11,0,12,0],[11,1,12,1],[11,3,12,3],[11,2,12,2],[17,0,18,0],[17,1,18,1],[17,2,18,2],[17,3,18,3],[13,0,14,0],[13,1,14,1],[0,1,0,4],[6,0,6,4],[4,1,4,4],[3,1,3,4],[2,1,2,4],[1,1,1,4],[5,0,5,4]]}
["OBJETO-",{"$f":"RESUMO!B1","v":"CRECHE - KIT DE GERAÇÃO DE ENERGIA SOLAR FOTOVOLTAICA - 123,75 kWp"}]
["MUNICÍPIO-",{"$f":"RESUMO!B2","v":"SÃO PEDRO DA CIPA - MT"}]
["REFERÊNCIA-",{"$f":"RESUMO!B3","v":"SINAPI/MT - 06/2022"}]
["BDI-",{"$f":"RESUMO!B4","v":0.25}]
["ENCARGOS-",{"$f":"RESUMO!B5","v":"NÃO DESONERADO (Horista:  114,45%  Mensalista:  72,21%)"}]
[]
["PLANILHA ORÇAMENTÁRIA - CRONOGRAMA FÍSICO E FINANCEIRO"]
[]
["Item","Descrição","TOTAL (R$)","PESO","30 DIAS"]
[1,{"$f":"VLOOKUP(A10,RES_SD,2,FALSE)","v":"KIT DE GERAÇÃO DE ENERGIA SOLAR FOTOVOLTAICA - 123,75 kWp"},{"$f":"VLOOKUP(A10,RES_SD,3,FALSE)","v":389569.02},{"$f":"C10/$C$20","v":0.83368244778701983},1]
[null,null,null,null,{"$f":"$C10*E10","v":389569.02}]
[2,{"$f":"VLOOKUP(A12,RES_SD,2,FALSE)","v":"ATERRAMENTO"},{"$f":"VLOOKUP(A12,RES_SD,3,FALSE)","v":3870.82},{"$f":"C12/$C$20","v":8.2836019469488421E-3},1]
[null,null,null,null,3870.82]
[3,{"$f":"VLOOKUP(A14,RES_SD,2,FALSE)","v":"CABOS CA"},{"$f":"VLOOKUP(A14,RES_SD,3,FALSE)","v":26701.1},{"$f":"C14/$C$20","v":5.7140679221889853E-2},1]
[null,null,null,null,26701.1]
[4,{"$f":"VLOOKUP(A16,RES_SD,2,FALSE)","v":"ACESSÓRIOS E   DISPOSITIVOS DE SOBREPOR E EMBUTIR"},{"$f":"VLOOKUP(A16,RES_SD,3,FALSE)","v":41684.07},{"$f":"C16/$C$20","v":8.9204417515862736E-2},1]
[null,null,null,null,41684.07]
[5,{"$f":"VLOOKUP(A18,RES_SD,2,FALSE)","v":"QUADRO DE DISTRIBUIÇÃO"},{"$f":"VLOOKUP(A18,RES_SD,3,FALSE)","v":5462.05},{"$f":"C18/$C$20","v":1.1688853528278743E-2},1]
[null,null,null,null,5462.05]
["Total Geral",null,{"$f":"SUBTOTAL(9,C10:C19)","v":467287.06},{"$f":"SUBTOTAL(9,D10:D19)","v":1}]
["Porcentagem",null,null,null,{"$f":"SUM(E11,E13,E15,E17,E19)/$C$20","v":1}]
["Custo",null,null,null,{"$f":"SUM(E11,E13,E15,E17,E19)","v":467287.06}]
["Porcentagem Acumulado",null,null,null,{"$f":"E21","v":1}]
["Custo Acumulado",null,null,null,{"$f":"E22","v":467287.06}]

{"sheet":"CURVA ABC","index":5,"n_rows":60,"n_cols":10,"rows_kept":60,"cut":false,"hidden":false,"merged":[[2,1,2,9],[1,1,1,9],[0,1,0,9],[7,0,7,7],[8,0,8,9],[6,0,6,9],[63,0,63,8],[5,0,5,8],[4,1,4,9],[3,1,3,9],[9,8,9,9],[7,8,7,9],[59,8,59,9],[58,8,58,9],[57,8,57,9],[59,0,59,7],[58,0,58,7],[57,0,57,7],[13,0,13,9],[12,8,12,9],[11,8,11,9],[10,8,10,9]]}
["OBJETO - ",{"$f":"RESUMO!B1","v":"CRECHE - KIT DE GERAÇÃO DE ENERGIA SOLAR FOTOVOLTAICA - 123,75 kWp"}]
["MUNICÍPIO -",{"$f":"RESUMO!B2","v":"SÃO PEDRO DA CIPA - MT"}]
["REFERÊNCIA - ",{"$f":"RESUMO!B3","v":"SINAPI/MT - 06/2022"}]
["BDI -",{"$f":"RESUMO!B4","v":0.25}]
["ENCARGOS -",{"$f":"RESUMO!B5","v":"NÃO DESONERADO (Horista:  114,45%  Mensalista:  72,21%)"}]
[]
["PLANILHA ORÇAMENTÁRIA - CURVA ABC DE SERVIÇOS"]
["TOTAL GERAL",null,null,null,null,null,null,null,{"$f":"I60","v":"R$ 467.287,06"}]
[]
[]
[0.9,"FAIXA A"]
[0.95,"FAIXA B"]
[1,"FAIXA C"]
[]
["Código","Banco","Descrição","Und","Quant.","Valor  Unit","Total","Peso (%)","Peso Acum. (%)","Faixas de Corte"]
[" CP-ES-01 ","Próprio","KIT DE GERAÇÃO DE ENERGIA SOLAR FOTOVOLTAICA - 123,75 kWp","UND","1,0",389569.02,389569.02,{"$f":"G16/$I$8","v":0.83368244778701983},{"$f":"H16","v":0.83368244778701983},{"$f":"IF(I16<$A$11,\"A\",IF(I16<$A$12,\"B\",\"C\"))","v":"A"}]
[" CP-ELE-05 ","Próprio","CABO DE COBRE FLEXÍVEL ISOLADO, 120 MM², EPR OU XPLE, ANTI-CHAMA 20/35 KV, PARA REDE DE DISTRIBUIÇÃO DE ENERGIA ELÉTRICA - FORNECIMENTO E INSTALAÇÃO","M","45,0",288.60000000000002,12987,{"$f":"G17/$I$8","v":2.7792338182872002E-2},{"$f":"I16+H17","v":0.8614747859698918},"A"]
[" 91868 ","SINAPI","ELETRODUTO RÍGIDO ROSCÁVEL, PVC, DN 32 MM (1\"), PARA CIRCUITOS TERMINAIS, INSTALADO EM LAJE - FORNECIMENTO E INSTALAÇÃO. AF_12/2015","M","750,0",14.88,11160,{"$f":"G18/$I$8","v":2.3882535929841499E-2},{"$f":"I17+H18","v":0.88535732189973326},{"$f":"IF(I18<$A$11,\"A\",IF(I18<$A$12,\"B\",\"C\"))","v":"A"}]
[" CP-ALV-01 ","Próprio","ABRIGO PARA EQUIPAMENTOS ELÉTRICOS, DIMENSÕES 2,00 X 2,20 X 1,20 M (LXAXP)","UND","1,0",9780.4,9780.4,2.0930175126184749E-2,0.90628749702591804,"B"]
[" CP-ELE-04 ","Próprio","CABO DE COBRE FLEXÍVEL ISOLADO, 70 MM², EPR OU XPLE, ANTI-CHAMA 20/35 KV, PARA REDE DE DISTRIBUIÇÃO DE ENERGIA ELÉTRICA - FORNECIMENTO E INSTALAÇÃO","M","30,0",229.22,6876.6,1.4716007757629754E-2,0.92100350478354776,"B"]
[" 95818 ","SINAPI","CONDULETE DE PVC, TIPO X, PARA ELETRODUTO DE PVC SOLDÁVEL DN 32 MM (1''), APARENTE - FORNECIMENTO E INSTALAÇÃO. AF_11/2016","UN","130,0",47.37,6158.1,1.31784090062327E-2,0.93418191378978044,"B"]
[" CP-ELE-25 ","Próprio","QUADRO DE COMANDO- CRECHE. FORNECIMENTO E INSTALAÇÃO","UN","1,0",5462.05,5462.05,1.1688853528278743E-2,0.94587076731805919,"B"]
[" CP-ELE-03 ","Próprio","CABO DE COBRE FLEXÍVEL ISOLADO, 95 MM², EPR OU XPLE, ANTI-CHAMA 20/35 KV, PARA REDE DE DISTRIBUIÇÃO DE ENERGIA ELÉTRICA - FORNECIMENTO E INSTALAÇÃO","M","15,0",273.61,4104.1499999999996,8.7829309889300156E-3,0.95465369830698921,"C"]
[" CP-ELE-17 ","Próprio","ABRAÇADEIRA TIPO \"D\" COM CUNHA, DIÂMETRO 1\" - FORNECIMENTO E INSTALAÇÃO.","UN","375,0",9.06,3397.5,7.2706913818670693E-3,0.9619243896888563,"C"]
[" 96978 ","SINAPI","CORDOALHA DE COBRE NU 70 MM², ENTERRADA, SEM ISOLADOR - FORNECIMENTO E INSTALAÇÃO. AF_12/2017","M","30,0",107.48,3224.4,6.9002552734929151E-3,0.96882464496234921,"C"]
[" CP-ELE-15 ","Próprio","UNIDUT CÔNICO Ø 1\" COM ARRUELA - FORNECIMENTO E INSTALAÇÃO","UN","260,0",7.57,1968.2,4.211971972859681E-3,0.97303661693520893,"C"]
[" CP-ELE-02 ","Próprio","CABO DE COBRE FLEXÍVEL ISOLADO, 50 MM², EPR OU XPLE, ANTI-CHAMA 20/35 KV, PARA REDE DE DISTRIBUIÇÃO DE ENERGIA ELÉTRICA - FORNECIMENTO E INSTALAÇÃO.","M","10,0",193.06,1930.6,4.1315075148881716E-3,0.97716812445009715,"C"]
[" 97887 ","SINAPI","CAIXA ENTERRADA ELÉTRICA RETANGULAR, EM ALVENARIA COM TIJOLOS CERÂMICOS MACIÇOS, FUNDO COM BRITA, DIMENSÕES INTERNAS: 0,4X0,4X0,4 M. AF_12/2020","UN","6,0",314.33,1885.98,4.0360201714124072E-3,0.98120414462150951,"C"]
[" 91880 ","SINAPI","LUVA PARA ELETRODUTO, PVC, ROSCÁVEL, DN 32 MM (1\"), PARA CIRCUITOS TERMINAIS, INSTALADA EM LAJE - FORNECIMENTO E INSTALAÇÃO. AF_12/2015","UN","126,0",10.81,1362.06,2.914824990017913E-3,0.98411896961152745,"C"]
[" CP-ELE-16 ","Próprio","PARAFUSO E BUCHA MU 10MM, FORNECIMENTO E INSTALAÇÃO.","UN","400,0",2.65,1060,2.2684129108989236E-3,0.98638738252242641,"C"]
[" CP-ELE-13 ","Próprio","TAMPA CEGA PARA CONDULETE DE PVC 4x2\" - FORNECIMENTO E INSTALAÇÃO","UN","130,0",7.7,1001,2.1421521922734177E-3,0.98852953471469984,"C"]
[" CP-ELE-01 ","Próprio","CABO DE COBRE FLEXÍVEL ISOLADO, 25 MM², EPR OU XPLE, ANTI-CHAMA  20/35 KV, PARA REDE DE DISTRIBUIÇÃO DE ENERGIA ELÉTRICA - FORNECIMENTO E INSTALAÇÃO.","M","25,0",32.11,802.75,1.717894777569916E-3,0.99024742949226974,"C"]
[" CP-SPDA-01 ","Próprio","HASTE DE ATERRAMENTO 5/8  PARA SPDA COM CONECTOR - FORNECIMENTO E INSTALAÇÃO. AF_12/2017","UN","6,0",99.76,598.55999999999995,1.2809256905166599E-3,0.99152835518278637,"C"]
[" CP-ELE-06 ","Próprio","ELETRODUTO FLEXIVEL, EM ACO GALVANIZADO, REVESTIDO EXTERNAMENTE COM PVC PRETO, DIAMETRO EXTERNO DE 90 MM (3\"), TIPO SEALTUBO, PARA REDE DE DISTRIBUIÇÃO DE ENERGIA ELÉTRICA - FORNECIMENTO E INSTALAÇÃO.","M","6,0",98.38,590.28,1.2632063896654874E-3,0.99279156157245185,"C"]
[" 91905 ","SINAPI","CURVA 90 GRAUS PARA ELETRODUTO, PVC, ROSCÁVEL, DN 32 MM (1\"), PARA CIRCUITOS TERMINAIS, INSTALADA EM LAJE - FORNECIMENTO E INSTALAÇÃO. AF_12/2015","UN","20,0",18.07,361.4,7.7340040188572732E-4,0.99356496197433763,"C"]
[" 93026 ","SINAPI","CURVA 90 GRAUS PARA ELETRODUTO, PVC, ROSCÁVEL, DN 110 MM (4\"), PARA REDE ENTERRADA DE DISTRIBUIÇÃO DE ENERGIA ELÉTRICA - FORNECIMENTO E INSTALAÇÃO. AF_12/2021","UN","4,0",88.32,353.28,7.5602350298336956E-4,0.99432098547732095,"C"]
[" 97670 ","SINAPI","ELETRODUTO FLEXÍVEL CORRUGADO, PEAD, DN 100 (4\"), PARA REDE ENTERRADA DE DISTRIBUIÇÃO DE ENERGIA ELÉTRICA - FORNECIMENTO E INSTALAÇÃO. AF_12/2021","M","15,0",23.41,351.15,7.5146527703977078E-4,0.99507245075436068,"C"]
[" CP-ELE-24 ","Próprio","BARRA DE AÇO ROSCADA Ø1/4\" 50 CM, INCLUSO PORCAS E ARRUELAS. FORNECIMENTO E INSTALAÇÃO","UN","10,0",27.85,278.5,5.959933921559908E-4,0.99566844414651667,"C"]
[" CP-ELE-10 ","Próprio","TERMINAL A COMPRESSAO PINO PARA CABO 95 MM2. FORNECIMENTO E INSTALAÇÃO","UND","6,0",44.58,267.48,5.724104579313624E-4,0.996240854604448,"C"]
[" CP-ELE-09 ","Próprio","TERMINAL A COMPRESSAO PINO PARA CABO 120 MM2. FORNECIMENTO E INSTALAÇÃO","UND","6,0",41.12,246.72,5.2798380507262498E-4,0.99676883840952057,"C"]
[" CP-ELE-22 ","Próprio","PARAFUSO AUTOBROCANTE. FORNECIMENTO E INSTALAÇÃO.","UND","200,0",1.17,234,5.0076285014183787E-4,0.99726960125966246,"C"]
[" CP-ELE-19 ","Próprio","CONECTOR FÊMEA  PARA SEALTUBO 3'' COM ARRUELA- FORNECIMENTO E INSTALAÇÃO","UN","1,0",173.97,173.97,3.7229791897083563E-4,0.99764189917863333,"C"]
[" CP-ELE-14 ","Próprio","CURVA 135 GRAUS PARA ELETRODUTO, PVC, ROSCÁVEL, DN 32 MM (1''), PARA CIRCUITOS TERMINAIS. FORNECIMENTO E INSTALAÇÃO.","UN","10,0",16.399999999999999,164,3.5096199753530518E-4,0.99799286117616859,"C"]
[" 94226 ","SINAPI","SUBCOBERTURA COM MANTA PLÁSTICA REVESTIDA POR PELÍCULA DE ALUMÍNO, INCLUSO TRANSPORTE VERTICAL. AF_07/2019","m²","5,0",30.51,152.55000000000001,3.2645885807323666E-4,0.99831932003424184,"C"]
[" CP-ELE-21 ","Próprio","CONECTOR MACHO PARA SEALTUBO 3'' . FORNECIMENTO E INSTALAÇÃO","UN","1,0",145.97,145.97,3.1237757792822255E-4,0.99863169761217008,"C"]
[" CP-ELE-20 ","Próprio","ABRAÇADEIRA TIPO \"D\" COM CUNHA, DIÂMETRO 3\" - FORNECIMENTO E INSTALAÇÃO.","UN","6,0",15.52,93.12,1.9927793421029035E-4,0.99883097554638034,"C"]
[" CP-ELE-12 ","Próprio","TERMINAL A COMPRESSAO PINO PARA CABO 6 MM2. FORNECIMENTO E INSTALAÇÃO","UND","26,0",2.87,74.62,1.5968770887856386E-4,0.99899066325525887,"C"]
[" 95728 ","SINAPI","ELETRODUTO RÍGIDO SOLDÁVEL, PVC, DN 32 MM (1\"), APARENTE, INSTALADO EM TETO - FORNECIMENTO E INSTALAÇÃO. AF_11/2016","M","6,0",11.41,68.459999999999994,1.4650523384918896E-4,0.99913716848910805,"C"]
[" CP-SPDA-04 ","Próprio","TERMINAL A COMPRESSAO  PARA CABO 95 MM2. FORNECIMENTO E INSTALAÇÃO","UND","6,0",11.16,66.959999999999994,1.4329521557904899E-4,0.99928046370468715,"C"]
[" CP-SPDA-03 ","Próprio","TERMINAL A COMPRESSAO  PARA CABO 70 MM2. FORNECIMENTO E INSTALAÇÃO","UND","7,0",9.42,65.94,1.4111240315535379E-4,0.99942157610784255,"C"]
[" CP-ELE-23 ","Próprio","PARAFUSO DE ACO TIPO CHUMBADOR PARABOLT, DIAMETRO 3/8\". FORNECIMENTO E INSTALAÇÃO","UN","10,0",5.91,59.1,1.2647471984351545E-4,0.99954805082768605,"C"]
[" CP-ELE-07 ","Próprio","ORGANIZADOR DE FIOS E CABOS ESPIRAL 3\\4\". FORNECIMENTO E INSTALAÇÃO","M","4,0",13.46,53.84,1.1521825577622459E-4,0.99966326908346226,"C"]
[" CP-SPDA-06 ","Próprio","TERMINAL A COMPRESSAO  PARA CABO 25 MM2. FORNECIMENTO E INSTALAÇÃO","UND","10,0",5.01,50.1,1.0721461022267555E-4,0.99977048369368493,"C"]
[" CP-SPDA-02 ","Próprio","CAIXA DE INSPEÇÃO PARA ATERRAMENTO, CIRCULAR, EM POLIETILENO, DIÂMETRO INTERNO ATÉ Ø0,20 M. FORNECIMENTO E INSTALAÇÃO","UN","2,0",19.22,38.44,8.2262068202787377E-5,0.99985274576188776,"C"]
[" CP-ELE-11 ","Próprio","TERMINAL A COMPRESSAO PINO PARA CABO 25 MM2. FORNECIMENTO E INSTALAÇÃO","UND","6,0",5.83,34.979999999999997,7.485762605966447E-5,0.99992760338794739,"C"]
[" CP-SPDA-05 ","Próprio","TERMINAL A COMPRESSAO  PARA CABO 50 MM2. FORNECIMENTO E INSTALAÇÃO","UND","4,0",7.93,31.72,6.7881186352560237E-5,0.99999548457429999,"C"]
[" CP-ELE-08 ","Próprio","FITA ISOLANTE ADESIVA ANTICHAMA, EM ROLO DE 19 MM X 20 M. FORNECIMENTO E  INSTALAÇÃO","UND","0,1",21.1,2.11,4.5154256999969139E-6,1,"C"]
["Total sem BDI",null,null,null,null,null,null,null,{"$f":"RESUMO!C17","v":373838.49}]
["Total do BDI",null,null,null,null,null,null,null,{"$f":"RESUMO!C18","v":93448.57}]
["Total Geral",null,null,null,null,null,null,null,"R$ 467.287,06"]

{"sheet":"COMPOSIÇÃO BDI","index":6,"n_rows":97,"n_cols":18,"rows_kept":97,"cut":false,"hidden":false,"merged":[[24,0,24,2],[4,1,4,5],[3,1,3,5],[2,1,2,5],[10,0,10,2],[16,0,16,2],[11,0,11,2],[14,0,14,2],[13,0,13,2],[12,0,12,2],[0,1,0,5],[6,0,6,5],[23,0,23,5],[19,0,19,2],[22,0,22,2],[7,0,7,5],[8,0,8,3],[8,4,8,5],[9,0,9,3],[9,4,9,5],[20,0,20,2],[21,0,21,2],[18,0,18,2],[17,0,17,2],[15,0,15,2],[1,1,1,5],[23,10,24,17],[16,14,16,15],[17,10,19,13],[17,14,19,17],[20,10,20,12],[20,13,22,13],[20,14,20,16],[20,17,22,17],[7,7,7,9],[7,10,7,13],[7,14,7,17],[10,7,10,8],[16,7,16,8]]}
["OBJETO - ",{"$f":"RESUMO!B1","v":"CRECHE - KIT DE GERAÇÃO DE ENERGIA SOLAR FOTOVOLTAICA - 123,75 kWp"}]
["MUNICÍPIO -",{"$f":"RESUMO!B2","v":"SÃO PEDRO DA CIPA - MT"}]
["REFERÊNCIA - ",{"$f":"RESUMO!B3","v":"SINAPI/MT - 06/2022"},null,null,null,null,null,28.95]
["BDI -",{"$f":"RESUMO!B4","v":0.25}]
["ENCARGOS -",{"$f":"RESUMO!B5","v":"NÃO DESONERADO (Horista:  114,45%  Mensalista:  72,21%)"}]
[]
["COMPOSIÇÃO DA PARCELA DE BDI (BONIFICAÇÕES E DESPESAS INDIRETAS)"]
["\n Resolução Normativa 018/2017 com base no Acórdão do TCU 2622/2013",null,null,null,null,null,null,"BDI DIFERENCIADO\n(Acórdão 2622/2013 - TCU)",null,null,"LIMITES RECOMENDADOS",null,null,null,"BDI DIFERENCIADO - LIMITES RECOMENDADOS"]
["HIPOTESE 1",null,null,null,"HIPOTESE 2"]
["COM DESONERAÇÃO DE MÃO DE OBRA",null,null,null,"SEM DESONERAÇÃO DE MÃO DE OBRA"]
["ITENS RELATIVOS À ADMINISTRAÇÃO CENTRAL",null,null,"% SOBRE PV","ITENS RELATIVOS À ADMINISTRAÇÃO CENTRAL","% SOBRE PV",null,"ITENS RELATIVOS À ADMINISTRAÇÃO CENTRAL",null,"% SOBRE PV","1º QUARTIL","MÉDIO QUARTIL","3º QUARTIL","ATENDE AOS LIMITES","1º QUARTIL","MÉDIO QUARTIL","3º QUARTIL","ATENDE AOS LIMITES"]
["AC - Administração Central",null,null,4.9399999999999999E-2,"AC - Administração Central",4.9399999999999999E-2,null,"AC - Administração Central",null,3.4500000000000003E-2,0.03,0.04,5.5E-2,"SIM",1.4999999999999999E-2,3.4500000000000003E-2,4.4900000000000002E-2,"SIM"]
["DF - Custos Financeiros",null,null,1.3899999999999999E-2,"DF - Custos Financeiros",1.3899999999999999E-2,null,"DF - Custos Financeiros",null,8.5000000000000006E-3,5.8999999999999999E-3,1.23E-2,1.3899999999999999E-2,"SIM",8.5000000000000006E-3,8.5000000000000006E-3,1.11E-2,"SIM"]
["C - Riscos",null,null,1.2699999999999999E-2,"C - Riscos",1.2699999999999999E-2,null,"C - Riscos",null,8.5000000000000006E-3,9.7000000000000003E-3,1.2699999999999999E-2,1.2699999999999999E-2,"SIM",5.5999999999999999E-3,8.5000000000000006E-3,8.8999999999999999E-3,"SIM"]
["S - Seguros e Garantias Contratuais",null,null,0.01,"S - Seguros e Garantias Contratuais",0.01,null,"S - Seguros e Garantias Contratuais",null,4.7999999999999996E-3,8.0000000000000002E-3,8.0000000000000002E-3,0.01,"SIM",3.0000000000000001E-3,4.7999999999999996E-3,8.2000000000000007E-3,"SIM"]
["LO - Lucro Operacional",null,null,8.5000000000000006E-2,"LO - Lucro Operacional",8.5000000000000006E-2,null,"LO - Lucro Operacional",null,5.11E-2,6.1600000000000002E-2,7.3999999999999996E-2,8.9599999999999999E-2,"SIM",3.5000000000000003E-2,5.11E-2,6.2199999999999998E-2,"SIM"]
["TAXAS E IMPOSTOS",null,null,"% SOBRE PV","TAXAS E IMPOSTOS","% SOBRE PV",null,"TAXAS E IMPOSTOS",null,"% SOBRE PV","TAXAS E IMPOSTOS",null,null,null,"TAXAS E IMPOSTOS"]
["F - PIS",null,null,6.4999999999999997E-3,"F - PIS",6.4999999999999997E-3,null,"F - PIS",null,6.4999999999999997E-3,"VARIÁVEL",null,null,null,"VARIÁVEL"]
["G - COFINS",null,null,0.03,"G - COFINS",0.03,null,"G - COFINS",null,0.03]
["H - ISSQN",null,null,{"$f":"$D$25*$F$25","v":2.0000000000000004E-2},"H - ISSQN",0.02,null,"H - ISSQN (LEI COMPLEMENTAR Nº 043/1997 DE 23 DE DEZEMBRO DE 1997,  E SUAS ALTERAÇÕES - CUIABÁ",null,0]
["Contribuição Previdenciária - Lei N° 13.161/15",null,null,4.4999999999999998E-2,"Contribuição Previdenciária - Lei N° 13.161/15","-",null,"Contribuição Previdenciária - Lei N° 13.161/15",null,"-","LIMITES BDI COM IMPOSTOS ",null,null,null,"LIMITES BDI COM IMPOSTOS"]
[null,null,null,{"$f":"SUM(D18:D21)","v":0.10150000000000001},null,{"$f":"SUM(F18:F21)","v":5.6499999999999995E-2},null,null,"Sub-total",{"$f":"SUM(J18:J21)","v":3.6499999999999998E-2},"MÍNIMO ",null,"MÁXIMO",null,"MÍNIMO ",null,"MÁXIMO"]
["BDI COM IMPOSTOS",null,null,{"$f":"ROUND(((((1+D12+D14+D15)*(1+D13)*(1+D16))/(1-D22))-1),4)","v":0.31259999999999999},"BDI SEM IMPOSTOS",{"$f":"ROUND(((((1+F12+F14+F15)*(1+F13)*(1+F16))/(1-F22))-1),4)","v":0.25},null,"BDI COM IMPOSTOS",null,{"$f":"ROUND(((((1+J12+J14+J15)*(1+J13)*(1+J16))/(1-J22))-1),4)","v":0.15279999999999999},{"$f":"ROUND(((((1+K12+K14+K15)*(1+K13)*(1+K16))/(1-F22))-1),4)","v":0.18579999999999999},null,{"$f":"ROUND(((((1+M12+M14+M15)*(1+M13)*(1+M16))/(1-F22))-1),4)","v":0.26190000000000002},null,{"$f":"ROUND(((((1+O12+O14+O15)*(1+O13)*(1+O16))/(1-J22))-1),4)","v":0.1089},null,{"$f":"ROUND(((((1+Q12+Q14+Q15)*(1+Q13)*(1+Q16))/(1-J22))-1),4)","v":0.18379999999999999}]
["FÓRMULA DO BDI"]
["Localidade / alíquota ISSQN  ",null,null,0.05,"% sobre a Mão de Obra  ",0.4]
[]
[]
[]
[]
[]
[]
[]
[]
[]
[]
[]
["LO - LUCRO OPERACIONAL"]
["USAR",null,null,null,7.9000000000000001E-2]
[null,null,null,null,8.4000000000000005E-2]
[]
[]
[]
[]
[]
[]
[]
[]
[]
[]
[]
[]
[]
[]
[]
[]
[]
[]
[]
[]
[]
[]
[]
[]
[]
[]
[]
[]
[]
[]
[]
[]
[]
[]
[]
[]
[]
[]
[]
[]
[]
[]
[]
[]
[]
[]
[]
[]
[]
[]
[]
[]
[]
[]
[]
[]
[]
["Lei Complementar nº 105 de 23/12/2003"]

{"sheet":"ENCARGOS SOCIAIS","index":7,"n_rows":47,"n_cols":16,"rows_kept":47,"cut":false,"hidden":false,"merged":[[23,0,23,5],[35,0,35,5],[42,0,42,5],[46,0,46,1],[9,0,9,5],[8,3,8,5],[8,0,8,2],[12,0,12,5],[10,0,11,0],[10,1,11,1],[10,2,10,3],[10,4,10,5],[3,1,3,5],[4,1,4,5],[7,0,7,5],[6,0,6,5],[0,1,0,5],[1,1,1,5],[2,1,2,5]]}
["OBJETO - ",{"$f":"RESUMO!B1","v":"CRECHE - KIT DE GERAÇÃO DE ENERGIA SOLAR FOTOVOLTAICA - 123,75 kWp"}]
["MUNICÍPIO -",{"$f":"RESUMO!B2","v":"SÃO PEDRO DA CIPA - MT"}]
["REFERÊNCIA - ",{"$f":"RESUMO!B3","v":"SINAPI/MT - 06/2022"}]
["BDI -",{"$f":"RESUMO!B4","v":0.25}]
["ENCARGOS -",{"$f":"RESUMO!B5","v":"NÃO DESONERADO (Horista:  114,45%  Mensalista:  72,21%)"}]
[]
["ENCARGOS SOCIAIS SOBRE A MÃO DE OBRA"]
["\n Resolução Normativa 018/2017 com base no Acórdão do TCU 2622/2013"]
["  MATO GROSSO",null,null,"VIGÊNCIA A PARTIR DE 10/2021"]
[]
["CÓDIGO","DESCRIÇÃO","COM DESONERAÇÃO",null,"SEM DESONERAÇÃO"]
[null,null,"HORISTA (%)","MENSALISTA (%)","HORISTA (%)","MENSALISTA (%)"]
["GRUPO A"]
["A1","INSS",0,0,0.2,0.2]
["A2","SESI",1.4999999999999999E-2,1.4999999999999999E-2,1.4999999999999999E-2,1.4999999999999999E-2]
["A3","SENAI",0.01,0.01,0.01,0.01]
["A4","INCRA",2E-3,2E-3,2E-3,2E-3]
["A5","SEBRAE",6.0000000000000001E-3,6.0000000000000001E-3,6.0000000000000001E-3,6.0000000000000001E-3]
["A6","Salario Educação",2.5000000000000001E-2,2.5000000000000001E-2,2.5000000000000001E-2,2.5000000000000001E-2]
["A7","Seguro Contra Acidentes de Trabalho",0.03,0.03,0.03,0.03]
["A8","FGTS",0.08,0.08,0.08,0.08]
["A9","SECONCI",0,0,0,0]
["A","Total",{"$f":"SUM(C14:C22)","v":0.16799999999999998},{"$f":"SUM(D14:D22)","v":0.16799999999999998},{"$f":"SUM(E14:E22)","v":0.36800000000000005},{"$f":"SUM(F14:F22)","v":0.36800000000000005}]
["GRUPO B"]
["B1","Repouso Semanal Remunerado",0.1777,"Não incide",0.1777,"Não incide"]
["B2","Feriados",3.6700000000000003E-2,"Não incide",3.6700000000000003E-2,"Não incide"]
["B3","Auxilio - Enfermidade",8.6999999999999994E-3,{"$f":"0.66/100","v":6.6E-3},8.6999999999999994E-3,6.6E-3]
["B4","13º Salario",0.11,8.3299999999999999E-2,0.11,8.3299999999999999E-2]
["B5","Licença Paternidade",6.9999999999999999E-4,{"$f":"0.06/100","v":5.9999999999999995E-4},{"$f":"0.07/100","v":7.000000000000001E-4},5.9999999999999995E-4]
["B6","Faltas Justificadas",{"$f":"0.73/100","v":7.3000000000000001E-3},{"$f":"0.56/100","v":5.6000000000000008E-3},{"$f":"0.73/100","v":7.3000000000000001E-3},5.5999999999999999E-3]
["B7","Dias de chuvas",1.17E-2,"Não incide",1.17E-2,"Não incide"]
["B8","Auxílio Acidente de Trabalho",1.1000000000000001E-3,8.0000000000000004E-4,1.1000000000000001E-3,8.0000000000000004E-4]
["B9","Férias Gozadas",0.12670000000000001,9.6000000000000002E-2,0.12670000000000001,9.6000000000000002E-2]
["B10","Salário Maternidade",2.9999999999999997E-4,{"$f":"0.02/100","v":2.0000000000000001E-4},2.9999999999999997E-4,2.0000000000000001E-4,null,null,null,null,null,null,null,null,null," "]
["B","Total",{"$f":"SUM(C25:C34)","v":0.48089999999999994},{"$f":"SUM(D25:D34)","v":0.19309999999999999},{"$f":"SUM(E25:E34)","v":0.48089999999999994},{"$f":"SUM(F25:F34)","v":0.19309999999999999}]
["GRUPO C"]
["C1","Aviso Prévio Indenizado",0.06,4.5499999999999999E-2,0.06,4.5499999999999999E-2]
["C2","Aviso Prévio Trabalhado",1.4E-3,1.1000000000000001E-3,1.4E-3,1.1000000000000001E-3]
["C3","Férias Indenizadas",1.6500000000000001E-2,1.2500000000000001E-2,1.6500000000000001E-2,1.2500000000000001E-2]
["C4","Depósito Rescisão Sem Justa Causa",3.0300000000000001E-2,2.3E-2,3.0300000000000001E-2,2.3E-2]
["C5","Indenização Adicional",{"$f":"0.51/100","v":5.1000000000000004E-3},3.8E-3,{"$f":"0.51/100","v":5.1000000000000004E-3},3.8E-3]
["C","Total",{"$f":"SUM(C37:C41)","v":0.11329999999999998},{"$f":"SUM(D37:D41)","v":8.5900000000000004E-2},{"$f":"SUM(E37:E41)","v":0.11329999999999998},{"$f":"SUM(F37:F41)","v":8.5900000000000004E-2}]
["GRUPO D"]
["D1","Reincidência de Grupo A Sobre Grupo B",8.0799999999999997E-2,3.2399999999999998E-2,0.17699999999999999,7.1099999999999997E-2]
["D2","Reincidência de Grupo A Sobre Aviso Prévio Trabalhado e Reincidência do FGTS Sobre Aviso Prévio Indenizado",5.0000000000000001E-3,3.8E-3,{"$f":"0.53/100","v":5.3E-3},4.0000000000000001E-3]
["D","Total",{"$f":"SUM(C44:C45)","v":8.5800000000000001E-2},{"$f":"SUM(D44:D45)","v":3.6199999999999996E-2},{"$f":"SUM(E44:E45)","v":0.18229999999999999},{"$f":"SUM(F44:F45)","v":7.51E-2}]
["TOTAL (A+B+C+D)",null,{"$f":"(C46)+(C42)+(C35)+C23","v":0.84799999999999986},{"$f":"(D46)+(D42)+(D35)+D23","v":0.48319999999999996},{"$f":"(E46)+(E42)+(E35)+E23","v":1.1445000000000001},{"$f":"(F46)+(F42)+(F35)+F23","v":0.72209999999999996}]

{"sheet":"MAPA DE COTAÇÕES","index":8,"n_rows":90,"n_cols":8,"rows_kept":90,"cut":false,"hidden":false,"merged":[[5,0,5,7],[7,0,7,7],[6,0,6,7],[90,0,90,7],[0,1,0,7],[1,1,1,7],[2,1,2,7],[3,1,3,7],[4,1,4,7]]}
["OBJETO - ",{"$f":"RESUMO!B1","v":"CRECHE - KIT DE GERAÇÃO DE ENERGIA SOLAR FOTOVOLTAICA - 123,75 kWp"}]
["MUNICÍPIO -",{"$f":"RESUMO!B2","v":"SÃO PEDRO DA CIPA - MT"}]
["REFERÊNCIA - ",{"$f":"RESUMO!B3","v":"SINAPI/MT - 06/2022"}]
["BDI -",{"$f":"RESUMO!B4","v":0.25}]
["ENCARGOS -",{"$f":"RESUMO!B5","v":"NÃO DESONERADO (Horista:  114,45%  Mensalista:  72,21%)"}]
[]
["MAPA DE COTAÇÕES - ANALÍTICO"]
[]
["Código","Descrição do Item","Und","Data","Preço Unitário","Preço Mediano","CNPJ do Fornecedor","Fornecedor"]
["COT.01","CAIXA DE INSPEÇÃO N3 180X140MM","unid.",44785,9.0399999999999991,null,"07.624.206/0001-31","BRANEL ComÈrcio de Materiais ElÈtricos \\\\ (65)3027-9000 \\\\ Ricardo"]
["COT.01","CAIXA DE INSPEÇÃO N3 180X140MM","unid.",44785,9,9,"04.181.115/0001-80","PIZZATTO \\\\  (65)3052-4200 \\\\ Leandro"]
["COT.01","CAIXA DE INSPEÇÃO N3 180X140MM","unid.",44785,4.5,null," 15.987.913/0001-10","TUDO HIDRAULICA E ELETRICA \\\\ 65-3321-0009 \\\\ Matheus Roldao"]
["COT.02","CABO DE COBRE, RIGIDO, ISOLACAO EM EPR OU XLPE, COBERTURA ANTICHAMA EM PVC, PEAD OU HFFR, 1 CONDUTOR, 20/35 KV, SECAO NOMINAL 25 MM2 -  (SUGERIDO - CABO ISOL.1KV 25.0 MM2 PRETO)","m",44785,35.29,null,"06.110.817/0004-41","ATIVA MATERIAIS ELETRICOS LTDA \\\\ (65)3051-7844\n\\\\ José Ta Bosa"]
["COT.02","CABO DE COBRE, RIGIDO, ISOLACAO EM EPR OU XLPE, COBERTURA ANTICHAMA EM PVC, PEAD OU HFFR, 1 CONDUTOR, 20/35 KV, SECAO NOMINAL 25 MM2 -  (SUGERIDO - CABO ISOL.1KV 25.0 MM2 PRETO)","m",44785,22.75,22.75,"04.181.115/0001-80","PIZZATTO \\\\  (65)3052-4200 \\\\ Leandro"]
["COT.02","CABO DE COBRE, RIGIDO, ISOLACAO EM EPR OU XLPE, COBERTURA ANTICHAMA EM PVC, PEAD OU HFFR, 1 CONDUTOR, 20/35 KV, SECAO NOMINAL 25 MM2 -  (SUGERIDO - CABO ISOL.1KV 25.0 MM2 PRETO)","m",44785,21.2,null," 15.987.913/0001-10","TUDO HIDRAULICA E ELETRICA \\\\ 65-3321-0009 \\\\ Matheus Roldao"]
["COT.03","ELETRODUTO FLEXIVEL, EM ACO GALVANIZADO, REVESTIDO EXTERNAMENTE\nCOM PVC PRETO, DIAMETRO EXTERNO DE 90 MM (3\"), TIPO SEALTUBO","m",44785,68,null," 15.987.913/0001-10","TUDO HIDRAULICA E ELETRICA \\\\ 65-3321-0009 \\\\ Matheus Roldao"]
["COT.03","ELETRODUTO FLEXIVEL, EM ACO GALVANIZADO, REVESTIDO EXTERNAMENTE\nCOM PVC PRETO, DIAMETRO EXTERNO DE 90 MM (3\"), TIPO SEALTUBO","m",44785,62.95,null,"07.237.858/0001-13","COTELETRICA MATERIAIS ELETRICOS \\\\ (65) 3025-4300 \\\\ Patriane Mendes"]
["COT.03","ELETRODUTO FLEXIVEL, EM ACO GALVANIZADO, REVESTIDO EXTERNAMENTE\nCOM PVC PRETO, DIAMETRO EXTERNO DE 90 MM (3\"), TIPO SEALTUBO","m",44785,65.73,65.73,"07.624.206/0001-31","BRANEL ComÈrcio de Materiais ElÈtricos \\\\ (65)3027-9000 \\\\ Ricardo"]
["COT.04","ORGANIZADOR DE FIOS E CABOS ESPIRAL 3\\4\"","m",44785,9.1999999999999993,9.1999999999999993,"04.181.115/0001-80","PIZZATTO \\\\  (65)3052-4200 \\\\ Leandro"]
["COT.04","ORGANIZADOR DE FIOS E CABOS ESPIRAL 3\\4\"","m",44785,10,null," 15.987.913/0001-10","TUDO HIDRAULICA E ELETRICA \\\\ 65-3321-0009 \\\\ Matheus Roldao"]
["COT.04","ORGANIZADOR DE FIOS E CABOS ESPIRAL 3\\4\"","m",44785,8.2899999999999991,null,"07.237.858/0001-13","COTELETRICA MATERIAIS ELETRICOS \\\\ (65) 3025-4300 \\\\ Patriane Mendes"]
["COT.05","TERMINAL PINO COMPRESSÃO 120 MM","unid.",44785,31.35,31.35," 15.987.913/0001-10","TUDO HIDRAULICA E ELETRICA \\\\ 65-3321-0009 \\\\ Matheus Roldao"]
["COT.05","TERMINAL PINO COMPRESSÃO 120 MM","unid.",44785,16.86,null,"07.237.858/0001-13","COTELETRICA MATERIAIS ELETRICOS \\\\ (65) 3025-4300 \\\\ Patriane Mendes"]
["COT.05","TERMINAL PINO COMPRESSÃO 120 MM","unid.",44785,36.299999999999997,null,"07.624.206/0001-31","BRANEL ComÈrcio de Materiais ElÈtricos \\\\ (65)3027-9000 \\\\ Ricardo"]
["COT.06","TERMINAL PINO COMPRESSÃO 25 MM","unid.",44785,2.7,null," 15.987.913/0001-10","TUDO HIDRAULICA E ELETRICA \\\\ 65-3321-0009 \\\\ Matheus Roldao"]
["COT.06","TERMINAL PINO COMPRESSÃO 25 MM","unid.",44785,3.12,3.12,"07.237.858/0001-13","COTELETRICA MATERIAIS ELETRICOS \\\\ (65) 3025-4300 \\\\ Patriane Mendes"]
["COT.06","TERMINAL PINO COMPRESSÃO 25 MM","unid.",44785,12.08,null,"07.624.206/0001-31","BRANEL ComÈrcio de Materiais ElÈtricos \\\\ (65)3027-9000 \\\\ Ricardo"]
["COT.07","TERMINAL PINO COMPRESSÃO 6 MM","unid.",44785,0.83,null," 15.987.913/0001-10","TUDO HIDRAULICA E ELETRICA \\\\ 65-3321-0009 \\\\ Matheus Roldao"]
["COT.07","TERMINAL PINO COMPRESSÃO 6 MM","unid.",44785,0.22,null,"07.237.858/0001-13","COTELETRICA MATERIAIS ELETRICOS \\\\ (65) 3025-4300 \\\\ Patriane Mendes"]
["COT.07","TERMINAL PINO COMPRESSÃO 6 MM","unid.",44785,0.75,0.75,"07.624.206/0001-31","BRANEL ComÈrcio de Materiais ElÈtricos \\\\ (65)3027-9000 \\\\ Ricardo"]
["COT.08","TERMINAL PINO COMPRESSÃO 95 MM","unid.",44785,49,null," 15.987.913/0001-10","TUDO HIDRAULICA E ELETRICA \\\\ 65-3321-0009 \\\\ Matheus Roldao"]
["COT.08","TERMINAL PINO COMPRESSÃO 95 MM","unid.",44785,11.78,null,"07.237.858/0001-13","COTELETRICA MATERIAIS ELETRICOS \\\\ (65) 3025-4300 \\\\ Patriane Mendes"]
["COT.08","TERMINAL PINO COMPRESSÃO 95 MM","unid.",44785,34.119999999999997,34.119999999999997,"07.624.206/0001-31","BRANEL ComÈrcio de Materiais ElÈtricos \\\\ (65)3027-9000 \\\\ Ricardo"]
["COT.09","PARAF PHILIPS Nº 10 + BUCHA FIXACAO Nº 10 C.ANEL","unid.",44785,1.65,null,"04.181.115/0001-80","PIZZATTO \\\\  (65)3052-4200 \\\\ Leandro"]
["COT.09","PARAF PHILIPS Nº 10 + BUCHA FIXACAO Nº 10 C.ANEL","unid.",44785,0.75,null," 15.987.913/0001-10","TUDO HIDRAULICA E ELETRICA \\\\ 65-3321-0009 \\\\ Matheus Roldao"]
["COT.09","PARAF PHILIPS Nº 10 + BUCHA FIXACAO Nº 10 C.ANEL","unid.",44785,1.3599999999999999,1.36,"07.237.858/0001-13","COTELETRICA MATERIAIS ELETRICOS \\\\ (65) 3025-4300 \\\\ Patriane Mendes"]
["COT.10","CONECTOR FÊMEA GIRATORIO PARA\nSEALTUBO 3''","unid.",44785,157.12,null,"06.110.817/0004-41","ATIVA MATERIAIS ELETRICOS LTDA \\\\ (65)3051-7844\n\\\\ José Ta Bosa"]
["COT.10","CONECTOR FÊMEA GIRATORIO PARA\nSEALTUBO 3''","unid.",44785,115.5,null,"04.181.115/0001-80","PIZZATTO \\\\  (65)3052-4200 \\\\ Leandro"]
["COT.10","CONECTOR FÊMEA GIRATORIO PARA\nSEALTUBO 3''","unid.",44785,129.54,129.54,"07.237.858/0001-13","COTELETRICA MATERIAIS ELETRICOS \\\\ (65) 3025-4300 \\\\ Patriane Mendes"]
["COT.11","CONECTOR MACHO GIRATORIO PARA\nSEALTUBO 3''","unid.",44785,155.72,null,"06.110.817/0004-41","ATIVA MATERIAIS ELETRICOS LTDA \\\\ (65)3051-7844\n\\\\ José Ta Bosa"]
["COT.11","CONECTOR MACHO GIRATORIO PARA\nSEALTUBO 3''","unid.",44785,110.2,null,"04.181.115/0001-80","PIZZATTO \\\\  (65)3052-4200 \\\\ Leandro"]
["COT.11","CONECTOR MACHO GIRATORIO PARA\nSEALTUBO 3''","unid.",44785,115.14,115.14,"07.237.858/0001-13","COTELETRICA MATERIAIS ELETRICOS \\\\ (65) 3025-4300 \\\\ Patriane Mendes"]
["COT.12","BARRA DE AÇO ROSCADA Ø1/4\" 50 CM","unid.",44785,18,18," 15.987.913/0001-10","TUDO HIDRAULICA E ELETRICA \\\\ 65-3321-0009 \\\\ Matheus Roldao"]
["COT.12","BARRA DE AÇO ROSCADA Ø1/4\" 50 CM","unid.",44785,4.95,null,"07.237.858/0001-13","COTELETRICA MATERIAIS ELETRICOS \\\\ (65) 3025-4300 \\\\ Patriane Mendes"]
["COT.12","BARRA DE AÇO ROSCADA Ø1/4\" 50 CM","unid.",44785,18.329999999999998,null,"07.624.206/0001-31","BRANEL ComÈrcio de Materiais ElÈtricos \\\\ (65)3027-9000 \\\\ Ricardo"]
["COT.13","ARRUELA LISA Ø1/4\"","unid.",44785,0.2,null," 15.987.913/0001-10","TUDO HIDRAULICA E ELETRICA \\\\ 65-3321-0009 \\\\ Matheus Roldao"]
["COT.13","ARRUELA LISA Ø1/4\"","unid.",44785,0.26,0.26,"07.237.858/0001-13","COTELETRICA MATERIAIS ELETRICOS \\\\ (65) 3025-4300 \\\\ Patriane Mendes"]
["COT.13","ARRUELA LISA Ø1/4\"","unid.",44785,0.46,null,"07.624.206/0001-31","BRANEL ComÈrcio de Materiais ElÈtricos \\\\ (65)3027-9000 \\\\ Ricardo"]
["COT.14","PORCA SEXTAVADA BICROMATIZADO 3/16''","unid.",44785,1.17,null,"06.110.817/0004-41","ATIVA MATERIAIS ELETRICOS LTDA \\\\ (65)3051-7844\n\\\\ José Ta Bosa"]
["COT.14","PORCA SEXTAVADA BICROMATIZADO 3/16''","unid.",44785,0.2,0.2,"04.181.115/0001-80","PIZZATTO \\\\  (65)3052-4200 \\\\ Leandro"]
["COT.14","PORCA SEXTAVADA BICROMATIZADO 3/16''","unid.",44785,0.05,null,"07.624.206/0001-31","BRANEL ComÈrcio de Materiais ElÈtricos \\\\ (65)3027-9000 \\\\ Ricardo"]
["COT.15","PARAFUSO SEXTAVADA BICROMATIZADO 1/4 x 1/2''","unid.",44785,0.38,null,"04.181.115/0001-80","PIZZATTO \\\\  (65)3052-4200 \\\\ Leandro"]
["COT.15","PARAFUSO SEXTAVADA BICROMATIZADO 1/4 x 1/2''","unid.",44785,1.54,null,"07.237.858/0001-13","COTELETRICA MATERIAIS ELETRICOS \\\\ (65) 3025-4300 \\\\ Patriane Mendes"]
["COT.15","PARAFUSO SEXTAVADA BICROMATIZADO 1/4 x 1/2''","unid.",44785,1.05,1.05,"07.624.206/0001-31","BRANEL ComÈrcio de Materiais ElÈtricos \\\\ (65)3027-9000 \\\\ Ricardo"]
["COT.16","ARRUELA LISA 3/16''","unid.",44785,0.41,null,"06.110.817/0004-41","ATIVA MATERIAIS ELETRICOS LTDA \\\\ (65)3051-7844\n\\\\ José Ta Bosa"]
["COT.16","ARRUELA LISA 3/16''","unid.",44785,0.32,0.32,"04.181.115/0001-80","PIZZATTO \\\\  (65)3052-4200 \\\\ Leandro"]
["COT.16","ARRUELA LISA 3/16''","unid.",44785,0.3,null,"07.624.206/0001-31","BRANEL ComÈrcio de Materiais ElÈtricos \\\\ (65)3027-9000 \\\\ Ricardo"]
["COT.17","ISOLADOR EPOXI DIAMETRO 20MM COMPRIMENTO 20MM PARAFUSO 1/4","unid.",44785,6.09,null," 15.987.913/0001-10","TUDO HIDRAULICA E ELETRICA \\\\ 65-3321-0009 \\\\ Matheus Roldao"]
["COT.17","ISOLADOR EPOXI DIAMETRO 20MM COMPRIMENTO 20MM PARAFUSO 1/4","unid.",44785,8.06,null,"07.237.858/0001-13","COTELETRICA MATERIAIS ELETRICOS \\\\ (65) 3025-4300 \\\\ Patriane Mendes"]
["COT.17","ISOLADOR EPOXI DIAMETRO 20MM COMPRIMENTO 20MM PARAFUSO 1/4","unid.",44785,7.73,7.73,"07.624.206/0001-31","BRANEL ComÈrcio de Materiais ElÈtricos \\\\ (65)3027-9000 \\\\ Ricardo"]
["COT.18","DISJUNTOR CAIXA MOLDADA TRIPOLAR 70A","unid.",44785,301.7,null,"04.181.115/0001-80","PIZZATTO \\\\  (65)3052-4200 \\\\ Leandro"]
["COT.18","DISJUNTOR CAIXA MOLDADA TRIPOLAR 70A","unid.",44785,214.92,214.92,"07.237.858/0001-13","COTELETRICA MATERIAIS ELETRICOS \\\\ (65) 3025-4300 \\\\ Patriane Mendes"]
["COT.18","DISJUNTOR CAIXA MOLDADA TRIPOLAR 70A","unid.",44785,341.14,null,"07.624.206/0001-31","BRANEL ComÈrcio de Materiais ElÈtricos \\\\ (65)3027-9000 \\\\ Ricardo"]
["COT.19","DISJUNTOR CAIXA MOLDADA TRIPOLAR 225A","unid.",44785,356.91,null,"04.181.115/0001-80","PIZZATTO \\\\  (65)3052-4200 \\\\ Leandro"]
["COT.19","DISJUNTOR CAIXA MOLDADA TRIPOLAR 225A","unid.",44785,371.41,371.41,"07.237.858/0001-13","COTELETRICA MATERIAIS ELETRICOS \\\\ (65) 3025-4300 \\\\ Patriane Mendes"]
["COT.19","DISJUNTOR CAIXA MOLDADA TRIPOLAR 225A","unid.",44785,570.48,null,"07.624.206/0001-31","BRANEL ComÈrcio de Materiais ElÈtricos \\\\ (65)3027-9000 \\\\ Ricardo"]
["COT.20","ACRILICO PORTEÇÃO PARA QUARDO DISTRIBUIÇÃO 2000 X 1000 X3 MM","unid.",44785,1181.1199999999999,null,"06.110.817/0004-41","ATIVA MATERIAIS ELETRICOS LTDA \\\\ (65)3051-7844\n\\\\ José Ta Bosa"]
["COT.20","ACRILICO PORTEÇÃO PARA QUARDO DISTRIBUIÇÃO 2000 X 1000 X3 MM","unid.",44785,445.2,null,"04.181.115/0001-80","PIZZATTO \\\\  (65)3052-4200 \\\\ Leandro"]
["COT.20","ACRILICO PORTEÇÃO PARA QUARDO DISTRIBUIÇÃO 2000 X 1000 X3 MM","unid.",44785,657.14,657.14,"07.624.206/0001-31","BRANEL ComÈrcio de Materiais ElÈtricos \\\\ (65)3027-9000 \\\\ Ricardo"]
["COT.21","QUADRO DE COMANDO 800 X800 X 250 MM - COMPLETO COM CHAPA DE MONTAGEM - (ENCONTRADO - 800 X 600 X 250 MM)","unid.",44785,1381.32,1381.32,"06.110.817/0004-41","ATIVA MATERIAIS ELETRICOS LTDA \\\\ (65)3051-7844\n\\\\ José Ta Bosa"]
["COT.21","QUADRO DE COMANDO 800 X800 X 250 MM - COMPLETO COM CHAPA DE MONTAGEM - (ENCONTRADO - 1000 X 600 X 250 MM)","unid.",44785,1388,null,"04.181.115/0001-80","PIZZATTO \\\\  (65)3052-4200 \\\\ Leandro"]
["COT.21","QUADRO DE COMANDO 800 X800 X 250 MM - COMPLETO COM CHAPA DE MONTAGEM - (ENCONTRADO - 800 X 600 X 250 MM)","unid.",44785,739.52,null,"07.237.858/0001-13","COTELETRICA MATERIAIS ELETRICOS \\\\ (65) 3025-4300 \\\\ Patriane Mendes"]
["COT.22","BARRAMENTO DE COBRE 20X300 MM - TERRA/NEUTRO","unid.",44785,34.31,null,"06.110.817/0004-41","ATIVA MATERIAIS ELETRICOS LTDA \\\\ (65)3051-7844\n\\\\ José Ta Bosa"]
["COT.22","BARRAMENTO DE COBRE 20X300 MM - TERRA/NEUTRO","unid.",44785,63.687212499999987,63.69,"07.237.858/0001-13","COTELETRICA MATERIAIS ELETRICOS \\\\ (65) 3025-4300 \\\\ Patriane Mendes"]
["COT.22","BARRAMENTO DE COBRE 20X300 MM - TERRA/NEUTRO","unid.",44785,"NEGATIVA",null,".----------------------.",".---------------------------------------------------------------."]
["COT.23","PARAFUSO SEXT. BICROMATIZADO 3/16''","unid.",44785,0.87,0.87,"06.110.817/0004-41","ATIVA MATERIAIS ELETRICOS LTDA \\\\ (65)3051-7844\n\\\\ José Ta Bosa"]
["COT.23","PARAFUSO SEXT. BICROMATIZADO 3/16''","unid.",44785,1.58,null,"04.181.115/0001-80","PIZZATTO \\\\  (65)3052-4200 \\\\ Leandro"]
["COT.23","PARAFUSO SEXT. BICROMATIZADO 3/16''","unid.",44785,"NEGATIVA",null,".----------------------.",".---------------------------------------------------------------."]
["COT.24","DISJUNTOR CAIXA MOLDADA TRIPOLAR 150A","unid.",44785,350,350,"04.181.115/0001-80","PIZZATTO \\\\  (65)3052-4200 \\\\ Leandro"]
["COT.24","DISJUNTOR CAIXA MOLDADA TRIPOLAR 150A","unid.",44785,287.98,null,"07.237.858/0001-13","COTELETRICA MATERIAIS ELETRICOS \\\\ (65) 3025-4300 \\\\ Patriane Mendes"]
["COT.24","DISJUNTOR CAIXA MOLDADA TRIPOLAR 150A","unid.",44785,551.80999999999995,null,"06.110.817/0004-41","ATIVA MATERIAIS ELETRICOS LTDA \\\\ (65)3051-7844\n\\\\ José Ta Bosa"]
["COT.25","DISJUNTOR CAIXA MOLDADA TRIPOLAR 200A","unid.",44785,349.53,null,"04.181.115/0001-80","PIZZATTO \\\\  (65)3052-4200 \\\\ Leandro"]
["COT.25","DISJUNTOR CAIXA MOLDADA TRIPOLAR 200A","unid.",44785,370.95,370.95,"07.237.858/0001-13","COTELETRICA MATERIAIS ELETRICOS \\\\ (65) 3025-4300 \\\\ Patriane Mendes"]
["COT.25","DISJUNTOR CAIXA MOLDADA TRIPOLAR 200A","unid.",44785,551.80999999999995,null,"06.110.817/0004-41","ATIVA MATERIAIS ELETRICOS LTDA \\\\ (65)3051-7844\n\\\\ José Ta Bosa"]
["COTGLOBAL.01","KIT DE GERAÇÃO DE ENERGIA SOLAR FOTOVOLTAICA - 123,75 kWp - CRECHE","unid.",44778,311655.21999999997,311655.21999999997,"28.744.960/0001-85","FOCO ENERGIA TECNOLOGIA E INOVACAO LTDA \\\\ (49)3664-3739 \\\\ MARIA EDUARDA"]
["COTGLOBAL.01","KIT DE GERAÇÃO DE ENERGIA SOLAR FOTOVOLTAICA - 123,75 kWp - CRECHE","unid.",44778,336132.13,null,null,"PROPOSTA Nº 71318 - "]
["COTGLOBAL.01","KIT DE GERAÇÃO DE ENERGIA SOLAR FOTOVOLTAICA - 123,75 kWp - CRECHE","unid.",44778,302700,null,"05.262.518/0001-17","SERRANA SOLAR \\\\ (54) 3039.9999 \\\\ www.serranasolar.com.br \\\\ Caxias do Sul – RS"]
["COTGLOBAL.02","KIT DE GERAÇÃO DE ENERGIA SOLAR FOTOVOLTAICA - 62,70 Kwp - ESCOLA MUNICIPAL","unid.",44778,159363.87,159363.87,"28.744.960/0001-85","FOCO ENERGIA TECNOLOGIA E INOVACAO LTDA \\\\ (49)3664-3739 \\\\ MARIA EDUARDA"]
["COTGLOBAL.02","KIT DE GERAÇÃO DE ENERGIA SOLAR FOTOVOLTAICA - 62,70 Kwp - ESCOLA MUNICIPAL","unid.",44778,181892.66,null,null,"PROPOSTA Nº 71318 - "]
["COTGLOBAL.02","KIT DE GERAÇÃO DE ENERGIA SOLAR FOTOVOLTAICA - 62,70 Kwp - ESCOLA MUNICIPAL","unid.",44778,154450,null,"05.262.518/0001-17","SERRANA SOLAR \\\\ (54) 3039.9999 \\\\ www.serranasolar.com.br \\\\ Caxias do Sul – RS"]